Workbook

Sheet READ ME
D11: Lisez-moi
D16: INVESTIR– Outil de calcul de reboursement
D18: Introduction
D19: Cet outil permet de réaliser une analyse concurrentielle entre les recettes et trois options de pompage différentes pour l’irrigation. Les informations à obtenir pour utiliser cet outil comprennent les coûts d’investissement et d’exploitation des différents systèmes de pompage, les prévisions de recettes de la production agricole et les conditions économiques de base (taux d’inflation, etc.). Il existe un autre outil similaire à l’adresse suivante :
D24: http://www.fao.org/energy/agrifood-chains/power-irrigation-tool/en/
D26: Conseils et astuces
D37: Aperçu
D38: Cet outil est composé des feuilles suivantes :
D40: 1. Input | G40: pour saisir les recettes et dépenses prévues pour les technologies d’irrigation et de pompage
D43: 2. Output | G43: pour analyser les résultats automatiquement générés à partir de la feuille de saisie
D47: En savoir plus
D48: Publié par : | F48: GIZ et FAO
D49: Responsables : | F49: Projet de la GIZ ‘Énergie durable pour l’alimentation – Propulser l’agriculture’ (Sustainable Energy for Food – Powering Agriculture)
D51: Contact : | F51: Powering.Agriculture@giz.de
D52: Lien de téléchargement : | F52: https://energypedia.info/wiki/Toolbox_on_SPIS
D53: À propos de : | F53: Propulser l’agriculture : un grand défi énergétique pour le développement. Disponible à l’adresse :
F55: https://poweringag.org
D56: Version: | F56: 1.5 (Novembre 2018)
D58: La boîte à outils pour les systèmes d’irrigation à énergie solaire (Solar Powered Irrigation Systems, SPIS) est rendue possible grâce à l’initiative mondiale « Propulser l’agriculture : un grand défi énergétique pour le développement » (Powering Agriculture: An Energy Grand Challenge for Development – PAEGC). En 2012, l’Agence des États-Unis pour le développement international (USAID), l’Agence suédoise de coopération internationale au développement (SIDA), le ministère fédéral allemand de la Coopération économique et du Développement (BMZ), Duke Energy et l’Overseas Private Investment Cooperation (OPIC) ont mis leurs ressources en commun pour créer l’initiative PAEGC. Cette initiative a pour objectif d’appuyer de nouvelles approches durables afin d’accélérer le développement et le déploiement de solutions énergétiques propres visant à accroître la productivité et/ou la valeur agricole pour les agriculteurs et les agroindustries dans les pays en développement et dans les régions émergentes qui n’ont pas accès à une énergie propre, fiable et abordable.
D71: Les appellations employées dans ce produit d’information et la présentation des documents qui y figurent n’impliquent de la part de la Deutsche Gesellschaft für Internationale Zusammenarbeit (GIZ) GmbH, de l’Organisation des Nations unies pour l’alimentation et l’agriculture (FAO) ou de l’un des partenaires fondateurs de l’initiative PAEGC aucune prise de position quant au statut juridique ou au stade de développement des pays, territoires, villes ou zones ou de leurs autorités, ni quant au tracé de leurs frontières ou limites. La mention de sociétés déterminées ou de produits de fabricants, qu’ils soient ou non brevetés, n’entraîne de la part de la GIZ, de la FAO ou de l’un des partenaires fondateurs du PAEGC aucune approbation ou recommandation desdits produits de préférence à d’autres de nature analogue qui ne sont pas cités. Les opinions exprimées dans ce produit d’information sont celles de l’auteur et ne reflètent pas nécessairement celles de la GIZ, de la FAO, ou de l’un des partenaires fondateurs du PAEGC.
D86: La GIZ, la FAO et les partenaires fondateurs du PAEGC encouragent l’utilisation, la reproduction et la diffusion des informations contenues dans ce document. Sauf indication contraire, ces dernières peuvent être copiées, téléchargées et imprimées à des fins privées d’étude, de recherche et d’enseignement, ou pour être utilisées dans des produits ou services non commerciaux, à condition que la GIZ et la FAO soient clairement indiquées en tant que sources des informations et détentrices du droit d’auteur.
D94: © GIZ and FAO, 2017

Sheet Input
B1: INVESTIR– Outil de calcul de reboursement
B3: La feuille INPUT est destinée à la saisie des valeurs qui serviront ensuite à calculer les résultats présentés sur la feuille RÉSULTATS.
B6: Hypothèses de base
B8: Monnaie utilisée pour les calculs : | E8: FCFA | F8: Entrer n’importe quelle monnaie
B10: Inflation | E10: 0.03 | F10: taux national annuel de dévaluation de l’argent (extrait des statistiques nationales)
B12: Taux d’actualisation | E12: 0.08 | F12: taux annuel utilisé pour déterminer la valeur actuelle de flux de trésorerie futurs (Conseil: le taux d'actualisation simplifié est souvent égal au taux d'intérêt acquis sur l'épargne bancaire ou les bons du Trésor)
B14: Hausse annuelle de la marge d’exploitation | E14: 0.1 | F14: taux utilisé par l’agriculteur pour augmenter ses prix chaque année (calculé selon sa propre comptabilité)
B16: Hausse annuelle du prix du carburant | E16: 0.04 | F16: taux auquel le carburant (diésel, essence ou GPL) augmentera chaque année (fourni par le régulateur national ou les statistiques énergétiques nationales)
B18: Hausse annuelle du prix de l’électricité | E18: 0 | F18: taux auquel le prix de l’électricité fournie par le réseau augmentera chaque année (fourni par l'organe national de règlement de l'électricité ou le service public d'électricité)
B20: Redevance sur l'eau (supplément pour les droits d'utilisation de l'eau) | F20: =E8 & " per m³" -> FCFA per m³ | G20: le prix de l'eau par m3 déterminé par le gouvernement et les autorités locales pour l'utilisation des ressources en eau partagées avec leurs propres systèmes de pompage
B22: Quantité totale maximum d'eau pompée par jour | E22: 70 | F22: m³ par jour | G22: (calculé dans PRÉSERVER L'EAU - Outil de gestion des besoins en eau ou communiqué par le fournisseur de la pompe)
B24: Revenu : Bénéfice brut par an | E24: 1418478 | F24: =E8 &" per year" -> FCFA per year | G24: (calculé dans FINANCER - Outil d'analyse de l'exploitation agricole ou à partir de sa propre comptabilité)
B26: Proportion du bénéfice à investir | E26: 1 | F26: du bénéfice mis à disposition pour l'investissement dans le système de pompage de l'eau
B30: Hypotheses de couts pour: | D30: Système d'irrigation à énergie solaire
E33: ="Prix en "& E8 -> Prix en FCFA | G33: Durée de vie des composants
C34: Panneaux solaires | E34: 2310000 | G34: 20 | H34: années
C35: structure portante | H35: années
C36: Unité de contrôle | E36: 301250 | G36: 5 | H36: années
B37: Coûts d’investissement initiaux | C37: Pompe | E37: 1060000 | G37: 7 | H37: années
C38: Câbles/canalisations | E38: 129000 | G38: 5 | H38: années
C39: Réservoir d'eau | E39: 331370 | F39: =IF($E$8="","",$E$8) -> FCFA | G39: 20 | H39: années
C40: Système d'irrigation | E40: 482000 | F40: FCFA | G40: 5 | H40: années
C41: Forage | F41: FCFA | G41: Dépendance de haute qualité!
C42: Installation | E42: 150000 | F42: FCFA
C43: D'autres coûts | E43: 90000 | F43: FCFA | G43: Subvention
C44: Total des coûts | E44: =SUM(E34:E43)-J44 -> 4853620 | F44: FCFA | G44: Montant de la subvention sur capital | K44: =E8 -> FCFA
B47: Les coûts de fonctionnement | C47: Frais de maintenance par an: | E47: 30000
C48: Coûts d’exploitation par an : | F48: =IF($E$8="","",$E$8) -> FCFA
C50: Total des coûts par an : | E50: =SUM(E46:E48) -> 30000 | F50: =IF($E$8="","",$E$8) -> FCFA
C53: Montant du prêt | F53: =IF($E$8="","",$E$8) -> FCFA
B54: Prêt | C54: Taux d'intérêt
C55: Durée d'investissement | F55: ans
C56: Nom de la banque
B60: Hypotheses de couts pour: | D60: Système d'irrigation alimenté par le réseau électrique
J62: CO2 - Emissions par an:
E63: ="Prix en "& E8 -> Prix en FCFA | G63: Durée de vie des composants | J63: =J66*J83 -> 0 | K63: kg/an
C64: Onduleur (si pompe CC) | H64: années | I64: facteur d'émission:
C65: Unité de commande | H65: années | I65: Ajouter le facteur d'émissions du réseau électrique
B66: Coûts d’investissement initiaux | C66: Pompe | E66: 1000000 | G66: 5 | H66: années | K66: kgCO2/kWh
C67: Câbles/canalisations | E67: 110000 | G67: 5 | H67: années | I67: Facteur d'émissions du réseau électrique pour les pays:
C68: reservoir d’eau | E68: 331370 | F68: =IF($E$8="","",$E$8) -> FCFA | G68: 20 | H68: années | I68: https://ecometrica.com/assets/Electricity-specific-emission-factors-for-grid-electricity.pdf
C69: Système d’irrigation | E69: 482000 | F69: FCFA | G69: 5 | H69: années
C70: Forage | F70: FCFA | G70: Dépendance de haute qualité!
C71: Installation | E71: 100000 | F71: FCFA
C72: Autres coûts | E72: 35000 | F72: FCFA | G72: Subvention
C73: Total des coûts | E73: =SUM(E64:E72)-J73 -> 2058370 | F73: FCFA | G73: Montant de la subvention sur capital | K73: =E8 -> FCFA
G76: Hypothèses coûts de raccordement de l'électricité
C77: Couts de l'électricité par an: | E77: =J86 -> 189383.5616 | F77: =IF($E$8="","",$E$8) -> FCFA
B78: Les coûts de fonctionnement | C78: Frais de maintenance par an: | E78: 35000 | F78: =IF($E$8="","",$E$8) -> FCFA | G78: Puissance appelée par la pompe: | J78: 2 | K78: kW
C79: Coûts d’exploitation par an : | F79: =IF($E$8="","",$E$8) -> FCFA | G79: Besoins quotidiens en eau: | J79: =E22 -> 70 | K79: m³/jour
G80: Débit volumique m³ / heure: | J80: 11.68 | K80: m³/heure
C81: Cout total par an: | E81: =SUM(E77:E79) -> 224383.5616 | F81: =IF($E$8="","",$E$8) -> FCFA | G81: kWh nécessaires par jour: | J81: =(J79/J80)*J78 -> 11.98630137 | K81: kWh
G82: Jours d'irrigation annuels: | J82: 200 | K82: days/ans
G83: kWh nécessaires par an: | J83: =J82*J81 -> 2397.260274 | K83: kWh
G84: Coût kWh: | J84: 79 | K84: =IF($E$8="","",$E$8) & "/kWh" -> FCFA/kWh
C85: Montant du prêt | F85: =IF($E$8="","",$E$8) -> FCFA | G85: Frais d'abonnement mensuels | K85: =IF($E$8="","",$E$8) & "/month" -> FCFA/month
B86: Prêt | C86: Taux d'intérêt | G86: Coût de l'électricité par an: | J86: =(J84*J83)+(J85*12) -> 189383.5616 | K86: =E8 -> FCFA
C87: Durée d'investissement | F87: ans
C88: Nom de la banque
B92: Hypotheses de couts pour: | D92: Système d'irrigation à generateur diesel
J94: CO2 - Emissions par an:
E95: ="Prix en "& E8 -> Prix en FCFA | G95: Durée de vie des composants | I95: Diesel | J95: =VLOOKUP(I95,I97:J99,2,FALSE)*J115 -> 6441.438356 | K95: kg/year
C96: Génératrice | E96: 900000 | F96: =IF($E$8="","",$E$8) -> FCFA | G96: 3 | H96: années | I96: Facteur d'émission
B97: Coûts d’investissement initiaux | C97: Pompe | E97: 1000000 | F97: FCFA | G97: 5 | H97: années | I97: Diesel | J97: 2.687 | K97: kg de CO2/litre
C98: Câbles/canalisations | E98: 120000 | F98: FCFA | G98: 5 | H98: années | I98: Essence | J98: 2.31 | K98: kg de CO2/litre
C99: Reservoir d’eau | E99: 331370 | F99: FCFA | G99: 20 | H99: années | I99: GPL | J99: 1.52 | K99: kg de CO2/litre
C100: Système d’irrigation | E100: 482000 | F100: FCFA | G100: 5 | H100: années | I100: Source: | J100: https://www.gov.uk/government/publications/greenhouse-gas-reporting-conversion-factors-2018
C101: Forage | F101: FCFA | G101: Dépendance de haute qualité!
C102: Installation | E102: 120000 | F102: FCFA
C103: Autres coûts | E103: 50000 | F103: FCFA
C104: Total des coûts | E104: =SUM(E94:E103) -> 3003370 | F104: FCFA | G104: Subvention
G105: Montant de la subvention sur capital | K105: =E8 -> FCFA
C108: Cout du carburant par an: | E108: =J117 -> 1378424.658 | F108: =IF($E$8="","",$E$8) -> FCFA | G108: Hypothèses coûts du carburant
B109: Les coûts de fonctionnement | C109: Frais de maintenance par an: | E109: 65000 | F109: =IF($E$8="","",$E$8) -> FCFA
C110: Coûts d’exploitation par an : | F110: =IF($E$8="","",$E$8) -> FCFA | G110: Besoin en carburant du génerateur: | J110: 2 | K110: l/heure
G111: Besoins quotidiens en eau: | J111: =E22 -> 70 | K111: m³/jour
C112: Cout total par an: | E112: =SUM(E108:E110) -> 1443424.658 | F112: =IF($E$8="","",$E$8) -> FCFA | G112: Débit volumique m³ / heure: | J112: 11.68 | K112: m³/heure
G113: Carburant nécessaire par jour: | J113: =(J111/J112)*J110 -> 11.98630137 | K113: l/jour
G114: Jours d'irrigation annuels: | J114: 200 | K114: jours/an
G115: Carburant nécessaire par an: | J115: =J114*J113 -> 2397.260274 | K115: l/an
C116: Montant du prêt | F116: =IF($E$8="","",$E$8) -> FCFA | G116: Coût Carburant | J116: 575 | K116: =IF($E$8="","",$E$8) & "/l" -> FCFA/l
B117: Prêt | C117: Taux d'intérêt | G117: Coût du carburant par an: | J117: =J116*J115 -> 1378424.658 | K117: =IF($E$8="","",$E$8) -> FCFA
C118: Durée d'investissement | F118: ans
C119: Nom de la banque

Sheet Output
G1: INVESTIR– Outil de calcul de reboursement
G3: This OUTPUT sheet summarises the results as per the entries in the afore completed INPUT sheet. | H3: La feuille RÉSULTATS résume les résultats tirés des valeurs saiSPIS dans la feuille précédente.
B5: Hypothèses de base
B6: Total des besoins en eau par jour | E6: =Input!E22 & " m³ per day" -> 70 m³ per day | H6: Note:
H7: Si "non réalisable" est affiché pour le taux de rendement interne (IRR), sa valeur est inférieure à 0%.
B8: Total des recettes par an | E8: =TEXT(Input!E24,"#") &" " & Input!E8 -> 1418478 FCFA
B10: Montant total de l’investissement par année | E10: =TEXT(Input!E24,"#")*Input!E26 &" " & Input!E8 -> 1418478 FCFA | H10: Si une valeur actuelle nette (VAN) négative (-) est affichée, alors l'investissement n'est pas réalisable.
B12: Inflation | E12: =Input!E10 -> 0.03
H13: Si "pas de retour" est affiché pour les années de restitution, les dépenses en capital et / ou d'exploitation du système dépassent les revenus sur les 25 ans
B14: Taux d’actualisation | E14: =Input!E12 -> 0.08
B16: Hausse annuelle de la marge de benefice | E16: =Input!E14 -> 0.1
B18: Hausse annuelle du prix du carburant | E18: =Input!E16 -> 0.04
B20: ="Analysis for " &Input!D30 -> Analysis for Système d'irrigation à énergie solaire | H20: ="Analysis for " &Input!D60 -> Analysis for Système d'irrigation alimenté par le réseau électrique | N20: ="Analysis for " &Input!D92 -> Analysis for Système d'irrigation à generateur diesel
B21: Taux de rendement interne (IRR sur 25 ans) | E21: =IFERROR('Cashflow Calculation'!C52,"not feasible") -> 0.3573803067 | H21: Taux de rendement interne (IRR 25 ans) | K21: =IFERROR('Cashflow Calculation'!C90,"not feasible") -> 0.651614561 | N21: Taux de rendement interne (IRR 25ans) | Q21: =IFERROR('Cashflow Calculation'!C156,"not feasible") -> 0.1019753923
B23: Valeur actuelle nette (VAN) sur 25ans | E23: =TEXT('Cashflow Calculation'!C51,"#") & " " &Input!E8 -> 204545969 FCFA | H23: Valeur actuelle nette (VAN) | K23: =TEXT('Cashflow Calculation'!C89,"#") &" " &Input!E8 -> 222472064 FCFA | N23: Valeur actuelle nette (VAN) | Q23: =TEXT('Cashflow Calculation'!C155,"#") &" " &Input!E8 -> 12881106 FCFA
B25: Flux de trésorerie cumulés après 25 ans | E25: =TEXT('Cashflow Calculation'!S187,"#") &" " &Input!E8 -> 116643745 FCFA | H25: Flux de trésorerie cumulés après 25 ans | K25: =TEXT('Cashflow Calculation'!S188,"#") &" " &Input!E8 -> 118161629 FCFA | N25: Flux de trésorerie cumulés après 25 ans | Q25: =TEXT('Cashflow Calculation'!S189,"#") &" " &Input!E8 -> 52418360 FCFA
B27: Coûts du cycle de vie du système (25 ans) | E27: =TEXT('Cashflow Calculation'!B46,"#") &" " &Input!E8 -> 22859395 FCFA | H27: Coûts du cycle de vie du système (25 ans) | K27: =TEXT('Cashflow Calculation'!B84,"#") &" " &Input!E8 -> 21341511 FCFA | N27: Coûts du cycle de vie du système (25 ans) | Q27: =TEXT('Cashflow Calculation'!B150,"#") &" " &Input!E8 -> 87084780 FCFA
B29: Années de remboursement | E29: ='Cashflow Calculation'!B44 -> 4 | H29: Années de remboursement | K29: ='Cashflow Calculation'!B82 -> 2 | N29: Années de remboursement | Q29: ='Cashflow Calculation'!B148 -> 14
B31: Banque de crédit : | E31: =IF(Input!E56=0,"",Input!E56) ->  | H31: Banque de crédit : | K31: =IF(Input!E88=0,"",Input!E88) ->  | N31: Banque de crédit : | Q31: =IF(Input!E119=0,"",Input!E119) -> 
B33: Remboursement annuel du prêt : | E33: =TEXT('Loan Repayment Solar'!Scheduled_Monthly_Payment,"#.##0") &" " &Input!E8 -> .0 FCFA | H33: Remboursement annuel du prêt : | K33: =TEXT('Loan Repayment Grid'!Scheduled_Monthly_Payment,"#.##0") &" " &Input!E8 -> .0 FCFA | N33: Remboursement annuel du prêt : | Q33: =TEXT('Loan Repayment Diesel'!Scheduled_Monthly_Payment,"#.##0") &" " &Input!E8 -> .0 FCFA
H35: CO2 Emissions par an | K35: =Input!J63 -> 0 | L35: =Input!K63 -> kg/an | N35: CO2 Emissions par an: | Q35: =Input!J95 -> 6441.438356 | R35: =Input!K95 -> kg/year

Sheet Translation Sheet
A2: TRANSLATION SHEET
A4: Introduction
A5: Certains textes utilisés dans cet outil sont utilisés dans des formules qui utilisent la reconnaissance de texte. Afin de préserver l'intégrité et la fonctionnalité de la formule, ces textes resteront en anglais. Une liste de ces textes et leur traduction correspondante est compilée ci-dessous :
A6: Texte en Anglais | B6: Feuille | C6: Texte en Francais
A7: Accumulated Income | B7: Output | C7: Revenu accumulé
A8: Average annual water cost in | B8: Output | C8: Coût annuel moyen de l'eau en
A9: Comparative accumulated cash flow over first 10 years in | B9: Output | C9: Flux de trésorerie cumulés comparatifs sur les 10 premières années en
A10: Comparative accumulated income and system costs over first 10 years in | B10: Output | C10: Comparaison du revenu accumulé et des coûts des systèmes sur les 10 premières années en
A11: Comparative accumulated income and system costs over first 25 years in | B11: Output | C11: Comparaison du revenu accumulé et des coûts des systèmes au cours des 25 premières années en
A12: not feasible | B12: Output | C12: irréalisable
A13: per m³ | B13: Input | C13: par m³
A14: per year | B14: Input | C14: par an
A15: years | B15: Output | C15: ans
A16: 5 years | B16: Output | C16: 5 ans
A17: 10 years | B17: Output | C17: 10 ans
A18: 25 years | B18: Output | C18: 25 ans
A19: =IF($E$8="","",$E$8) & "/month" -> /month | B19: Input | C19: /mois
A20: =Input!A36 & " m³ per day" -> m³ per day | B20: Output | C20: m³ par jour
A21: Analysis for | B21: Output | C21: Analyse pour
A22: kg/year | B22: Output | C22: kg/an

Sheet Cashflow Calculation (hidden)
A1: Annual profit margin increase: | B1: =Input!E14 -> 0.1
A2: Inflation rate: | B2: =Input!E10 -> 0.03
A3: Income-Gross farm profit/year: | B3: =Input!E24 -> 1418478 | C3: =IF(Input!$E$8="","",Input!$E$8) -> FCFA
A4: Percentage profit to invest | B4: =Input!E26 -> 1
A5: Fuel price increase/year: | B5: =Input!E16 -> 0.04
A6: Electricity price increase/year: | B6: =Input!E18 -> 0
A7: Discount rate | B7: =Input!E12 -> 0.08
A8: Water levy | B8: =Input!E20 -> 0 | C8: =IF(Input!$E$8="","",Input!$E$8) -> FCFA
A9: Total water need per day | B9: =Input!E22 -> 70 | C9: =Input!F22 -> m³ par jour
C11: year | D11: 0 | E11: 1 | F11: 2 | G11: 3 | H11: 4 | I11: 5 | J11: 6 | K11: 7 | L11: 8 | M11: 9 | N11: 10 | O11: 11 | P11: 12 | Q11: 13 | R11: 14 | S11: 15 | T11: 16 | U11: 17 | V11: 18 | W11: 19 | X11: 20 | Y11: 21 | Z11: 22 | AA11: 23 | AB11: 24 | AC11: 25
C12: =IF(Input!$E$8="","",Input!$E$8) -> FCFA | D12: 0 | E12: =B3*B4 -> 1418478 | F12: =E12*(1+(1*$B$1)) -> 1560325.8 | G12: =F12*(1+(1*$B$1)) -> 1716358.38 | H12: =G12*(1+(1*$B$1)) -> 1887994.218 | I12: 2076793.64 | J12: 2284473.004 | K12: 2512920.304 | L12: 2764212.335 | M12: 3040633.568 | N12: 3344696.925 | O12: 3679166.617 | P12: 4047083.279 | Q12: 4451791.607 | R12: 4896970.768 | S12: 5386667.844 | T12: 5925334.629 | U12: 6517868.092 | V12: 7169654.901 | W12: 7886620.391 | X12: 8675282.43 | Y12: 9542810.673 | Z12: 10497091.74 | AA12: 11546800.91 | AB12: 12701481.01 | AC12: 13971629.11
A13: Capital investment per year:
A14: TRUE | C14: accumulated | D14: =IF($A$14=TRUE,D15,NA()) -> 0 | E14: =IF($A$14=TRUE,E15,NA()) -> 1418478 | F14: =IF($A$14=TRUE,F15,NA()) -> 2978803.8 | G14: 4695162.18 | H14: 6583156.398 | I14: 8659950.038 | J14: 10944423.04 | K14: 13457343.35 | L14: 16221555.68 | M14: 19262189.25 | N14: 22606886.17 | O14: 26286052.79 | P14: 30333136.07 | Q14: 34784927.68 | R14: 39681898.44 | S14: 45068566.29 | T14: 50993900.92 | U14: 57511769.01 | V14: 64681423.91 | W14: 72568044.3 | X14: 81243326.73 | Y14: 90786137.4 | Z14: 101283229.1 | AA14: 112830030.1 | AB14: 125531511.1 | AC14: 139503140.2
D15: 0 | E15: =SUM(E12) -> 1418478 | F15: =SUM($E$12:F12) -> 2978803.8 | G15: =SUM($E$12:G12) -> 4695162.18 | H15: =SUM($E$12:H12) -> 6583156.398 | I15: =SUM($E$12:I12) -> 8659950.038 | J15: =SUM($E$12:J12) -> 10944423.04 | K15: =SUM($E$12:K12) -> 13457343.35 | L15: =SUM($E$12:L12) -> 16221555.68 | M15: =SUM($E$12:M12) -> 19262189.25 | N15: =SUM($E$12:N12) -> 22606886.17 | O15: =SUM($E$12:O12) -> 26286052.79 | P15: =SUM($E$12:P12) -> 30333136.07 | Q15: =SUM($E$12:Q12) -> 34784927.68 | R15: =SUM($E$12:R12) -> 39681898.44 | S15: =SUM($E$12:S12) -> 45068566.29 | T15: =SUM($E$12:T12) -> 50993900.92 | U15: =SUM($E$12:U12) -> 57511769.01 | V15: =SUM($E$12:V12) -> 64681423.91 | W15: =SUM($E$12:W12) -> 72568044.3 | X15: =SUM($E$12:X12) -> 81243326.73 | Y15: =SUM($E$12:Y12) -> 90786137.4 | Z15: =SUM($E$12:Z12) -> 101283229.1 | AA15: =SUM($E$12:AA12) -> 112830030.1 | AB15: =SUM($E$12:AB12) -> 125531511.1 | AC15: =SUM($E$12:AC12) -> 139503140.2
A21: =Input!D30 -> Système d'irrigation à énergie solaire
A24: =Input!C34 -> Panneaux solaires | C24: =IF(Input!$E$8="","",Input!$E$8) -> FCFA | D24: =Input!E34 -> 2310000 | E24: =IF(MOD(E11,Input!$G$34)=0,($D$24*(1+$B$2)^E11),0) -> 0 | F24: =IF(MOD(F11,Input!$G$34)=0,($D$24*(1+$B$2)^F11),0) -> 0 | G24: =IF(MOD(G11,Input!$G$34)=0,($D$24*(1+$B$2)^G11),0) -> 0 | H24: =IF(MOD(H11,Input!$G$34)=0,($D$24*(1+$B$2)^H11),0) -> 0 | I24: =IF(MOD(I11,Input!$G$34)=0,($D$24*(1+$B$2)^I11),0) -> 0 | J24: =IF(MOD(J11,Input!$G$34)=0,($D$24*(1+$B$2)^J11),0) -> 0 | K24: =IF(MOD(K11,Input!$G$34)=0,($D$24*(1+$B$2)^K11),0) -> 0 | L24: =IF(MOD(L11,Input!$G$34)=0,($D$24*(1+$B$2)^L11),0) -> 0 | M24: =IF(MOD(M11,Input!$G$34)=0,($D$24*(1+$B$2)^M11),0) -> 0 | N24: =IF(MOD(N11,Input!$G$34)=0,($D$24*(1+$B$2)^N11),0) -> 0 | O24: =IF(MOD(O11,Input!$G$34)=0,($D$24*(1+$B$2)^O11),0) -> 0 | P24: =IF(MOD(P11,Input!$G$34)=0,($D$24*(1+$B$2)^P11),0) -> 0 | Q24: =IF(MOD(Q11,Input!$G$34)=0,($D$24*(1+$B$2)^Q11),0) -> 0 | R24: =IF(MOD(R11,Input!$G$34)=0,($D$24*(1+$B$2)^R11),0) -> 0 | S24: =IF(MOD(S11,Input!$G$34)=0,($D$24*(1+$B$2)^S11),0) -> 0 | T24: =IF(MOD(T11,Input!$G$34)=0,($D$24*(1+$B$2)^T11),0) -> 0 | U24: =IF(MOD(U11,Input!$G$34)=0,($D$24*(1+$B$2)^U11),0) -> 0 | V24: =IF(MOD(V11,Input!$G$34)=0,($D$24*(1+$B$2)^V11),0) -> 0 | W24: =IF(MOD(W11,Input!$G$34)=0,($D$24*(1+$B$2)^W11),0) -> 0 | X24: =IF(MOD(X11,Input!$G$34)=0,($D$24*(1+$B$2)^X11),0) -> 4172116.952 | Y24: =IF(MOD(Y11,Input!$G$34)=0,($D$24*(1+$B$2)^Y11),0) -> 0 | Z24: =IF(MOD(Z11,Input!$G$34)=0,($D$24*(1+$B$2)^Z11),0) -> 0 | AA24: =IF(MOD(AA11,Input!$G$34)=0,($D$24*(1+$B$2)^AA11),0) -> 0 | AB24: =IF(MOD(AB11,Input!$G$34)=0,($D$24*(1+$B$2)^AB11),0) -> 0 | AC24: =IF(MOD(AC11,Input!$G$34)=0,($D$24*(1+$B$2)^AC11),0) -> 0
A25: =Input!C36 -> Unité de contrôle | C25: =IF(Input!$E$8="","",Input!$E$8) -> FCFA | D25: =Input!E36 -> 301250 | E25: =IF(MOD(E11,Input!$G$36)=0,($D$25*(1+$B$2)^E11),0) -> 0 | F25: =IF(MOD(F11,Input!$G$36)=0,($D$25*(1+$B$2)^F11),0) -> 0 | G25: =IF(MOD(G11,Input!$G$36)=0,($D$25*(1+$B$2)^G11),0) -> 0 | H25: =IF(MOD(H11,Input!$G$36)=0,($D$25*(1+$B$2)^H11),0) -> 0 | I25: =IF(MOD(I11,Input!$G$36)=0,($D$25*(1+$B$2)^I11),0) -> 349231.3149 | J25: =IF(MOD(J11,Input!$G$36)=0,($D$25*(1+$B$2)^J11),0) -> 0 | K25: =IF(MOD(K11,Input!$G$36)=0,($D$25*(1+$B$2)^K11),0) -> 0 | L25: =IF(MOD(L11,Input!$G$36)=0,($D$25*(1+$B$2)^L11),0) -> 0 | M25: =IF(MOD(M11,Input!$G$36)=0,($D$25*(1+$B$2)^M11),0) -> 0 | N25: =IF(MOD(N11,Input!$G$36)=0,($D$25*(1+$B$2)^N11),0) -> 404854.8093 | O25: =IF(MOD(O11,Input!$G$36)=0,($D$25*(1+$B$2)^O11),0) -> 0 | P25: =IF(MOD(P11,Input!$G$36)=0,($D$25*(1+$B$2)^P11),0) -> 0 | Q25: =IF(MOD(Q11,Input!$G$36)=0,($D$25*(1+$B$2)^Q11),0) -> 0 | R25: =IF(MOD(R11,Input!$G$36)=0,($D$25*(1+$B$2)^R11),0) -> 0 | S25: =IF(MOD(S11,Input!$G$36)=0,($D$25*(1+$B$2)^S11),0) -> 469337.6843 | T25: =IF(MOD(T11,Input!$G$36)=0,($D$25*(1+$B$2)^T11),0) -> 0 | U25: =IF(MOD(U11,Input!$G$36)=0,($D$25*(1+$B$2)^U11),0) -> 0 | V25: =IF(MOD(V11,Input!$G$36)=0,($D$25*(1+$B$2)^V11),0) -> 0 | W25: =IF(MOD(W11,Input!$G$36)=0,($D$25*(1+$B$2)^W11),0) -> 0 | X25: =IF(MOD(X11,Input!$G$36)=0,($D$25*(1+$B$2)^X11),0) -> 544091.0094 | Y25: =IF(MOD(Y11,Input!$G$36)=0,($D$25*(1+$B$2)^Y11),0) -> 0 | Z25: =IF(MOD(Z11,Input!$G$36)=0,($D$25*(1+$B$2)^Z11),0) -> 0 | AA25: =IF(MOD(AA11,Input!$G$36)=0,($D$25*(1+$B$2)^AA11),0) -> 0 | AB25: =IF(MOD(AB11,Input!$G$36)=0,($D$25*(1+$B$2)^AB11),0) -> 0 | AC25: =IF(MOD(AC11,Input!$G$36)=0,($D$25*(1+$B$2)^AC11),0) -> 630750.6013
A26: =Input!C37 -> Pompe | C26: =IF(Input!$E$8="","",Input!$E$8) -> FCFA | D26: =Input!E37 -> 1060000 | E26: =IF(MOD(E11,Input!$G$37)=0,($D$26*(1+$B$2)^E11),0) -> 0 | F26: =IF(MOD(F11,Input!$G$37)=0,($D$26*(1+$B$2)^F11),0) -> 0 | G26: =IF(MOD(G11,Input!$G$37)=0,($D$26*(1+$B$2)^G11),0) -> 0 | H26: =IF(MOD(H11,Input!$G$37)=0,($D$26*(1+$B$2)^H11),0) -> 0 | I26: =IF(MOD(I11,Input!$G$37)=0,($D$26*(1+$B$2)^I11),0) -> 0 | J26: =IF(MOD(J11,Input!$G$37)=0,($D$26*(1+$B$2)^J11),0) -> 0 | K26: =IF(MOD(K11,Input!$G$37)=0,($D$26*(1+$B$2)^K11),0) -> 1303666.297 | L26: =IF(MOD(L11,Input!$G$37)=0,($D$26*(1+$B$2)^L11),0) -> 0 | M26: =IF(MOD(M11,Input!$G$37)=0,($D$26*(1+$B$2)^M11),0) -> 0 | N26: =IF(MOD(N11,Input!$G$37)=0,($D$26*(1+$B$2)^N11),0) -> 0 | O26: =IF(MOD(O11,Input!$G$37)=0,($D$26*(1+$B$2)^O11),0) -> 0 | P26: =IF(MOD(P11,Input!$G$37)=0,($D$26*(1+$B$2)^P11),0) -> 0 | Q26: =IF(MOD(Q11,Input!$G$37)=0,($D$26*(1+$B$2)^Q11),0) -> 0 | R26: =IF(MOD(R11,Input!$G$37)=0,($D$26*(1+$B$2)^R11),0) -> 1603345.108 | S26: =IF(MOD(S11,Input!$G$37)=0,($D$26*(1+$B$2)^S11),0) -> 0 | T26: =IF(MOD(T11,Input!$G$37)=0,($D$26*(1+$B$2)^T11),0) -> 0 | U26: =IF(MOD(U11,Input!$G$37)=0,($D$26*(1+$B$2)^U11),0) -> 0 | V26: =IF(MOD(V11,Input!$G$37)=0,($D$26*(1+$B$2)^V11),0) -> 0 | W26: =IF(MOD(W11,Input!$G$37)=0,($D$26*(1+$B$2)^W11),0) -> 0 | X26: =IF(MOD(X11,Input!$G$37)=0,($D$26*(1+$B$2)^X11),0) -> 0 | Y26: =IF(MOD(Y11,Input!$G$37)=0,($D$26*(1+$B$2)^Y11),0) -> 1971912.246 | Z26: =IF(MOD(Z11,Input!$G$37)=0,($D$26*(1+$B$2)^Z11),0) -> 0 | AA26: =IF(MOD(AA11,Input!$G$37)=0,($D$26*(1+$B$2)^AA11),0) -> 0 | AB26: =IF(MOD(AB11,Input!$G$37)=0,($D$26*(1+$B$2)^AB11),0) -> 0 | AC26: =IF(MOD(AC11,Input!$G$37)=0,($D$26*(1+$B$2)^AC11),0) -> 0
A27: Wires / tubes | C27: =IF(Input!$E$8="","",Input!$E$8) -> FCFA | D27: =Input!E38 -> 129000 | E27: =IF(MOD(E11,Input!$G$38)=0,($D$27*(1+$B$2)^E11),0) -> 0 | F27: =IF(MOD(F11,Input!$G$38)=0,($D$27*(1+$B$2)^F11),0) -> 0 | G27: =IF(MOD(G11,Input!$G$38)=0,($D$27*(1+$B$2)^G11),0) -> 0 | H27: =IF(MOD(H11,Input!$G$38)=0,($D$27*(1+$B$2)^H11),0) -> 0 | I27: =IF(MOD(I11,Input!$G$38)=0,($D$27*(1+$B$2)^I11),0) -> 149546.3556 | J27: =IF(MOD(J11,Input!$G$38)=0,($D$27*(1+$B$2)^J11),0) -> 0 | K27: =IF(MOD(K11,Input!$G$38)=0,($D$27*(1+$B$2)^K11),0) -> 0 | L27: =IF(MOD(L11,Input!$G$38)=0,($D$27*(1+$B$2)^L11),0) -> 0 | M27: =IF(MOD(M11,Input!$G$38)=0,($D$27*(1+$B$2)^M11),0) -> 0 | N27: =IF(MOD(N11,Input!$G$38)=0,($D$27*(1+$B$2)^N11),0) -> 173365.2129 | O27: =IF(MOD(O11,Input!$G$38)=0,($D$27*(1+$B$2)^O11),0) -> 0 | P27: =IF(MOD(P11,Input!$G$38)=0,($D$27*(1+$B$2)^P11),0) -> 0 | Q27: =IF(MOD(Q11,Input!$G$38)=0,($D$27*(1+$B$2)^Q11),0) -> 0 | R27: =IF(MOD(R11,Input!$G$38)=0,($D$27*(1+$B$2)^R11),0) -> 0 | S27: =IF(MOD(S11,Input!$G$38)=0,($D$27*(1+$B$2)^S11),0) -> 200977.7967 | T27: =IF(MOD(T11,Input!$G$38)=0,($D$27*(1+$B$2)^T11),0) -> 0 | U27: =IF(MOD(U11,Input!$G$38)=0,($D$27*(1+$B$2)^U11),0) -> 0 | V27: =IF(MOD(V11,Input!$G$38)=0,($D$27*(1+$B$2)^V11),0) -> 0 | W27: =IF(MOD(W11,Input!$G$38)=0,($D$27*(1+$B$2)^W11),0) -> 0 | X27: =IF(MOD(X11,Input!$G$38)=0,($D$27*(1+$B$2)^X11),0) -> 232988.3493 | Y27: =IF(MOD(Y11,Input!$G$38)=0,($D$27*(1+$B$2)^Y11),0) -> 0 | Z27: =IF(MOD(Z11,Input!$G$38)=0,($D$27*(1+$B$2)^Z11),0) -> 0 | AA27: =IF(MOD(AA11,Input!$G$38)=0,($D$27*(1+$B$2)^AA11),0) -> 0 | AB27: =IF(MOD(AB11,Input!$G$38)=0,($D$27*(1+$B$2)^AB11),0) -> 0 | AC27: =IF(MOD(AC11,Input!$G$38)=0,($D$27*(1+$B$2)^AC11),0) -> 270097.3529
A28: Water storage | C28: =IF(Input!$E$8="","",Input!$E$8) -> FCFA | D28: =Input!E39 -> 331370 | E28: =IF(MOD(E11,Input!$G$39)=0,($D$28*(1+$B$2)^E11),0) -> 0 | F28: =IF(MOD(F11,Input!$G$39)=0,($D$28*(1+$B$2)^F11),0) -> 0 | G28: =IF(MOD(G11,Input!$G$39)=0,($D$28*(1+$B$2)^G11),0) -> 0 | H28: =IF(MOD(H11,Input!$G$39)=0,($D$28*(1+$B$2)^H11),0) -> 0 | I28: =IF(MOD(I11,Input!$G$39)=0,($D$28*(1+$B$2)^I11),0) -> 0 | J28: =IF(MOD(J11,Input!$G$39)=0,($D$28*(1+$B$2)^J11),0) -> 0 | K28: =IF(MOD(K11,Input!$G$39)=0,($D$28*(1+$B$2)^K11),0) -> 0 | L28: =IF(MOD(L11,Input!$G$39)=0,($D$28*(1+$B$2)^L11),0) -> 0 | M28: =IF(MOD(M11,Input!$G$39)=0,($D$28*(1+$B$2)^M11),0) -> 0 | N28: =IF(MOD(N11,Input!$G$39)=0,($D$28*(1+$B$2)^N11),0) -> 0 | O28: =IF(MOD(O11,Input!$G$39)=0,($D$28*(1+$B$2)^O11),0) -> 0 | P28: =IF(MOD(P11,Input!$G$39)=0,($D$28*(1+$B$2)^P11),0) -> 0 | Q28: =IF(MOD(Q11,Input!$G$39)=0,($D$28*(1+$B$2)^Q11),0) -> 0 | R28: =IF(MOD(R11,Input!$G$39)=0,($D$28*(1+$B$2)^R11),0) -> 0 | S28: =IF(MOD(S11,Input!$G$39)=0,($D$28*(1+$B$2)^S11),0) -> 0 | T28: =IF(MOD(T11,Input!$G$39)=0,($D$28*(1+$B$2)^T11),0) -> 0 | U28: =IF(MOD(U11,Input!$G$39)=0,($D$28*(1+$B$2)^U11),0) -> 0 | V28: =IF(MOD(V11,Input!$G$39)=0,($D$28*(1+$B$2)^V11),0) -> 0 | W28: =IF(MOD(W11,Input!$G$39)=0,($D$28*(1+$B$2)^W11),0) -> 0 | X28: =IF(MOD(X11,Input!$G$39)=0,($D$28*(1+$B$2)^X11),0) -> 598491.0798 | Y28: =IF(MOD(Y11,Input!$G$39)=0,($D$28*(1+$B$2)^Y11),0) -> 0 | Z28: =IF(MOD(Z11,Input!$G$39)=0,($D$28*(1+$B$2)^Z11),0) -> 0 | AA28: =IF(MOD(AA11,Input!$G$39)=0,($D$28*(1+$B$2)^AA11),0) -> 0 | AB28: =IF(MOD(AB11,Input!$G$39)=0,($D$28*(1+$B$2)^AB11),0) -> 0 | AC28: =IF(MOD(AC11,Input!$G$39)=0,($D$28*(1+$B$2)^AC11),0) -> 0
A29: Irrigation system | C29: =IF(Input!$E$8="","",Input!$E$8) -> FCFA | D29: =Input!E40 -> 482000 | E29: =IF(MOD(E11,Input!$G$40)=0,($D$29*(1+$B$2)^E11),0) -> 0 | F29: =IF(MOD(F11,Input!$G$40)=0,($D$29*(1+$B$2)^F11),0) -> 0 | G29: =IF(MOD(G11,Input!$G$40)=0,($D$29*(1+$B$2)^G11),0) -> 0 | H29: =IF(MOD(H11,Input!$G$40)=0,($D$29*(1+$B$2)^H11),0) -> 0 | I29: =IF(MOD(I11,Input!$G$40)=0,($D$29*(1+$B$2)^I11),0) -> 558770.1038 | J29: =IF(MOD(J11,Input!$G$40)=0,($D$29*(1+$B$2)^J11),0) -> 0 | K29: =IF(MOD(K11,Input!$G$40)=0,($D$29*(1+$B$2)^K11),0) -> 0 | L29: =IF(MOD(L11,Input!$G$40)=0,($D$29*(1+$B$2)^L11),0) -> 0 | M29: =IF(MOD(M11,Input!$G$40)=0,($D$29*(1+$B$2)^M11),0) -> 0 | N29: =IF(MOD(N11,Input!$G$40)=0,($D$29*(1+$B$2)^N11),0) -> 647767.6948 | O29: =IF(MOD(O11,Input!$G$40)=0,($D$29*(1+$B$2)^O11),0) -> 0 | P29: =IF(MOD(P11,Input!$G$40)=0,($D$29*(1+$B$2)^P11),0) -> 0 | Q29: =IF(MOD(Q11,Input!$G$40)=0,($D$29*(1+$B$2)^Q11),0) -> 0 | R29: =IF(MOD(R11,Input!$G$40)=0,($D$29*(1+$B$2)^R11),0) -> 0 | S29: =IF(MOD(S11,Input!$G$40)=0,($D$29*(1+$B$2)^S11),0) -> 750940.2948 | T29: =IF(MOD(T11,Input!$G$40)=0,($D$29*(1+$B$2)^T11),0) -> 0 | U29: =IF(MOD(U11,Input!$G$40)=0,($D$29*(1+$B$2)^U11),0) -> 0 | V29: =IF(MOD(V11,Input!$G$40)=0,($D$29*(1+$B$2)^V11),0) -> 0 | W29: =IF(MOD(W11,Input!$G$40)=0,($D$29*(1+$B$2)^W11),0) -> 0 | X29: =IF(MOD(X11,Input!$G$40)=0,($D$29*(1+$B$2)^X11),0) -> 870545.6151 | Y29: =IF(MOD(Y11,Input!$G$40)=0,($D$29*(1+$B$2)^Y11),0) -> 0 | Z29: =IF(MOD(Z11,Input!$G$40)=0,($D$29*(1+$B$2)^Z11),0) -> 0 | AA29: =IF(MOD(AA11,Input!$G$40)=0,($D$29*(1+$B$2)^AA11),0) -> 0 | AB29: =IF(MOD(AB11,Input!$G$40)=0,($D$29*(1+$B$2)^AB11),0) -> 0 | AC29: =IF(MOD(AC11,Input!$G$40)=0,($D$29*(1+$B$2)^AC11),0) -> 1009200.962
A30: Drilling | C30: =IF(Input!$E$8="","",Input!$E$8) -> FCFA | D30: =Input!E41 -> 0
A31: Installation | C31: =IF(Input!$E$8="","",Input!$E$8) -> FCFA | D31: =Input!E42 -> 150000
A32: Other Costs | C32: =IF(Input!$E$8="","",Input!$E$8) -> FCFA | D32: =Input!E43 -> 90000
A33: Loan Repayment | C33: =IF(Input!$E$8="","",Input!$E$8) -> FCFA | D33: 0 | E33: =IF(E11<='Loan Repayment Solar'!Loan_Years,'Loan Repayment Solar'!Scheduled_Monthly_Payment,0) -> 0 | F33: =IF(F11<='Loan Repayment Solar'!Loan_Years,'Loan Repayment Solar'!Scheduled_Monthly_Payment,0) -> 0 | G33: =IF(G11<='Loan Repayment Solar'!Loan_Years,'Loan Repayment Solar'!Scheduled_Monthly_Payment,0) -> 0 | H33: =IF(H11<='Loan Repayment Solar'!Loan_Years,'Loan Repayment Solar'!Scheduled_Monthly_Payment,0) -> 0 | I33: =IF(I11<='Loan Repayment Solar'!Loan_Years,'Loan Repayment Solar'!Scheduled_Monthly_Payment,0) -> 0 | J33: =IF(J11<='Loan Repayment Solar'!Loan_Years,'Loan Repayment Solar'!Scheduled_Monthly_Payment,0) -> 0 | K33: =IF(K11<='Loan Repayment Solar'!Loan_Years,'Loan Repayment Solar'!Scheduled_Monthly_Payment,0) -> 0 | L33: =IF(L11<='Loan Repayment Solar'!Loan_Years,'Loan Repayment Solar'!Scheduled_Monthly_Payment,0) -> 0 | M33: =IF(M11<='Loan Repayment Solar'!Loan_Years,'Loan Repayment Solar'!Scheduled_Monthly_Payment,0) -> 0 | N33: =IF(N11<='Loan Repayment Solar'!Loan_Years,'Loan Repayment Solar'!Scheduled_Monthly_Payment,0) -> 0 | O33: =IF(O11<='Loan Repayment Solar'!Loan_Years,'Loan Repayment Solar'!Scheduled_Monthly_Payment,0) -> 0 | P33: =IF(P11<='Loan Repayment Solar'!Loan_Years,'Loan Repayment Solar'!Scheduled_Monthly_Payment,0) -> 0 | Q33: =IF(Q11<='Loan Repayment Solar'!Loan_Years,'Loan Repayment Solar'!Scheduled_Monthly_Payment,0) -> 0 | R33: =IF(R11<='Loan Repayment Solar'!Loan_Years,'Loan Repayment Solar'!Scheduled_Monthly_Payment,0) -> 0 | S33: =IF(S11<='Loan Repayment Solar'!Loan_Years,'Loan Repayment Solar'!Scheduled_Monthly_Payment,0) -> 0 | T33: =IF(T11<='Loan Repayment Solar'!Loan_Years,'Loan Repayment Solar'!Scheduled_Monthly_Payment,0) -> 0 | U33: =IF(U11<='Loan Repayment Solar'!Loan_Years,'Loan Repayment Solar'!Scheduled_Monthly_Payment,0) -> 0 | V33: =IF(V11<='Loan Repayment Solar'!Loan_Years,'Loan Repayment Solar'!Scheduled_Monthly_Payment,0) -> 0 | W33: =IF(W11<='Loan Repayment Solar'!Loan_Years,'Loan Repayment Solar'!Scheduled_Monthly_Payment,0) -> 0 | X33: =IF(X11<='Loan Repayment Solar'!Loan_Years,'Loan Repayment Solar'!Scheduled_Monthly_Payment,0) -> 0 | Y33: =IF(Y11<='Loan Repayment Solar'!Loan_Years,'Loan Repayment Solar'!Scheduled_Monthly_Payment,0) -> 0 | Z33: =IF(Z11<='Loan Repayment Solar'!Loan_Years,'Loan Repayment Solar'!Scheduled_Monthly_Payment,0) -> 0 | AA33: =IF(AA11<='Loan Repayment Solar'!Loan_Years,'Loan Repayment Solar'!Scheduled_Monthly_Payment,0) -> 0 | AB33: =IF(AB11<='Loan Repayment Solar'!Loan_Years,'Loan Repayment Solar'!Scheduled_Monthly_Payment,0) -> 0 | AC33: =IF(AC11<='Loan Repayment Solar'!Loan_Years,'Loan Repayment Solar'!Scheduled_Monthly_Payment,0) -> 0
A34: Energy costs (fuel or electricity): | C34: =IF(Input!$E$8="","",Input!$E$8) -> FCFA | D34: 0 | E34: =Input!E46 -> 0 | F34: =E34*(1+(1*$B$5)) -> 0 | G34: =F34*(1+(1*$B$5)) -> 0 | H34: 0 | I34: 0 | J34: 0 | K34: 0 | L34: 0 | M34: 0 | N34: 0 | O34: 0 | P34: 0 | Q34: 0 | R34: 0 | S34: 0 | T34: 0 | U34: 0 | V34: 0 | W34: 0 | X34: 0 | Y34: 0 | Z34: 0 | AA34: 0 | AB34: 0 | AC34: 0
A35: Operating Costs: | C35: =IF(Input!$E$8="","",Input!$E$8) -> FCFA | D35: 0 | E35: =SUM(Input!E47:E48) -> 30000 | F35: =E35*(1+(1*$B$2)) -> 30900 | G35: 31827 | H35: 32781.81 | I35: 33765.2643 | J35: 34778.22223 | K35: 35821.5689 | L35: 36896.21596 | M35: 38003.10244 | N35: 39143.19551 | O35: 40317.49138 | P35: 41527.01612 | Q35: 42772.82661 | R35: 44056.0114 | S35: 45377.69175 | T35: 46739.0225 | U35: 48141.19317 | V35: 49585.42897 | W35: 51072.99184 | X35: 52605.18159 | Y35: 54183.33704 | Z35: 55808.83715 | AA35: 57483.10227 | AB35: 59207.59533 | AC35: 60983.82319
A36: Water levy | E36: =$B$8*$B$9 -> 0 | F36: =$B$8*$B$9 -> 0 | G36: 0 | H36: 0 | I36: 0 | J36: 0 | K36: 0 | L36: 0 | M36: 0 | N36: 0 | O36: 0 | P36: 0 | Q36: 0 | R36: 0 | S36: 0 | T36: 0 | U36: 0 | V36: 0 | W36: 0 | X36: 0 | Y36: 0 | Z36: 0 | AA36: 0 | AB36: 0 | AC36: 0
A38: Gross Expenses System per year: | C38: =IF(Input!$E$8="","",Input!$E$8) -> FCFA | D38: =SUM(D24:D32) -> 4853620 | E38: =E34+E35+E36+SUMIF(E24:E33,"<1E+307") -> 30000 | F38: 30900 | G38: 31827 | H38: 32781.81 | I38: 1091313.039 | J38: 34778.22223 | K38: 1339487.866 | L38: =L34+L35+L36+SUMIF(L24:L33,"<1E+307") -> 36896.21596 | M38: 38003.10244 | N38: 1265130.913 | O38: 40317.49138 | P38: 41527.01612 | Q38: 42772.82661 | R38: 1647401.12 | S38: 1466633.468 | T38: 46739.0225 | U38: 48141.19317 | V38: 49585.42897 | W38: 51072.99184 | X38: 6470838.187 | Y38: 2026095.583 | Z38: 55808.83715 | AA38: 57483.10227 | AB38: 59207.59533 | AC38: 1971032.74
A41: Cash Flow: | D41: =D14-D46 -> -4853620 | E41: =E14-E46 -> -3465142 | F41: =F14-F46 -> -1935716.2 | G41: =G14-G46 -> -251184.82 | H41: 1604027.588 | I41: 2589508.189 | J41: 4839202.971 | K41: 6012635.409 | L41: 8739951.527 | M41: 11742581.99 | N41: 13822148.01 | O41: 17460997.13 | P41: 21466553.39 | Q41: 25875572.17 | R41: 29125141.82 | S41: 33045176.2 | T41: 38923771.81 | U41: 45393498.7 | V41: 52513568.18 | W41: 60349115.58 | X41: 62553559.82 | Y41: 70070274.91 | Z41: 80511557.81 | AA41: 92000875.62 | AB41: 104643149 | AC41: 116643745.4
D43: =IF(D41>0,"Yes","No") -> No | E43: =IF(E41>0,"Yes","No") -> No | F43: =IF(F41>0,"Yes","No") -> No | G43: No | H43: Yes | I43: Yes | J43: Yes | K43: Yes | L43: Yes | M43: Yes | N43: Yes | O43: Yes | P43: Yes | Q43: Yes | R43: Yes | S43: Yes | T43: Yes | U43: Yes | V43: Yes | W43: Yes | X43: Yes | Y43: Yes | Z43: Yes | AA43: Yes | AB43: Yes | AC43: Yes
A44: Payback period against investment (years) | B44: =IF(AC41<0,"no payback",COUNTIF(D41:AC41,"<0")) -> 4 | C44: years
A46: System Life Cycle Costs (25 years) | B46: =IF($A$47=TRUE,AC47,NA()) -> 22859394.77 | C46: =IF(Input!$E$8="","",Input!$E$8) -> FCFA | D46: =IF($A$47=TRUE,D47,NA()) -> 4853620 | E46: =IF($A$47=TRUE,E47,NA()) -> 4883620 | F46: =IF($A$47=TRUE,F47,NA()) -> 4914520 | G46: 4946347 | H46: 4979128.81 | I46: 6070441.849 | J46: 6105220.071 | K46: 7444707.937 | L46: 7481604.153 | M46: 7519607.255 | N46: 8784738.168 | O46: 8825055.659 | P46: 8866582.676 | Q46: 8909355.502 | R46: 10556756.62 | S46: 12023390.09 | T46: 12070129.11 | U46: 12118270.31 | V46: 12167855.73 | W46: 12218928.73 | X46: 18689766.91 | Y46: 20715862.5 | Z46: 20771671.33 | AA46: 20829154.44 | AB46: 20888362.03 | AC46: 22859394.77
A47: TRUE | D47: =D38 -> 4853620 | E47: =SUM($D$38:E38) -> 4883620 | F47: =SUM($D$38:F38) -> 4914520 | G47: =SUM($D$38:G38) -> 4946347 | H47: =SUM($D$38:H38) -> 4979128.81 | I47: =SUM($D$38:I38) -> 6070441.849 | J47: =SUM($D$38:J38) -> 6105220.071 | K47: =SUM($D$38:K38) -> 7444707.937 | L47: =SUM($D$38:L38) -> 7481604.153 | M47: =SUM($D$38:M38) -> 7519607.255 | N47: =SUM($D$38:N38) -> 8784738.168 | O47: =SUM($D$38:O38) -> 8825055.659 | P47: =SUM($D$38:P38) -> 8866582.676 | Q47: =SUM($D$38:Q38) -> 8909355.502 | R47: =SUM($D$38:R38) -> 10556756.62 | S47: =SUM($D$38:S38) -> 12023390.09 | T47: =SUM($D$38:T38) -> 12070129.11 | U47: =SUM($D$38:U38) -> 12118270.31 | V47: =SUM($D$38:V38) -> 12167855.73 | W47: =SUM($D$38:W38) -> 12218928.73 | X47: =SUM($D$38:X38) -> 18689766.91 | Y47: =SUM($D$38:Y38) -> 20715862.5 | Z47: =SUM($D$38:Z38) -> 20771671.33 | AA47: =SUM($D$38:AA38) -> 20829154.44 | AB47: =SUM($D$38:AB38) -> 20888362.03 | AC47: =SUM($D$38:AC38) -> 22859394.77
A48: Cost of water | C48: =IF(Input!$E$8="","",Input!$E$8&" /m3") -> FCFA /m3 | D48: =D38/($B$9*365) -> 189.9655577 | E48: =E38/($B$9*365) -> 1.174168297 | F48: 1.209393346 | G48: 1.245675147 | H48: 1.283045401 | I48: 42.71283908 | J48: 1.361182866 | K48: 52.42613958 | L48: 1.444078903 | M48: 1.48740127 | N48: 49.51588699 | O48: 1.577984007 | P48: 1.625323527 | Q48: 1.674083233 | R48: 64.47753893 | S48: 57.40248405 | T48: 1.829315949 | U48: 1.884195428 | V48: 1.94072129 | W48: 1.998942929 | X48: 253.2617686 | Y48: 79.29924004 | Z48: 2.18429891 | AA48: 2.249827877 | AB48: 2.317322714 | AC48: 77.14413853
A49: Average water cost over 25 years | B49: =AVERAGE(D48:AC48) -> 34.4112521 | C49: =IF(Input!$E$8="","",Input!$E$8&" /m3") -> FCFA /m3 | I49: =AVERAGE(D48:I48) -> 39.5984465 | N49: =AVERAGE(D48:N48) -> 31.25685169
A51: NPV | B51: =Input!E12 -> 0.08 | C51: =NPV(B51,E41:AC41)+D41 -> 204545969.4
A52: IRR | C52: =IRR(D41:AC41) -> 0.3573803067
A59: =Input!D60 -> Système d'irrigation alimenté par le réseau électrique
A62: =Input!C64 -> Onduleur (si pompe CC) | C62: =IF(Input!$E$8="","",Input!$E$8) -> FCFA | D62: =Input!E64 -> 0 | E62: =IF(MOD(E11,Input!$G$64)=0,($D$62*(1+$B$2)^E11),0) ->  | F62: =IF(MOD(F11,Input!$G$64)=0,($D$62*(1+$B$2)^F11),0) ->  | G62: =IF(MOD(G11,Input!$G$64)=0,($D$62*(1+$B$2)^G11),0) ->  | H62: =IF(MOD(H11,Input!$G$64)=0,($D$62*(1+$B$2)^H11),0) ->  | I62: =IF(MOD(I11,Input!$G$64)=0,($D$62*(1+$B$2)^I11),0) ->  | J62: =IF(MOD(J11,Input!$G$64)=0,($D$62*(1+$B$2)^J11),0) ->  | K62: =IF(MOD(K11,Input!$G$64)=0,($D$62*(1+$B$2)^K11),0) ->  | L62: =IF(MOD(L11,Input!$G$64)=0,($D$62*(1+$B$2)^L11),0) ->  | M62: =IF(MOD(M11,Input!$G$64)=0,($D$62*(1+$B$2)^M11),0) ->  | N62: =IF(MOD(N11,Input!$G$64)=0,($D$62*(1+$B$2)^N11),0) ->  | O62: =IF(MOD(O11,Input!$G$64)=0,($D$62*(1+$B$2)^O11),0) ->  | P62: =IF(MOD(P11,Input!$G$64)=0,($D$62*(1+$B$2)^P11),0) ->  | Q62: =IF(MOD(Q11,Input!$G$64)=0,($D$62*(1+$B$2)^Q11),0) ->  | R62: =IF(MOD(R11,Input!$G$64)=0,($D$62*(1+$B$2)^R11),0) ->  | S62: =IF(MOD(S11,Input!$G$64)=0,($D$62*(1+$B$2)^S11),0) ->  | T62: =IF(MOD(T11,Input!$G$64)=0,($D$62*(1+$B$2)^T11),0) ->  | U62: =IF(MOD(U11,Input!$G$64)=0,($D$62*(1+$B$2)^U11),0) ->  | V62: =IF(MOD(V11,Input!$G$64)=0,($D$62*(1+$B$2)^V11),0) ->  | W62: =IF(MOD(W11,Input!$G$64)=0,($D$62*(1+$B$2)^W11),0) ->  | X62: =IF(MOD(X11,Input!$G$64)=0,($D$62*(1+$B$2)^X11),0) ->  | Y62: =IF(MOD(Y11,Input!$G$64)=0,($D$62*(1+$B$2)^Y11),0) ->  | Z62: =IF(MOD(Z11,Input!$G$64)=0,($D$62*(1+$B$2)^Z11),0) ->  | AA62: =IF(MOD(AA11,Input!$G$64)=0,($D$62*(1+$B$2)^AA11),0) ->  | AB62: =IF(MOD(AB11,Input!$G$64)=0,($D$62*(1+$B$2)^AB11),0) ->  | AC62: =IF(MOD(AC11,Input!$G$64)=0,($D$62*(1+$B$2)^AC11),0) -> 
A63: =Input!C65 -> Unité de commande | C63: =IF(Input!$E$8="","",Input!$E$8) -> FCFA | D63: =Input!E65 -> 0 | E63: =IF(MOD(E11,Input!$G$65)=0,($D$63*(1+$B$2)^E11),0) ->  | F63: =IF(MOD(F11,Input!$G$65)=0,($D$63*(1+$B$2)^F11),0) ->  | G63: =IF(MOD(G11,Input!$G$65)=0,($D$63*(1+$B$2)^G11),0) ->  | H63: =IF(MOD(H11,Input!$G$65)=0,($D$63*(1+$B$2)^H11),0) ->  | I63: =IF(MOD(I11,Input!$G$65)=0,($D$63*(1+$B$2)^I11),0) ->  | J63: =IF(MOD(J11,Input!$G$65)=0,($D$63*(1+$B$2)^J11),0) ->  | K63: =IF(MOD(K11,Input!$G$65)=0,($D$63*(1+$B$2)^K11),0) ->  | L63: =IF(MOD(L11,Input!$G$65)=0,($D$63*(1+$B$2)^L11),0) ->  | M63: =IF(MOD(M11,Input!$G$65)=0,($D$63*(1+$B$2)^M11),0) ->  | N63: =IF(MOD(N11,Input!$G$65)=0,($D$63*(1+$B$2)^N11),0) ->  | O63: =IF(MOD(O11,Input!$G$65)=0,($D$63*(1+$B$2)^O11),0) ->  | P63: =IF(MOD(P11,Input!$G$65)=0,($D$63*(1+$B$2)^P11),0) ->  | Q63: =IF(MOD(Q11,Input!$G$65)=0,($D$63*(1+$B$2)^Q11),0) ->  | R63: =IF(MOD(R11,Input!$G$65)=0,($D$63*(1+$B$2)^R11),0) ->  | S63: =IF(MOD(S11,Input!$G$65)=0,($D$63*(1+$B$2)^S11),0) ->  | T63: =IF(MOD(T11,Input!$G$65)=0,($D$63*(1+$B$2)^T11),0) ->  | U63: =IF(MOD(U11,Input!$G$65)=0,($D$63*(1+$B$2)^U11),0) ->  | V63: =IF(MOD(V11,Input!$G$65)=0,($D$63*(1+$B$2)^V11),0) ->  | W63: =IF(MOD(W11,Input!$G$65)=0,($D$63*(1+$B$2)^W11),0) ->  | X63: =IF(MOD(X11,Input!$G$65)=0,($D$63*(1+$B$2)^X11),0) ->  | Y63: =IF(MOD(Y11,Input!$G$65)=0,($D$63*(1+$B$2)^Y11),0) ->  | Z63: =IF(MOD(Z11,Input!$G$65)=0,($D$63*(1+$B$2)^Z11),0) ->  | AA63: =IF(MOD(AA11,Input!$G$65)=0,($D$63*(1+$B$2)^AA11),0) ->  | AB63: =IF(MOD(AB11,Input!$G$65)=0,($D$63*(1+$B$2)^AB11),0) ->  | AC63: =IF(MOD(AC11,Input!$G$65)=0,($D$63*(1+$B$2)^AC11),0) -> 
A64: =Input!C66 -> Pompe | C64: =IF(Input!$E$8="","",Input!$E$8) -> FCFA | D64: =Input!E66 -> 1000000 | E64: =IF(MOD(E11,Input!$G$66)=0,($D$64*(1+$B$2)^E11),0) -> 0 | F64: =IF(MOD(F11,Input!$G$66)=0,($D$64*(1+$B$2)^F11),0) -> 0 | G64: =IF(MOD(G11,Input!$G$66)=0,($D$64*(1+$B$2)^G11),0) -> 0 | H64: =IF(MOD(H11,Input!$G$66)=0,($D$64*(1+$B$2)^H11),0) -> 0 | I64: =IF(MOD(I11,Input!$G$66)=0,($D$64*(1+$B$2)^I11),0) -> 1159274.074 | J64: =IF(MOD(J11,Input!$G$66)=0,($D$64*(1+$B$2)^J11),0) -> 0 | K64: =IF(MOD(K11,Input!$G$66)=0,($D$64*(1+$B$2)^K11),0) -> 0 | L64: =IF(MOD(L11,Input!$G$66)=0,($D$64*(1+$B$2)^L11),0) -> 0 | M64: =IF(MOD(M11,Input!$G$66)=0,($D$64*(1+$B$2)^M11),0) -> 0 | N64: =IF(MOD(N11,Input!$G$66)=0,($D$64*(1+$B$2)^N11),0) -> 1343916.379 | O64: =IF(MOD(O11,Input!$G$66)=0,($D$64*(1+$B$2)^O11),0) -> 0 | P64: =IF(MOD(P11,Input!$G$66)=0,($D$64*(1+$B$2)^P11),0) -> 0 | Q64: =IF(MOD(Q11,Input!$G$66)=0,($D$64*(1+$B$2)^Q11),0) -> 0 | R64: =IF(MOD(R11,Input!$G$66)=0,($D$64*(1+$B$2)^R11),0) -> 0 | S64: =IF(MOD(S11,Input!$G$66)=0,($D$64*(1+$B$2)^S11),0) -> 1557967.417 | T64: =IF(MOD(T11,Input!$G$66)=0,($D$64*(1+$B$2)^T11),0) -> 0 | U64: =IF(MOD(U11,Input!$G$66)=0,($D$64*(1+$B$2)^U11),0) -> 0 | V64: =IF(MOD(V11,Input!$G$66)=0,($D$64*(1+$B$2)^V11),0) -> 0 | W64: =IF(MOD(W11,Input!$G$66)=0,($D$64*(1+$B$2)^W11),0) -> 0 | X64: =IF(MOD(X11,Input!$G$66)=0,($D$64*(1+$B$2)^X11),0) -> 1806111.235 | Y64: =IF(MOD(Y11,Input!$G$66)=0,($D$64*(1+$B$2)^Y11),0) -> 0 | Z64: =IF(MOD(Z11,Input!$G$66)=0,($D$64*(1+$B$2)^Z11),0) -> 0 | AA64: =IF(MOD(AA11,Input!$G$66)=0,($D$64*(1+$B$2)^AA11),0) -> 0 | AB64: =IF(MOD(AB11,Input!$G$66)=0,($D$64*(1+$B$2)^AB11),0) -> 0 | AC64: =IF(MOD(AC11,Input!$G$66)=0,($D$64*(1+$B$2)^AC11),0) -> 2093777.93
A65: Wires / tubes | C65: =IF(Input!$E$8="","",Input!$E$8) -> FCFA | D65: =Input!E67 -> 110000 | E65: =IF(MOD(E11,Input!$G$67)=0,($D$65*(1+$B$2)^E11),0) -> 0 | F65: =IF(MOD(F11,Input!$G$67)=0,($D$65*(1+$B$2)^F11),0) -> 0 | G65: =IF(MOD(G11,Input!$G$67)=0,($D$65*(1+$B$2)^G11),0) -> 0 | H65: =IF(MOD(H11,Input!$G$67)=0,($D$65*(1+$B$2)^H11),0) -> 0 | I65: =IF(MOD(I11,Input!$G$67)=0,($D$65*(1+$B$2)^I11),0) -> 127520.1482 | J65: =IF(MOD(J11,Input!$G$67)=0,($D$65*(1+$B$2)^J11),0) -> 0 | K65: =IF(MOD(K11,Input!$G$67)=0,($D$65*(1+$B$2)^K11),0) -> 0 | L65: =IF(MOD(L11,Input!$G$67)=0,($D$65*(1+$B$2)^L11),0) -> 0 | M65: =IF(MOD(M11,Input!$G$67)=0,($D$65*(1+$B$2)^M11),0) -> 0 | N65: =IF(MOD(N11,Input!$G$67)=0,($D$65*(1+$B$2)^N11),0) -> 147830.8017 | O65: =IF(MOD(O11,Input!$G$67)=0,($D$65*(1+$B$2)^O11),0) -> 0 | P65: =IF(MOD(P11,Input!$G$67)=0,($D$65*(1+$B$2)^P11),0) -> 0 | Q65: =IF(MOD(Q11,Input!$G$67)=0,($D$65*(1+$B$2)^Q11),0) -> 0 | R65: =IF(MOD(R11,Input!$G$67)=0,($D$65*(1+$B$2)^R11),0) -> 0 | S65: =IF(MOD(S11,Input!$G$67)=0,($D$65*(1+$B$2)^S11),0) -> 171376.4158 | T65: =IF(MOD(T11,Input!$G$67)=0,($D$65*(1+$B$2)^T11),0) -> 0 | U65: =IF(MOD(U11,Input!$G$67)=0,($D$65*(1+$B$2)^U11),0) -> 0 | V65: =IF(MOD(V11,Input!$G$67)=0,($D$65*(1+$B$2)^V11),0) -> 0 | W65: =IF(MOD(W11,Input!$G$67)=0,($D$65*(1+$B$2)^W11),0) -> 0 | X65: =IF(MOD(X11,Input!$G$67)=0,($D$65*(1+$B$2)^X11),0) -> 198672.2358 | Y65: =IF(MOD(Y11,Input!$G$67)=0,($D$65*(1+$B$2)^Y11),0) -> 0 | Z65: =IF(MOD(Z11,Input!$G$67)=0,($D$65*(1+$B$2)^Z11),0) -> 0 | AA65: =IF(MOD(AA11,Input!$G$67)=0,($D$65*(1+$B$2)^AA11),0) -> 0 | AB65: =IF(MOD(AB11,Input!$G$67)=0,($D$65*(1+$B$2)^AB11),0) -> 0 | AC65: =IF(MOD(AC11,Input!$G$67)=0,($D$65*(1+$B$2)^AC11),0) -> 230315.5723
A66: =Input!C68 -> reservoir d’eau | C66: =IF(Input!$E$8="","",Input!$E$8) -> FCFA | D66: =Input!E68 -> 331370 | E66: =IF(MOD(E11,Input!$G$68)=0,($D$66*(1+$B$2)^E11),0) -> 0 | F66: =IF(MOD(F11,Input!$G$68)=0,($D$66*(1+$B$2)^F11),0) -> 0 | G66: =IF(MOD(G11,Input!$G$68)=0,($D$66*(1+$B$2)^G11),0) -> 0 | H66: =IF(MOD(H11,Input!$G$68)=0,($D$66*(1+$B$2)^H11),0) -> 0 | I66: =IF(MOD(I11,Input!$G$68)=0,($D$66*(1+$B$2)^I11),0) -> 0 | J66: =IF(MOD(J11,Input!$G$68)=0,($D$66*(1+$B$2)^J11),0) -> 0 | K66: =IF(MOD(K11,Input!$G$68)=0,($D$66*(1+$B$2)^K11),0) -> 0 | L66: =IF(MOD(L11,Input!$G$68)=0,($D$66*(1+$B$2)^L11),0) -> 0 | M66: =IF(MOD(M11,Input!$G$68)=0,($D$66*(1+$B$2)^M11),0) -> 0 | N66: =IF(MOD(N11,Input!$G$68)=0,($D$66*(1+$B$2)^N11),0) -> 0 | O66: =IF(MOD(O11,Input!$G$68)=0,($D$66*(1+$B$2)^O11),0) -> 0 | P66: =IF(MOD(P11,Input!$G$68)=0,($D$66*(1+$B$2)^P11),0) -> 0 | Q66: =IF(MOD(Q11,Input!$G$68)=0,($D$66*(1+$B$2)^Q11),0) -> 0 | R66: =IF(MOD(R11,Input!$G$68)=0,($D$66*(1+$B$2)^R11),0) -> 0 | S66: =IF(MOD(S11,Input!$G$68)=0,($D$66*(1+$B$2)^S11),0) -> 0 | T66: =IF(MOD(T11,Input!$G$68)=0,($D$66*(1+$B$2)^T11),0) -> 0 | U66: =IF(MOD(U11,Input!$G$68)=0,($D$66*(1+$B$2)^U11),0) -> 0 | V66: =IF(MOD(V11,Input!$G$68)=0,($D$66*(1+$B$2)^V11),0) -> 0 | W66: =IF(MOD(W11,Input!$G$68)=0,($D$66*(1+$B$2)^W11),0) -> 0 | X66: =IF(MOD(X11,Input!$G$68)=0,($D$66*(1+$B$2)^X11),0) -> 598491.0798 | Y66: =IF(MOD(Y11,Input!$G$68)=0,($D$66*(1+$B$2)^Y11),0) -> 0 | Z66: =IF(MOD(Z11,Input!$G$68)=0,($D$66*(1+$B$2)^Z11),0) -> 0 | AA66: =IF(MOD(AA11,Input!$G$68)=0,($D$66*(1+$B$2)^AA11),0) -> 0 | AB66: =IF(MOD(AB11,Input!$G$68)=0,($D$66*(1+$B$2)^AB11),0) -> 0 | AC66: =IF(MOD(AC11,Input!$G$68)=0,($D$66*(1+$B$2)^AC11),0) -> 0
A67: Irrigation system | C67: =IF(Input!$E$8="","",Input!$E$8) -> FCFA | D67: =Input!E69 -> 482000 | E67: =IF(MOD(E11,Input!$G$69)=0,($D$67*(1+$B$2)^E11),0) -> 0 | F67: =IF(MOD(F11,Input!$G$69)=0,($D$67*(1+$B$2)^F11),0) -> 0 | G67: =IF(MOD(G11,Input!$G$69)=0,($D$67*(1+$B$2)^G11),0) -> 0 | H67: =IF(MOD(H11,Input!$G$69)=0,($D$67*(1+$B$2)^H11),0) -> 0 | I67: =IF(MOD(I11,Input!$G$69)=0,($D$67*(1+$B$2)^I11),0) -> 558770.1038 | J67: =IF(MOD(J11,Input!$G$69)=0,($D$67*(1+$B$2)^J11),0) -> 0 | K67: =IF(MOD(K11,Input!$G$69)=0,($D$67*(1+$B$2)^K11),0) -> 0 | L67: =IF(MOD(L11,Input!$G$69)=0,($D$67*(1+$B$2)^L11),0) -> 0 | M67: =IF(MOD(M11,Input!$G$69)=0,($D$67*(1+$B$2)^M11),0) -> 0 | N67: =IF(MOD(N11,Input!$G$69)=0,($D$67*(1+$B$2)^N11),0) -> 647767.6948 | O67: =IF(MOD(O11,Input!$G$69)=0,($D$67*(1+$B$2)^O11),0) -> 0 | P67: =IF(MOD(P11,Input!$G$69)=0,($D$67*(1+$B$2)^P11),0) -> 0 | Q67: =IF(MOD(Q11,Input!$G$69)=0,($D$67*(1+$B$2)^Q11),0) -> 0 | R67: =IF(MOD(R11,Input!$G$69)=0,($D$67*(1+$B$2)^R11),0) -> 0 | S67: =IF(MOD(S11,Input!$G$69)=0,($D$67*(1+$B$2)^S11),0) -> 750940.2948 | T67: =IF(MOD(T11,Input!$G$69)=0,($D$67*(1+$B$2)^T11),0) -> 0 | U67: =IF(MOD(U11,Input!$G$69)=0,($D$67*(1+$B$2)^U11),0) -> 0 | V67: =IF(MOD(V11,Input!$G$69)=0,($D$67*(1+$B$2)^V11),0) -> 0 | W67: =IF(MOD(W11,Input!$G$69)=0,($D$67*(1+$B$2)^W11),0) -> 0 | X67: =IF(MOD(X11,Input!$G$69)=0,($D$67*(1+$B$2)^X11),0) -> 870545.6151 | Y67: =IF(MOD(Y11,Input!$G$69)=0,($D$67*(1+$B$2)^Y11),0) -> 0 | Z67: =IF(MOD(Z11,Input!$G$69)=0,($D$67*(1+$B$2)^Z11),0) -> 0 | AA67: =IF(MOD(AA11,Input!$G$69)=0,($D$67*(1+$B$2)^AA11),0) -> 0 | AB67: =IF(MOD(AB11,Input!$G$69)=0,($D$67*(1+$B$2)^AB11),0) -> 0 | AC67: =IF(MOD(AC11,Input!$G$69)=0,($D$67*(1+$B$2)^AC11),0) -> 1009200.962
A68: Drilling | C68: =IF(Input!$E$8="","",Input!$E$8) -> FCFA | D68: =Input!E70 -> 0
A69: Installation | C69: =IF(Input!$E$8="","",Input!$E$8) -> FCFA | D69: =Input!E71 -> 100000
A70: Other Costs | C70: =IF(Input!$E$8="","",Input!$E$8) -> FCFA | D70: =Input!E72 -> 35000
A71: Loan Repayment | C71: =IF(Input!$E$8="","",Input!$E$8) -> FCFA | D71: 0 | E71: =IF(E11<='Loan Repayment Grid'!Loan_Years,'Loan Repayment Grid'!Scheduled_Monthly_Payment,0) -> 0 | F71: =IF(F11<='Loan Repayment Grid'!Loan_Years,'Loan Repayment Grid'!Scheduled_Monthly_Payment,0) -> 0 | G71: =IF(G11<='Loan Repayment Grid'!Loan_Years,'Loan Repayment Grid'!Scheduled_Monthly_Payment,0) -> 0 | H71: =IF(H11<='Loan Repayment Grid'!Loan_Years,'Loan Repayment Grid'!Scheduled_Monthly_Payment,0) -> 0 | I71: =IF(I11<='Loan Repayment Grid'!Loan_Years,'Loan Repayment Grid'!Scheduled_Monthly_Payment,0) -> 0 | J71: =IF(J11<='Loan Repayment Grid'!Loan_Years,'Loan Repayment Grid'!Scheduled_Monthly_Payment,0) -> 0 | K71: =IF(K11<='Loan Repayment Grid'!Loan_Years,'Loan Repayment Grid'!Scheduled_Monthly_Payment,0) -> 0 | L71: =IF(L11<='Loan Repayment Grid'!Loan_Years,'Loan Repayment Grid'!Scheduled_Monthly_Payment,0) -> 0 | M71: =IF(M11<='Loan Repayment Grid'!Loan_Years,'Loan Repayment Grid'!Scheduled_Monthly_Payment,0) -> 0 | N71: =IF(N11<='Loan Repayment Grid'!Loan_Years,'Loan Repayment Grid'!Scheduled_Monthly_Payment,0) -> 0 | O71: =IF(O11<='Loan Repayment Grid'!Loan_Years,'Loan Repayment Grid'!Scheduled_Monthly_Payment,0) -> 0 | P71: =IF(P11<='Loan Repayment Grid'!Loan_Years,'Loan Repayment Grid'!Scheduled_Monthly_Payment,0) -> 0 | Q71: =IF(Q11<='Loan Repayment Grid'!Loan_Years,'Loan Repayment Grid'!Scheduled_Monthly_Payment,0) -> 0 | R71: =IF(R11<='Loan Repayment Grid'!Loan_Years,'Loan Repayment Grid'!Scheduled_Monthly_Payment,0) -> 0 | S71: =IF(S11<='Loan Repayment Grid'!Loan_Years,'Loan Repayment Grid'!Scheduled_Monthly_Payment,0) -> 0 | T71: =IF(T11<='Loan Repayment Grid'!Loan_Years,'Loan Repayment Grid'!Scheduled_Monthly_Payment,0) -> 0 | U71: =IF(U11<='Loan Repayment Grid'!Loan_Years,'Loan Repayment Grid'!Scheduled_Monthly_Payment,0) -> 0 | V71: =IF(V11<='Loan Repayment Grid'!Loan_Years,'Loan Repayment Grid'!Scheduled_Monthly_Payment,0) -> 0 | W71: =IF(W11<='Loan Repayment Grid'!Loan_Years,'Loan Repayment Grid'!Scheduled_Monthly_Payment,0) -> 0 | X71: =IF(X11<='Loan Repayment Grid'!Loan_Years,'Loan Repayment Grid'!Scheduled_Monthly_Payment,0) -> 0 | Y71: =IF(Y11<='Loan Repayment Grid'!Loan_Years,'Loan Repayment Grid'!Scheduled_Monthly_Payment,0) -> 0 | Z71: =IF(Z11<='Loan Repayment Grid'!Loan_Years,'Loan Repayment Grid'!Scheduled_Monthly_Payment,0) -> 0 | AA71: =IF(AA11<='Loan Repayment Grid'!Loan_Years,'Loan Repayment Grid'!Scheduled_Monthly_Payment,0) -> 0 | AB71: =IF(AB11<='Loan Repayment Grid'!Loan_Years,'Loan Repayment Grid'!Scheduled_Monthly_Payment,0) -> 0 | AC71: =IF(AC11<='Loan Repayment Grid'!Loan_Years,'Loan Repayment Grid'!Scheduled_Monthly_Payment,0) -> 0
A72: Electricity costs: | C72: =IF(Input!$E$8="","",Input!$E$8) -> FCFA | D72: 0 | E72: =Input!E77 -> 189383.5616 | F72: =E72*(1+(1*$B$6)) -> 189383.5616 | G72: =F72*(1+(1*$B$6)) -> 189383.5616 | H72: =G72*(1+(1*$B$6)) -> 189383.5616 | I72: 189383.5616 | J72: 189383.5616 | K72: 189383.5616 | L72: 189383.5616 | M72: 189383.5616 | N72: 189383.5616 | O72: 189383.5616 | P72: 189383.5616 | Q72: 189383.5616 | R72: 189383.5616 | S72: 189383.5616 | T72: 189383.5616 | U72: 189383.5616 | V72: 189383.5616 | W72: 189383.5616 | X72: 189383.5616 | Y72: 189383.5616 | Z72: 189383.5616 | AA72: 189383.5616 | AB72: 189383.5616 | AC72: 189383.5616
A73: Operating Costs: | C73: =IF(Input!$E$8="","",Input!$E$8) -> FCFA | D73: 0 | E73: =SUM(Input!E78:E79) -> 35000 | F73: =E73*(1+(1*$B$2)) -> 36050 | G73: 37131.5 | H73: 38245.445 | I73: 39392.80835 | J73: 40574.5926 | K73: 41791.83038 | L73: 43045.58529 | M73: 44336.95285 | N73: 45667.06143 | O73: 47037.07328 | P73: 48448.18548 | Q73: 49901.63104 | R73: 51398.67997 | S73: 52940.64037 | T73: 54528.85958 | U73: 56164.72537 | V73: 57849.66713 | W73: 59585.15714 | X73: 61372.71186 | Y73: 63213.89321 | Z73: 65110.31001 | AA73: 67063.61931 | AB73: 69075.52789 | AC73: 71147.79373
A74: Water levy | E74: =$B$8*$B$9 -> 0 | F74: =$B$8*$B$9 -> 0 | G74: 0 | H74: 0 | I74: 0 | J74: 0 | K74: 0 | L74: 0 | M74: 0 | N74: 0 | O74: 0 | P74: 0 | Q74: 0 | R74: 0 | S74: 0 | T74: 0 | U74: 0 | V74: 0 | W74: 0 | X74: 0 | Y74: 0 | Z74: 0 | AA74: 0 | AB74: 0 | AC74: 0
A76: Gross Expenses System per year: | C76: =IF(Input!$E$8="","",Input!$E$8) -> FCFA | D76: =SUM(D62:D70) -> 2058370 | E76: =E72+E73+E74+SUMIF(E62:E71,"<1E+307") -> 224383.5616 | F76: =F72+F73+F74+SUMIF(F62:F71,"<1E+307") -> 225433.5616 | G76: 226515.0616 | H76: 227629.0066 | I76: 2074340.696 | J76: 229958.1542 | K76: 231175.392 | L76: 232429.1469 | M76: 233720.5145 | N76: 2374565.499 | O76: 236420.6349 | P76: 237831.7471 | Q76: 239285.1927 | R76: 240782.2416 | S76: 2722608.329 | T76: 243912.4212 | U76: 245548.287 | V76: 247233.2288 | W76: 248968.7188 | X76: 3724576.439 | Y76: 252597.4549 | Z76: 254493.8717 | AA76: 256447.181 | AB76: 258459.0895 | AC76: 3593825.819
A79: Cash Flow: | C79: =IF(Input!$E$8="","",Input!$E$8) -> FCFA | D79: =D14-D84 -> -2058370 | E79: =E14-E84 -> -864275.5616 | F79: 470616.6767 | G79: 1960459.995 | H79: 3620825.206 | I79: 3623278.15 | J79: 5677792.999 | K79: 7959537.912 | L79: 10491321.1 | M79: 13298234.15 | N79: 14268365.58 | O79: 17711111.56 | P79: 21520363.09 | Q79: 25732869.51 | R79: 30389058.03 | S79: 33053117.55 | T79: 38734539.76 | U79: 45006859.56 | V79: 51929281.23 | W79: 59566932.91 | X79: 64517638.9 | Y79: 73807852.11 | Z79: 84050449.98 | AA79: 95340803.72 | AB79: 107783825.6 | AC79: 118161628.9
D81: =IF(D79>0,"Yes","No") -> No | E81: =IF(E79>0,"Yes","No") -> No | F81: Yes | G81: Yes | H81: Yes | I81: Yes | J81: Yes | K81: Yes | L81: Yes | M81: Yes | N81: Yes | O81: Yes | P81: Yes | Q81: Yes | R81: Yes | S81: Yes | T81: Yes | U81: Yes | V81: Yes | W81: Yes | X81: Yes | Y81: Yes | Z81: Yes | AA81: Yes | AB81: Yes | AC81: Yes
A82: Payback period against investment (years) | B82: =IF(AC79<0,"no payback",COUNTIF(D79:AC79,"<0")) -> 2 | C82: years
A84: System Life Cycle Costs | B84: =IF($A$85=TRUE,AC85,NA()) -> 21341511.25 | C84: =IF(Input!$E$8="","",Input!$E$8) -> FCFA | D84: =IF($A$85=TRUE,D85,NA()) -> 2058370 | E84: 2282753.562 | F84: 2508187.123 | G84: 2734702.185 | H84: 2962331.192 | I84: 5036671.888 | J84: 5266630.042 | K84: 5497805.434 | L84: 5730234.581 | M84: 5963955.096 | N84: 8338520.595 | O84: 8574941.229 | P84: 8812772.977 | Q84: 9052058.169 | R84: 9292840.411 | S84: 12015448.74 | T84: 12259361.16 | U84: 12504909.45 | V84: 12752142.68 | W84: 13001111.4 | X84: 16725687.83 | Y84: 16978285.29 | Z84: 17232779.16 | AA84: 17489226.34 | AB84: 17747685.43 | AC84: 21341511.25
A85: TRUE | D85: =D76 -> 2058370 | E85: =SUM($D$76:E76) -> 2282753.562 | F85: =SUM($D$76:F76) -> 2508187.123 | G85: =SUM($D$76:G76) -> 2734702.185 | H85: =SUM($D$76:H76) -> 2962331.192 | I85: =SUM($D$76:I76) -> 5036671.888 | J85: =SUM($D$76:J76) -> 5266630.042 | K85: =SUM($D$76:K76) -> 5497805.434 | L85: =SUM($D$76:L76) -> 5730234.581 | M85: =SUM($D$76:M76) -> 5963955.096 | N85: =SUM($D$76:N76) -> 8338520.595 | O85: =SUM($D$76:O76) -> 8574941.229 | P85: =SUM($D$76:P76) -> 8812772.977 | Q85: =SUM($D$76:Q76) -> 9052058.169 | R85: =SUM($D$76:R76) -> 9292840.411 | S85: =SUM($D$76:S76) -> 12015448.74 | T85: =SUM($D$76:T76) -> 12259361.16 | U85: =SUM($D$76:U76) -> 12504909.45 | V85: =SUM($D$76:V76) -> 12752142.68 | W85: =SUM($D$76:W76) -> 13001111.4 | X85: =SUM($D$76:X76) -> 16725687.83 | Y85: =SUM($D$76:Y76) -> 16978285.29 | Z85: =SUM($D$76:Z76) -> 17232779.16 | AA85: =SUM($D$76:AA76) -> 17489226.34 | AB85: =SUM($D$76:AB76) -> 17747685.43 | AC85: =SUM($D$76:AC76) -> 21341511.25
A86: Cost of water | C86: =IF(Input!$E$8="","",Input!$E$8&" /m3") -> FCFA /m3 | D86: =D76/($B$9*365) -> 80.56242661 | E86: =E76/($B$9*365) -> 8.782135485 | F86: 8.823231375 | G86: 8.865560143 | H86: 8.909158773 | I86: 81.18750279 | J86: 9.000319149 | K86: 9.047960549 | L86: 9.097031191 | M86: 9.147573953 | N86: 92.93798431 | O86: 9.253253813 | P86: 9.308483253 | Q86: 9.365369577 | R86: 9.42396249 | S86: 106.5600129 | T86: 9.546474412 | U86: 9.61050047 | V86: 9.67644731 | W86: 9.744372555 | X86: 145.7759859 | Y86: 9.88639745 | Z86: 9.9606212 | AA86: 10.03707166 | AB86: 10.11581564 | AC86: 140.6585448
A87: Average water cost over 25 years | B87: =AVERAGE(D86:AC86) -> 32.1263153 | C87: =IF(Input!$E$8="","",Input!$E$8&" /m3") -> FCFA /m3 | I87: =AVERAGE(D86:I86) -> 32.85500253 | N87: =AVERAGE(D86:N86) -> 29.6691713
A89: NPV | B89: =Input!E12 -> 0.08 | C89: =NPV(B89,E79:AC79)+D79 -> 222472064
A90: IRR | C90: =IRR(D79:AC79) -> 0.651614561
N97: PV | P97: Diesel
L98: Anuties of Investment | N98: =C51 -> 204545969.4 | P98: =C89 -> 222472064
L100: Year | N100: Annuity | O100: NPV | P100: Annuity | Q100: NPV
L101: 0
L102: 1 | N102: =PMT($B$51,$L$121,$C$51,0,0)*-1 -> 20833458.79 | O102: =N102*(1.05^-L102) -> 19841389.33 | P102: =PMT($B$89,$L$121,$C$89,0,0)*-1 -> 22659271.12 | Q102: =P102*(1.06^-L102) -> 21376670.87
L103: =L102+1 -> 2 | N103: =PMT($B$51,$L$121,$C$51,0,0)*-1 -> 20833458.79 | O103: =N103*(1.06^-L103) -> 18541704.16 | P103: =PMT($B$89,$L$121,$C$89,0,0)*-1 -> 22659271.12 | Q103: =P103*(1.06^-L103) -> 20166670.63
L104: 3 | N104: 20833458.79 | O104: 17492173.73 | P104: 22659271.12 | Q104: 19025160.97
L105: 4 | N105: 20833458.79 | O105: 16502050.69 | P105: 22659271.12 | Q105: 17948265.07
L106: 5 | N106: 20833458.79 | O106: 15567972.35 | P106: 22659271.12 | Q106: 16932325.54
L107: 6 | N107: 20833458.79 | O107: 14686766.37 | P107: 22659271.12 | Q107: 15973892.02
L108: 7 | N108: 20833458.79 | O108: 13855439.97 | P108: 22659271.12 | Q108: 15069709.45
L109: 8 | N109: 20833458.79 | O109: 13071169.78 | P109: 22659271.12 | Q109: 14216707.03
L110: 9 | N110: 20833458.79 | O110: 12331292.25 | P110: 22659271.12 | Q110: 13411987.76
L111: 10 | N111: 20833458.79 | O111: 11633294.57 | P111: 22659271.12 | Q111: 12652818.64
L112: 11 | N112: 20833458.79 | O112: 10974806.2 | P112: 22659271.12 | Q112: 11936621.36
L113: 12 | N113: 20833458.79 | O113: 10353590.76 | P113: 22659271.12 | Q113: 11260963.55
L114: 13 | N114: 20833458.79 | O114: 9767538.45 | P114: 22659271.12 | Q114: 10623550.52
L115: 14 | N115: 20833458.79 | O115: 9214658.915 | P115: 22659271.12 | Q115: 10022217.47
L116: 15 | N116: 20833458.79 | O116: 8693074.448 | P116: 22659271.12 | Q116: 9454922.141
L117: 16 | N117: 20833458.79 | O117: 8201013.63 | P117: 22659271.12 | Q117: 8919737.868
L118: 17 | N118: 20833458.79 | O118: 7736805.312 | P118: 22659271.12 | Q118: 8414847.046
L119: 18 | N119: 20833458.79 | O119: 7298872.936 | P119: 22659271.12 | Q119: 7938534.949
L120: 19 | N120: 20833458.79 | O120: 6885729.184 | P120: 22659271.12 | Q120: 7489183.914
L121: 20 | N121: 20833458.79 | O121: 6495970.929 | P121: 22659271.12 | Q121: 7065267.843
L123: Total | O123: =SUM(O102:O121) -> 239145314 | Q123: =SUM(Q102:Q121) -> 259900054.6
A127: =Input!D92 -> Système d'irrigation à generateur diesel
A129: =Input!C96 -> Génératrice | C129: =IF(Input!$E$8="","",Input!$E$8) -> FCFA | D129: =Input!E96 -> 900000 | E129: =IF(MOD(E11,Input!$G$96)=0,($D$129*(1+$B$2)^E11),0) -> 0 | F129: =IF(MOD(F11,Input!$G$96)=0,($D$129*(1+$B$2)^F11),0) -> 0 | G129: =IF(MOD(G11,Input!$G$96)=0,($D$129*(1+$B$2)^G11),0) -> 983454.3 | H129: =IF(MOD(H11,Input!$G$96)=0,($D$129*(1+$B$2)^H11),0) -> 0 | I129: =IF(MOD(I11,Input!$G$96)=0,($D$129*(1+$B$2)^I11),0) -> 0 | J129: =IF(MOD(J11,Input!$G$96)=0,($D$129*(1+$B$2)^J11),0) -> 1074647.067 | K129: =IF(MOD(K11,Input!$G$96)=0,($D$129*(1+$B$2)^K11),0) -> 0 | L129: =IF(MOD(L11,Input!$G$96)=0,($D$129*(1+$B$2)^L11),0) -> 0 | M129: =IF(MOD(M11,Input!$G$96)=0,($D$129*(1+$B$2)^M11),0) -> 1174295.865 | N129: =IF(MOD(N11,Input!$G$96)=0,($D$129*(1+$B$2)^N11),0) -> 0 | O129: =IF(MOD(O11,Input!$G$96)=0,($D$129*(1+$B$2)^O11),0) -> 0 | P129: =IF(MOD(P11,Input!$G$96)=0,($D$129*(1+$B$2)^P11),0) -> 1283184.798 | Q129: =IF(MOD(Q11,Input!$G$96)=0,($D$129*(1+$B$2)^Q11),0) -> 0 | R129: =IF(MOD(R11,Input!$G$96)=0,($D$129*(1+$B$2)^R11),0) -> 0 | S129: =IF(MOD(S11,Input!$G$96)=0,($D$129*(1+$B$2)^S11),0) -> 1402170.675 | T129: =IF(MOD(T11,Input!$G$96)=0,($D$129*(1+$B$2)^T11),0) -> 0 | U129: =IF(MOD(U11,Input!$G$96)=0,($D$129*(1+$B$2)^U11),0) -> 0 | V129: =IF(MOD(V11,Input!$G$96)=0,($D$129*(1+$B$2)^V11),0) -> 1532189.755 | W129: =IF(MOD(W11,Input!$G$96)=0,($D$129*(1+$B$2)^W11),0) -> 0 | X129: =IF(MOD(X11,Input!$G$96)=0,($D$129*(1+$B$2)^X11),0) -> 0 | Y129: =IF(MOD(Y11,Input!$G$96)=0,($D$129*(1+$B$2)^Y11),0) -> 1674265.115 | Z129: =IF(MOD(Z11,Input!$G$96)=0,($D$129*(1+$B$2)^Z11),0) -> 0 | AA129: =IF(MOD(AA11,Input!$G$96)=0,($D$129*(1+$B$2)^AA11),0) -> 0 | AB129: =IF(MOD(AB11,Input!$G$96)=0,($D$129*(1+$B$2)^AB11),0) -> 1829514.696 | AC129: =IF(MOD(AC11,Input!$G$96)=0,($D$129*(1+$B$2)^AC11),0) -> 0
A130: =Input!C97 -> Pompe | C130: =IF(Input!$E$8="","",Input!$E$8) -> FCFA | D130: =Input!E97 -> 1000000 | E130: =IF(MOD(E11,Input!$G$97)=0,($D$130*(1+$B$2)^E11),0) -> 0 | F130: =IF(MOD(F11,Input!$G$97)=0,($D$130*(1+$B$2)^F11),0) -> 0 | G130: =IF(MOD(G11,Input!$G$97)=0,($D$130*(1+$B$2)^G11),0) -> 0 | H130: =IF(MOD(H11,Input!$G$97)=0,($D$130*(1+$B$2)^H11),0) -> 0 | I130: =IF(MOD(I11,Input!$G$97)=0,($D$130*(1+$B$2)^I11),0) -> 1159274.074 | J130: =IF(MOD(J11,Input!$G$97)=0,($D$130*(1+$B$2)^J11),0) -> 0 | K130: =IF(MOD(K11,Input!$G$97)=0,($D$130*(1+$B$2)^K11),0) -> 0 | L130: =IF(MOD(L11,Input!$G$97)=0,($D$130*(1+$B$2)^L11),0) -> 0 | M130: =IF(MOD(M11,Input!$G$97)=0,($D$130*(1+$B$2)^M11),0) -> 0 | N130: =IF(MOD(N11,Input!$G$97)=0,($D$130*(1+$B$2)^N11),0) -> 1343916.379 | O130: =IF(MOD(O11,Input!$G$97)=0,($D$130*(1+$B$2)^O11),0) -> 0 | P130: =IF(MOD(P11,Input!$G$97)=0,($D$130*(1+$B$2)^P11),0) -> 0 | Q130: =IF(MOD(Q11,Input!$G$97)=0,($D$130*(1+$B$2)^Q11),0) -> 0 | R130: =IF(MOD(R11,Input!$G$97)=0,($D$130*(1+$B$2)^R11),0) -> 0 | S130: =IF(MOD(S11,Input!$G$97)=0,($D$130*(1+$B$2)^S11),0) -> 1557967.417 | T130: =IF(MOD(T11,Input!$G$97)=0,($D$130*(1+$B$2)^T11),0) -> 0 | U130: =IF(MOD(U11,Input!$G$97)=0,($D$130*(1+$B$2)^U11),0) -> 0 | V130: =IF(MOD(V11,Input!$G$97)=0,($D$130*(1+$B$2)^V11),0) -> 0 | W130: =IF(MOD(W11,Input!$G$97)=0,($D$130*(1+$B$2)^W11),0) -> 0 | X130: =IF(MOD(X11,Input!$G$97)=0,($D$130*(1+$B$2)^X11),0) -> 1806111.235 | Y130: =IF(MOD(Y11,Input!$G$97)=0,($D$130*(1+$B$2)^Y11),0) -> 0 | Z130: =IF(MOD(Z11,Input!$G$97)=0,($D$130*(1+$B$2)^Z11),0) -> 0 | AA130: =IF(MOD(AA11,Input!$G$97)=0,($D$130*(1+$B$2)^AA11),0) -> 0 | AB130: =IF(MOD(AB11,Input!$G$97)=0,($D$130*(1+$B$2)^AB11),0) -> 0 | AC130: =IF(MOD(AC11,Input!$G$97)=0,($D$130*(1+$B$2)^AC11),0) -> 2093777.93
A131: Wires / tubes | C131: =IF(Input!$E$8="","",Input!$E$8) -> FCFA | D131: =Input!E98 -> 120000 | E131: =IF(MOD(E11,Input!$G$98)=0,($D$131*(1+$B$2)^E11),0) -> 0 | F131: =IF(MOD(F11,Input!$G$98)=0,($D$131*(1+$B$2)^F11),0) -> 0 | G131: =IF(MOD(G11,Input!$G$98)=0,($D$131*(1+$B$2)^G11),0) -> 0 | H131: =IF(MOD(H11,Input!$G$98)=0,($D$131*(1+$B$2)^H11),0) -> 0 | I131: =IF(MOD(I11,Input!$G$98)=0,($D$131*(1+$B$2)^I11),0) -> 139112.8889 | J131: =IF(MOD(J11,Input!$G$98)=0,($D$131*(1+$B$2)^J11),0) -> 0 | K131: =IF(MOD(K11,Input!$G$98)=0,($D$131*(1+$B$2)^K11),0) -> 0 | L131: =IF(MOD(L11,Input!$G$98)=0,($D$131*(1+$B$2)^L11),0) -> 0 | M131: =IF(MOD(M11,Input!$G$98)=0,($D$131*(1+$B$2)^M11),0) -> 0 | N131: =IF(MOD(N11,Input!$G$98)=0,($D$131*(1+$B$2)^N11),0) -> 161269.9655 | O131: =IF(MOD(O11,Input!$G$98)=0,($D$131*(1+$B$2)^O11),0) -> 0 | P131: =IF(MOD(P11,Input!$G$98)=0,($D$131*(1+$B$2)^P11),0) -> 0 | Q131: =IF(MOD(Q11,Input!$G$98)=0,($D$131*(1+$B$2)^Q11),0) -> 0 | R131: =IF(MOD(R11,Input!$G$98)=0,($D$131*(1+$B$2)^R11),0) -> 0 | S131: =IF(MOD(S11,Input!$G$98)=0,($D$131*(1+$B$2)^S11),0) -> 186956.09 | T131: =IF(MOD(T11,Input!$G$98)=0,($D$131*(1+$B$2)^T11),0) -> 0 | U131: =IF(MOD(U11,Input!$G$98)=0,($D$131*(1+$B$2)^U11),0) -> 0 | V131: =IF(MOD(V11,Input!$G$98)=0,($D$131*(1+$B$2)^V11),0) -> 0 | W131: =IF(MOD(W11,Input!$G$98)=0,($D$131*(1+$B$2)^W11),0) -> 0 | X131: =IF(MOD(X11,Input!$G$98)=0,($D$131*(1+$B$2)^X11),0) -> 216733.3482 | Y131: =IF(MOD(Y11,Input!$G$98)=0,($D$131*(1+$B$2)^Y11),0) -> 0 | Z131: =IF(MOD(Z11,Input!$G$98)=0,($D$131*(1+$B$2)^Z11),0) -> 0 | AA131: =IF(MOD(AA11,Input!$G$98)=0,($D$131*(1+$B$2)^AA11),0) -> 0 | AB131: =IF(MOD(AB11,Input!$G$98)=0,($D$131*(1+$B$2)^AB11),0) -> 0 | AC131: =IF(MOD(AC11,Input!$G$98)=0,($D$131*(1+$B$2)^AC11),0) -> 251253.3516
A132: =Input!C99 -> Reservoir d’eau | C132: =IF(Input!$E$8="","",Input!$E$8) -> FCFA | D132: =Input!E99 -> 331370 | E132: =IF(MOD(E11,Input!$G$99)=0,($D$132*(1+$B$2)^E11),0) -> 0 | F132: =IF(MOD(F11,Input!$G$99)=0,($D$132*(1+$B$2)^F11),0) -> 0 | G132: =IF(MOD(G11,Input!$G$99)=0,($D$132*(1+$B$2)^G11),0) -> 0 | H132: =IF(MOD(H11,Input!$G$99)=0,($D$132*(1+$B$2)^H11),0) -> 0 | I132: =IF(MOD(I11,Input!$G$99)=0,($D$132*(1+$B$2)^I11),0) -> 0 | J132: =IF(MOD(J11,Input!$G$99)=0,($D$132*(1+$B$2)^J11),0) -> 0 | K132: =IF(MOD(K11,Input!$G$99)=0,($D$132*(1+$B$2)^K11),0) -> 0 | L132: =IF(MOD(L11,Input!$G$99)=0,($D$132*(1+$B$2)^L11),0) -> 0 | M132: =IF(MOD(M11,Input!$G$99)=0,($D$132*(1+$B$2)^M11),0) -> 0 | N132: =IF(MOD(N11,Input!$G$99)=0,($D$132*(1+$B$2)^N11),0) -> 0 | O132: =IF(MOD(O11,Input!$G$99)=0,($D$132*(1+$B$2)^O11),0) -> 0 | P132: =IF(MOD(P11,Input!$G$99)=0,($D$132*(1+$B$2)^P11),0) -> 0 | Q132: =IF(MOD(Q11,Input!$G$99)=0,($D$132*(1+$B$2)^Q11),0) -> 0 | R132: =IF(MOD(R11,Input!$G$99)=0,($D$132*(1+$B$2)^R11),0) -> 0 | S132: =IF(MOD(S11,Input!$G$99)=0,($D$132*(1+$B$2)^S11),0) -> 0 | T132: =IF(MOD(T11,Input!$G$99)=0,($D$132*(1+$B$2)^T11),0) -> 0 | U132: =IF(MOD(U11,Input!$G$99)=0,($D$132*(1+$B$2)^U11),0) -> 0 | V132: =IF(MOD(V11,Input!$G$99)=0,($D$132*(1+$B$2)^V11),0) -> 0 | W132: =IF(MOD(W11,Input!$G$99)=0,($D$132*(1+$B$2)^W11),0) -> 0 | X132: =IF(MOD(X11,Input!$G$99)=0,($D$132*(1+$B$2)^X11),0) -> 598491.0798 | Y132: =IF(MOD(Y11,Input!$G$99)=0,($D$132*(1+$B$2)^Y11),0) -> 0 | Z132: =IF(MOD(Z11,Input!$G$99)=0,($D$132*(1+$B$2)^Z11),0) -> 0 | AA132: =IF(MOD(AA11,Input!$G$99)=0,($D$132*(1+$B$2)^AA11),0) -> 0 | AB132: =IF(MOD(AB11,Input!$G$99)=0,($D$132*(1+$B$2)^AB11),0) -> 0 | AC132: =IF(MOD(AC11,Input!$G$99)=0,($D$132*(1+$B$2)^AC11),0) -> 0
A133: Irrigation system | C133: =IF(Input!$E$8="","",Input!$E$8) -> FCFA | D133: =Input!E100 -> 482000 | E133: =IF(MOD(E11,Input!$G$100)=0,($D$133*(1+$B$2)^E11),0) -> 0 | F133: =IF(MOD(F11,Input!$G$100)=0,($D$133*(1+$B$2)^F11),0) -> 0 | G133: =IF(MOD(G11,Input!$G$100)=0,($D$133*(1+$B$2)^G11),0) -> 0 | H133: =IF(MOD(H11,Input!$G$100)=0,($D$133*(1+$B$2)^H11),0) -> 0 | I133: =IF(MOD(I11,Input!$G$100)=0,($D$133*(1+$B$2)^I11),0) -> 558770.1038 | J133: =IF(MOD(J11,Input!$G$100)=0,($D$133*(1+$B$2)^J11),0) -> 0 | K133: =IF(MOD(K11,Input!$G$100)=0,($D$133*(1+$B$2)^K11),0) -> 0 | L133: =IF(MOD(L11,Input!$G$100)=0,($D$133*(1+$B$2)^L11),0) -> 0 | M133: =IF(MOD(M11,Input!$G$100)=0,($D$133*(1+$B$2)^M11),0) -> 0 | N133: =IF(MOD(N11,Input!$G$100)=0,($D$133*(1+$B$2)^N11),0) -> 647767.6948 | O133: =IF(MOD(O11,Input!$G$100)=0,($D$133*(1+$B$2)^O11),0) -> 0 | P133: =IF(MOD(P11,Input!$G$100)=0,($D$133*(1+$B$2)^P11),0) -> 0 | Q133: =IF(MOD(Q11,Input!$G$100)=0,($D$133*(1+$B$2)^Q11),0) -> 0 | R133: =IF(MOD(R11,Input!$G$100)=0,($D$133*(1+$B$2)^R11),0) -> 0 | S133: =IF(MOD(S11,Input!$G$100)=0,($D$133*(1+$B$2)^S11),0) -> 750940.2948 | T133: =IF(MOD(T11,Input!$G$100)=0,($D$133*(1+$B$2)^T11),0) -> 0 | U133: =IF(MOD(U11,Input!$G$100)=0,($D$133*(1+$B$2)^U11),0) -> 0 | V133: =IF(MOD(V11,Input!$G$100)=0,($D$133*(1+$B$2)^V11),0) -> 0 | W133: =IF(MOD(W11,Input!$G$100)=0,($D$133*(1+$B$2)^W11),0) -> 0 | X133: =IF(MOD(X11,Input!$G$100)=0,($D$133*(1+$B$2)^X11),0) -> 870545.6151 | Y133: =IF(MOD(Y11,Input!$G$100)=0,($D$133*(1+$B$2)^Y11),0) -> 0 | Z133: =IF(MOD(Z11,Input!$G$100)=0,($D$133*(1+$B$2)^Z11),0) -> 0 | AA133: =IF(MOD(AA11,Input!$G$100)=0,($D$133*(1+$B$2)^AA11),0) -> 0 | AB133: =IF(MOD(AB11,Input!$G$100)=0,($D$133*(1+$B$2)^AB11),0) -> 0 | AC133: =IF(MOD(AC11,Input!$G$100)=0,($D$133*(1+$B$2)^AC11),0) -> 1009200.962
A134: Drilling | C134: =IF(Input!$E$8="","",Input!$E$8) -> FCFA | D134: =Input!E101 -> 0
A135: Installation | C135: =IF(Input!$E$8="","",Input!$E$8) -> FCFA | D135: =Input!E102 -> 120000
A136: Other Costs | C136: =IF(Input!$E$8="","",Input!$E$8) -> FCFA | D136: =Input!E103 -> 50000
A137: Loan Repayment | C137: =IF(Input!$E$8="","",Input!$E$8) -> FCFA | D137: 0 | E137: =IF(E11<='Loan Repayment Diesel'!Loan_Years,'Loan Repayment Diesel'!Scheduled_Monthly_Payment,0) -> 0 | F137: =IF(F11<='Loan Repayment Diesel'!Loan_Years,'Loan Repayment Diesel'!Scheduled_Monthly_Payment,0) -> 0 | G137: =IF(G11<='Loan Repayment Diesel'!Loan_Years,'Loan Repayment Diesel'!Scheduled_Monthly_Payment,0) -> 0 | H137: =IF(H11<='Loan Repayment Diesel'!Loan_Years,'Loan Repayment Diesel'!Scheduled_Monthly_Payment,0) -> 0 | I137: =IF(I11<='Loan Repayment Diesel'!Loan_Years,'Loan Repayment Diesel'!Scheduled_Monthly_Payment,0) -> 0 | J137: =IF(J11<='Loan Repayment Diesel'!Loan_Years,'Loan Repayment Diesel'!Scheduled_Monthly_Payment,0) -> 0 | K137: =IF(K11<='Loan Repayment Diesel'!Loan_Years,'Loan Repayment Diesel'!Scheduled_Monthly_Payment,0) -> 0 | L137: =IF(L11<='Loan Repayment Diesel'!Loan_Years,'Loan Repayment Diesel'!Scheduled_Monthly_Payment,0) -> 0 | M137: =IF(M11<='Loan Repayment Diesel'!Loan_Years,'Loan Repayment Diesel'!Scheduled_Monthly_Payment,0) -> 0 | N137: =IF(N11<='Loan Repayment Diesel'!Loan_Years,'Loan Repayment Diesel'!Scheduled_Monthly_Payment,0) -> 0 | O137: =IF(O11<='Loan Repayment Diesel'!Loan_Years,'Loan Repayment Diesel'!Scheduled_Monthly_Payment,0) -> 0 | P137: =IF(P11<='Loan Repayment Diesel'!Loan_Years,'Loan Repayment Diesel'!Scheduled_Monthly_Payment,0) -> 0 | Q137: =IF(Q11<='Loan Repayment Diesel'!Loan_Years,'Loan Repayment Diesel'!Scheduled_Monthly_Payment,0) -> 0 | R137: =IF(R11<='Loan Repayment Diesel'!Loan_Years,'Loan Repayment Diesel'!Scheduled_Monthly_Payment,0) -> 0 | S137: =IF(S11<='Loan Repayment Diesel'!Loan_Years,'Loan Repayment Diesel'!Scheduled_Monthly_Payment,0) -> 0 | T137: =IF(T11<='Loan Repayment Diesel'!Loan_Years,'Loan Repayment Diesel'!Scheduled_Monthly_Payment,0) -> 0 | U137: =IF(U11<='Loan Repayment Diesel'!Loan_Years,'Loan Repayment Diesel'!Scheduled_Monthly_Payment,0) -> 0 | V137: =IF(V11<='Loan Repayment Diesel'!Loan_Years,'Loan Repayment Diesel'!Scheduled_Monthly_Payment,0) -> 0 | W137: =IF(W11<='Loan Repayment Diesel'!Loan_Years,'Loan Repayment Diesel'!Scheduled_Monthly_Payment,0) -> 0 | X137: =IF(X11<='Loan Repayment Diesel'!Loan_Years,'Loan Repayment Diesel'!Scheduled_Monthly_Payment,0) -> 0 | Y137: =IF(Y11<='Loan Repayment Diesel'!Loan_Years,'Loan Repayment Diesel'!Scheduled_Monthly_Payment,0) -> 0 | Z137: =IF(Z11<='Loan Repayment Diesel'!Loan_Years,'Loan Repayment Diesel'!Scheduled_Monthly_Payment,0) -> 0 | AA137: =IF(AA11<='Loan Repayment Diesel'!Loan_Years,'Loan Repayment Diesel'!Scheduled_Monthly_Payment,0) -> 0 | AB137: =IF(AB11<='Loan Repayment Diesel'!Loan_Years,'Loan Repayment Diesel'!Scheduled_Monthly_Payment,0) -> 0 | AC137: =IF(AC11<='Loan Repayment Diesel'!Loan_Years,'Loan Repayment Diesel'!Scheduled_Monthly_Payment,0) -> 0
A138: Fuel costs: | C138: =IF(Input!$E$8="","",Input!$E$8) -> FCFA | D138: 0 | E138: =Input!E108 -> 1378424.658 | F138: =E138*(1+(1*$B$5)) -> 1433561.644 | G138: =F138*(1+(1*$B$5)) -> 1490904.11 | H138: 1550540.274 | I138: 1612561.885 | J138: 1677064.36 | K138: 1744146.935 | L138: 1813912.812 | M138: 1886469.325 | N138: 1961928.098 | O138: 2040405.222 | P138: 2122021.43 | Q138: 2206902.288 | R138: 2295178.379 | S138: 2386985.514 | T138: 2482464.935 | U138: 2581763.532 | V138: 2685034.073 | W138: 2792435.436 | X138: 2904132.854 | Y138: 3020298.168 | Z138: 3141110.095 | AA138: 3266754.499 | AB138: 3397424.679 | AC138: 3533321.666
A139: Operating Costs: | C139: =IF(Input!$E$8="","",Input!$E$8) -> FCFA | D139: 0 | E139: =SUM(Input!E109:E110) -> 65000 | F139: =E139*(1+(1*$B$2)) -> 66950 | G139: =F139*(1+(1*$B$2)) -> 68958.5 | H139: =G139*(1+(1*$B$2)) -> 71027.255 | I139: =H139*(1+(1*$B$2)) -> 73158.07265 | J139: =I139*(1+(1*$B$2)) -> 75352.81483 | K139: =J139*(1+(1*$B$2)) -> 77613.39927 | L139: =K139*(1+(1*$B$2)) -> 79941.80125 | M139: =L139*(1+(1*$B$2)) -> 82340.05529 | N139: =M139*(1+(1*$B$2)) -> 84810.25695 | O139: =N139*(1+(1*$B$2)) -> 87354.56466 | P139: =O139*(1+(1*$B$2)) -> 89975.2016 | Q139: =P139*(1+(1*$B$2)) -> 92674.45765 | R139: =Q139*(1+(1*$B$2)) -> 95454.69137 | S139: =R139*(1+(1*$B$2)) -> 98318.33212 | T139: =S139*(1+(1*$B$2)) -> 101267.8821 | U139: =T139*(1+(1*$B$2)) -> 104305.9185 | V139: =U139*(1+(1*$B$2)) -> 107435.0961 | W139: =V139*(1+(1*$B$2)) -> 110658.149 | X139: =W139*(1+(1*$B$2)) -> 113977.8935 | Y139: =X139*(1+(1*$B$2)) -> 117397.2303 | Z139: =Y139*(1+(1*$B$2)) -> 120919.1472 | AA139: =Z139*(1+(1*$B$2)) -> 124546.7216 | AB139: =AA139*(1+(1*$B$2)) -> 128283.1232 | AC139: =AB139*(1+(1*$B$2)) -> 132131.6169
A140: Water levy | E140: =$B$8*$B$9 -> 0 | F140: =$B$8*$B$9 -> 0 | G140: 0 | H140: 0 | I140: 0 | J140: 0 | K140: 0 | L140: 0 | M140: 0 | N140: 0 | O140: 0 | P140: 0 | Q140: 0 | R140: 0 | S140: 0 | T140: 0 | U140: 0 | V140: 0 | W140: 0 | X140: 0 | Y140: 0 | Z140: 0 | AA140: 0 | AB140: 0 | AC140: 0
A142: Gross Expenses System per year: | C142: =IF(Input!$E$8="","",Input!$E$8) -> FCFA | D142: =SUM(D129:D136) -> 3003370 | E142: =E138+E139+E140+SUMIF(E129:E137,"<1E+307") -> 1443424.658 | F142: =F138+F139+F140+SUMIF(F129:F137,"<1E+307") -> 1500511.644 | G142: 2543316.91 | H142: 1621567.529 | I142: 3542877.025 | J142: 2827064.242 | K142: 1821760.334 | L142: 1893854.613 | M142: 3143105.245 | N142: 4199692.394 | O142: 2127759.786 | P142: 3495181.43 | Q142: 2299576.745 | R142: 2390633.07 | S142: 6383338.323 | T142: 2583732.817 | U142: 2686069.451 | V142: 4324658.925 | W142: 2903093.585 | X142: 6509992.025 | Y142: 4811960.513 | Z142: 3262029.242 | AA142: 3391301.22 | AB142: 5355222.498 | AC142: 7019685.526
A145: Cash Flow: | C145: =IF(Input!$E$8="","",Input!$E$8) -> FCFA | D145: =D14-D150 -> -3003370 | E145: =E14-E150 -> -3028316.658 | F145: =F14-F150 -> -2968502.501 | G145: =G14-G150 -> -3795461.031 | H145: -3529034.342 | I145: -4995117.727 | J145: -5537708.965 | K145: -4846548.995 | L145: -3976191.274 | M145: -4078662.951 | N145: -4933658.42 | O145: -3382251.589 | P145: -2830349.74 | Q145: -678134.8786 | R145: 1828202.819 | S145: 831532.3403 | T145: 4173134.152 | U145: 8004932.793 | V145: 10849928.77 | W145: 15833455.58 | X145: 17998745.98 | Y145: 22729596.14 | Z145: 29964658.64 | AA145: 38120158.33 | AB145: 45466416.84 | AC145: 52418360.42
D147: =IF(D145>0,"Yes","No") -> No | E147: =IF(E145>0,"Yes","No") -> No | F147: No | G147: No | H147: No | I147: No | J147: No | K147: No | L147: No | M147: No | N147: No | O147: No | P147: No | Q147: No | R147: Yes | S147: Yes | T147: Yes | U147: Yes | V147: =IF(V145>0,"Yes","No") -> Yes | W147: Yes | X147: Yes | Y147: Yes | Z147: Yes | AA147: Yes | AB147: Yes | AC147: Yes
A148: Payback period against investment (years) | B148: =IF(AC145<0,"no payback",COUNTIF(D145:AC145,"<0")) -> 14 | C148: years
A150: System Life Cycle Costs | B150: =IF($A$151=TRUE,AC151,NA()) -> 87084779.75 | C150: =IF(Input!$E$8="","",Input!$E$8) -> FCFA | D150: =IF($A$151=TRUE,D151,NA()) -> 3003370 | E150: =IF($A$151=TRUE,E151,NA()) -> 4446794.658 | F150: 5947306.301 | G150: 8490623.211 | H150: 10112190.74 | I150: 13655067.76 | J150: 16482132.01 | K150: 18303892.34 | L150: 20197746.95 | M150: 23340852.2 | N150: 27540544.59 | O150: 29668304.38 | P150: 33163485.81 | Q150: 35463062.56 | R150: 37853695.63 | S150: 44237033.95 | T150: 46820766.77 | U150: 49506836.22 | V150: 53831495.14 | W150: 56734588.73 | X150: 63244580.75 | Y150: 68056541.26 | Z150: 71318570.51 | AA150: 74709871.73 | AB150: 80065094.22 | AC150: =IF($A$151=TRUE,AC151,NA()) -> 87084779.75
A151: TRUE | D151: =D142 -> 3003370 | E151: =SUM($D$142:E142) -> 4446794.658 | F151: =SUM($D$142:F142) -> 5947306.301 | G151: =SUM($D$142:G142) -> 8490623.211 | H151: =SUM($D$142:H142) -> 10112190.74 | I151: =SUM($D$142:I142) -> 13655067.76 | J151: =SUM($D$142:J142) -> 16482132.01 | K151: =SUM($D$142:K142) -> 18303892.34 | L151: =SUM($D$142:L142) -> 20197746.95 | M151: =SUM($D$142:M142) -> 23340852.2 | N151: =SUM($D$142:N142) -> 27540544.59 | O151: =SUM($D$142:O142) -> 29668304.38 | P151: =SUM($D$142:P142) -> 33163485.81 | Q151: =SUM($D$142:Q142) -> 35463062.56 | R151: =SUM($D$142:R142) -> 37853695.63 | S151: =SUM($D$142:S142) -> 44237033.95 | T151: =SUM($D$142:T142) -> 46820766.77 | U151: =SUM($D$142:U142) -> 49506836.22 | V151: =SUM($D$142:V142) -> 53831495.14 | W151: =SUM($D$142:W142) -> 56734588.73 | X151: =SUM($D$142:X142) -> 63244580.75 | Y151: =SUM($D$142:Y142) -> 68056541.26 | Z151: =SUM($D$142:Z142) -> 71318570.51 | AA151: =SUM($D$142:AA142) -> 74709871.73 | AB151: =SUM($D$142:AB142) -> 80065094.22 | AC151: =SUM($D$142:AC142) -> 87084779.75
A152: Cost of water | C152: =IF(Input!$E$8="","",Input!$E$8&" /m3") -> FCFA /m3 | D152: =D142/($B$9*365) -> 117.548728 | E152: =E142/($B$9*365) -> 56.49411575 | F152: 58.72844007 | G152: 99.54273619 | H152: 63.46643949 | I152: 138.6644628 | J152: 110.6483069 | K152: 71.30177433 | L152: 74.12346823 | M152: 123.0178178 | N152: 164.3715223 | O152: 83.27826952 | P152: 136.7977076 | Q152: 90.00300373 | R152: 93.56685207 | S152: 249.8371163 | T152: 101.1245721 | U152: 105.1299198 | V152: 169.2625802 | W152: 113.6240151 | X152: 254.7942084 | Y152: 188.3350494 | Z152: 127.6723774 | AA152: 132.731946 | AB152: 209.5977494 | AC152: 274.7430734
A153: Average water cost over 25 years | B153: =AVERAGE(D152:AC152) -> 131.0925482 | C153: =IF(Input!$E$8="","",Input!$E$8&" /m3") -> FCFA /m3 | I153: =AVERAGE(D152:I152) -> 89.07415372 | N153: =AVERAGE(D152:N152) -> 97.99161926
A155: NPV | B155: =Input!E12 -> 0.08 | C155: =NPV(B155,E145:AC145)+D145 -> 12881106.48
A156: IRR | C156: =IRR(D145:AC145) -> 0.1019753923
F181: Diagramms (Output) - Number:
E185: =Output!B23 -> Valeur actuelle nette (VAN) sur 25ans | H185: =Output!B21 -> Taux de rendement interne (IRR sur 25 ans) | K185: =Output!B27 -> Coûts du cycle de vie du système (25 ans) | N185: =Output!B29 -> Années de remboursement | R185: Accumulated cash flow | U185: Water cost | V185: 5 years | W185: 10 years | X185: 25 years
E187: =Input!D30 -> Système d'irrigation à énergie solaire | F187: =C51 -> 204545969.4 | H187: =Input!D30 -> Système d'irrigation à énergie solaire | I187: =C52 -> 0.3573803067 | K187: =Input!D30 -> Système d'irrigation à énergie solaire | L187: =B46 -> 22859394.77 | N187: =Input!D30 -> Système d'irrigation à énergie solaire | O187: =B44 -> 4 | R187: =Input!D30 -> Système d'irrigation à énergie solaire | S187: =AC41 -> 116643745.4 | U187: =Input!D30 -> Système d'irrigation à énergie solaire | V187: =IF($A$47=TRUE,I49,NA()) -> 39.5984465 | W187: =IF($A$47=TRUE,N49,NA()) -> 31.25685169 | X187: =IF($A$47=TRUE,B49,NA()) -> 34.4112521
E188: =Input!D60 -> Système d'irrigation alimenté par le réseau électrique | F188: =C89 -> 222472064 | H188: =Input!D60 -> Système d'irrigation alimenté par le réseau électrique | I188: =C90 -> 0.651614561 | K188: =Input!D60 -> Système d'irrigation alimenté par le réseau électrique | L188: =B84 -> 21341511.25 | N188: =Input!D60 -> Système d'irrigation alimenté par le réseau électrique | O188: =B82 -> 2 | R188: =Input!D60 -> Système d'irrigation alimenté par le réseau électrique | S188: =AC79 -> 118161628.9 | U188: =Input!D60 -> Système d'irrigation alimenté par le réseau électrique | V188: =IF($A$85=TRUE,I87,NA()) -> 32.85500253 | W188: =IF($A$85=TRUE,N87,NA()) -> 29.6691713 | X188: =IF($A$85=TRUE,B87,NA()) -> 32.1263153
E189: =Input!D92 -> Système d'irrigation à generateur diesel | F189: =C155 -> 12881106.48 | H189: =Input!D92 -> Système d'irrigation à generateur diesel | I189: =C156 -> 0.1019753923 | K189: =Input!D92 -> Système d'irrigation à generateur diesel | L189: =B150 -> 87084779.75 | N189: =Input!D92 -> Système d'irrigation à generateur diesel | O189: =B148 -> 14 | R189: =Input!D92 -> Système d'irrigation à generateur diesel | S189: =AC145 -> 52418360.42 | U189: =Input!D92 -> Système d'irrigation à generateur diesel | V189: =IF($A$151=TRUE,I153,NA()) -> 89.07415372 | W189: =IF($A$151=TRUE,N153,NA()) -> 97.99161926 | X189: =IF($A$151=TRUE,B153,NA()) -> 131.0925482
E190: =" " & Input!E8 -> FCFA | H190: % | K190: =" " & Input!E8 -> FCFA | N190: Years | S190: =" " & Input!E8 -> FCFA | V190: =" " & Input!E8 -> FCFA
E191: ="Comparative accumulated income and system costs over first 10 years in " & E190 -> Comparative accumulated income and system costs over first 10 years in FCFA
E192: ="Comparative accumulated income and system costs over first 25 years in " & E190 -> Comparative accumulated income and system costs over first 25 years in FCFA
E193: ="Comparative accumulated cash flow over first 10 years in " & E190 -> Comparative accumulated cash flow over first 10 years in FCFA
E194: ="Average annual water cost in " & E190 &" /m³" -> Average annual water cost in FCFA /m³
J195: Connections:
E196: =Input!D30 -> Système d'irrigation à énergie solaire | J196: =Input!E8 & "/kWh" -> FCFA/kWh
E197: =Input!D60 -> Système d'irrigation alimenté par le réseau électrique | J197: =Input!E8 & "/l" -> FCFA/l

Sheet Loan Repayment Solar (hidden)
A1: Loan Repayment: | F1: =Input!D30 -> Système d'irrigation à énergie solaire
A2: Bank: | B2: =Input!E56 -> 0
B3: Enter Values | F3: Loan Summary
C4: Loan Amount | D4: =Input!E53 -> 0 | G4: Scheduled Payment | H4: =IF(Values_Entered,-PMT(Interest_Rate/Num_Pmt_Per_Year,Loan_Years*Num_Pmt_Per_Year,Loan_Amount),"0") -> 0
C5: Annual Interest Rate | D5: =Input!E54 -> 0 | G5: Scheduled Number of Payments | H5: =IF(Values_Entered,Loan_Years*Num_Pmt_Per_Year,"") -> 
C6: Loan Period in Years | D6: =Input!E55 -> 0 | G6: Actual Number of Payments | H6: =IF(Values_Entered,Number_of_Payments,"") -> 
C7: Number of Payments Per Year | D7: 1 | G7: Total Early Payments | H7: =IF(Values_Entered,SUMIF(Beg_Bal,">0",Extra_Pay),"") -> 
C8: Start Date of Loan | D8: 2017-01-01 | G8: Total Interest | H8: =IF(Values_Entered,SUMIF(Beg_Bal,">0",Int),"") -> 
C9: Optional Extra Payments | D9: 0
A12: PmtNo. | B12: Payment Date | C12: Beginning Balance | D12: Scheduled Payment | E12: Extra Payment | F12: Total Payment | G12: Principal | H12: Interest | I12: Ending Balance | J12: Cumulative Interest
A14: =IF(Values_Entered,1,"") ->  | B14: =IF(Pay_Num<>"",DATE(YEAR(Loan_Start),MONTH(Loan_Start)+(Pay_Num)*12/Num_Pmt_Per_Year,DAY(Loan_Start)),"") ->  | C14: =IF(Values_Entered,Loan_Amount,"") ->  | D14: =IF(Pay_Num<>"",Scheduled_Monthly_Payment,"") ->  | E14: =IF(AND(Pay_Num<>"",Sched_Pay+Scheduled_Extra_Payments<Beg_Bal),Scheduled_Extra_Payments,IF(AND(Pay_Num<>"",Beg_Bal-Sched_Pay>0),Beg_Bal-Sched_Pay,IF(Pay_Num<>"",0,""))) ->  | F14: =IF(AND(Pay_Num<>"",Sched_Pay+Extra_Pay<Beg_Bal),Sched_Pay+Extra_Pay,IF(Pay_Num<>"",Beg_Bal,"")) ->  | G14: =IF(Pay_Num<>"",Total_Pay-Int,"") ->  | H14: =IF(Pay_Num<>"",Beg_Bal*(Interest_Rate/Num_Pmt_Per_Year),"") ->  | I14: =IF(AND(Pay_Num<>"",Sched_Pay+Extra_Pay<Beg_Bal),Beg_Bal-Princ,IF(Pay_Num<>"",0,"")) ->  | J14: =SUM($H$14:$H14) -> 0
A15: =IF(Values_Entered,A14+1,"") ->  | C15: =IF(Pay_Num<>"",I14,"") ->  | D15: =IF(Pay_Num<>"",Scheduled_Monthly_Payment,"") ->  | G15: =IF(Pay_Num<>"",Total_Pay-Int,"") ->  | H15: =IF(Pay_Num<>"",Beg_Bal*Interest_Rate/Num_Pmt_Per_Year,"") ->  | J15: =SUM($H$14:$H15) -> 0
A16: =IF(Values_Entered,A15+1,"") ->  | D16: =IF(Pay_Num<>"",Scheduled_Monthly_Payment,"") ->  | J16: =SUM($H$14:$H16) -> 0
A17: =IF(Values_Entered,A16+1,"") ->  | D17: =IF(Pay_Num<>"",Scheduled_Monthly_Payment,"") ->  | J17: =SUM($H$14:$H17) -> 0
A18: =IF(Values_Entered,A17+1,"") ->  | J18: =SUM($H$14:$H18) -> 0
A19: =IF(Values_Entered,A18+1,"") ->  | J19: =SUM($H$14:$H19) -> 0
A20: =IF(Values_Entered,A19+1,"") ->  | J20: =SUM($H$14:$H20) -> 0
A21: =IF(Values_Entered,A20+1,"") ->  | J21: =SUM($H$14:$H21) -> 0
A22: =IF(Values_Entered,A21+1,"") ->  | J22: =SUM($H$14:$H22) -> 0
A23: =IF(Values_Entered,A22+1,"") ->  | J23: =SUM($H$14:$H23) -> 0
A24: =IF(Values_Entered,A23+1,"") ->  | J24: =SUM($H$14:$H24) -> 0
A25: =IF(Values_Entered,A24+1,"") ->  | J25: =SUM($H$14:$H25) -> 0
A26: =IF(Values_Entered,A25+1,"") ->  | J26: =SUM($H$14:$H26) -> 0
A27: =IF(Values_Entered,A26+1,"") ->  | J27: =SUM($H$14:$H27) -> 0
A28: =IF(Values_Entered,A27+1,"") ->  | J28: =SUM($H$14:$H28) -> 0
A29: =IF(Values_Entered,A28+1,"") ->  | J29: =SUM($H$14:$H29) -> 0
A30: =IF(Values_Entered,A29+1,"") ->  | J30: =SUM($H$14:$H30) -> 0
A31: =IF(Values_Entered,A30+1,"") ->  | J31: =SUM($H$14:$H31) -> 0
A32: =IF(Values_Entered,A31+1,"") ->  | J32: =SUM($H$14:$H32) -> 0
A33: =IF(Values_Entered,A32+1,"") ->  | J33: =SUM($H$14:$H33) -> 0
A34: =IF(Values_Entered,A33+1,"") ->  | J34: =SUM($H$14:$H34) -> 0
A35: =IF(Values_Entered,A34+1,"") ->  | J35: =SUM($H$14:$H35) -> 0
A36: =IF(Values_Entered,A35+1,"") ->  | J36: =SUM($H$14:$H36) -> 0
A37: =IF(Values_Entered,A36+1,"") ->  | J37: =SUM($H$14:$H37) -> 0
A38: =IF(Values_Entered,A37+1,"") ->  | J38: =SUM($H$14:$H38) -> 0
A39: =IF(Values_Entered,A38+1,"") ->  | J39: =SUM($H$14:$H39) -> 0
A40: =IF(Values_Entered,A39+1,"") ->  | J40: =SUM($H$14:$H40) -> 0
A41: =IF(Values_Entered,A40+1,"") ->  | J41: =SUM($H$14:$H41) -> 0
A42: =IF(Values_Entered,A41+1,"") ->  | J42: =SUM($H$14:$H42) -> 0
A43: =IF(Values_Entered,A42+1,"") ->  | J43: =SUM($H$14:$H43) -> 0
A44: =IF(Values_Entered,A43+1,"") ->  | J44: =SUM($H$14:$H44) -> 0
A45: =IF(Values_Entered,A44+1,"") ->  | J45: =SUM($H$14:$H45) -> 0
A46: =IF(Values_Entered,A45+1,"") ->  | J46: =SUM($H$14:$H46) -> 0
A47: =IF(Values_Entered,A46+1,"") ->  | J47: =SUM($H$14:$H47) -> 0
A48: =IF(Values_Entered,A47+1,"") ->  | J48: =SUM($H$14:$H48) -> 0
A49: =IF(Values_Entered,A48+1,"") ->  | J49: =SUM($H$14:$H49) -> 0
A50: =IF(Values_Entered,A49+1,"") ->  | J50: =SUM($H$14:$H50) -> 0
A51: =IF(Values_Entered,A50+1,"") ->  | J51: =SUM($H$14:$H51) -> 0
A52: =IF(Values_Entered,A51+1,"") ->  | J52: =SUM($H$14:$H52) -> 0
A53: =IF(Values_Entered,A52+1,"") ->  | J53: =SUM($H$14:$H53) -> 0
A54: =IF(Values_Entered,A53+1,"") ->  | J54: =SUM($H$14:$H54) -> 0
A55: =IF(Values_Entered,A54+1,"") ->  | J55: =SUM($H$14:$H55) -> 0
A56: =IF(Values_Entered,A55+1,"") ->  | J56: =SUM($H$14:$H56) -> 0
A57: =IF(Values_Entered,A56+1,"") ->  | J57: =SUM($H$14:$H57) -> 0
A58: =IF(Values_Entered,A57+1,"") ->  | J58: =SUM($H$14:$H58) -> 0
A59: =IF(Values_Entered,A58+1,"") ->  | J59: =SUM($H$14:$H59) -> 0
A60: =IF(Values_Entered,A59+1,"") ->  | J60: =SUM($H$14:$H60) -> 0
A61: =IF(Values_Entered,A60+1,"") ->  | J61: =SUM($H$14:$H61) -> 0
A62: =IF(Values_Entered,A61+1,"") ->  | J62: =SUM($H$14:$H62) -> 0
A63: =IF(Values_Entered,A62+1,"") ->  | J63: =SUM($H$14:$H63) -> 0
A64: =IF(Values_Entered,A63+1,"") ->  | J64: =SUM($H$14:$H64) -> 0
A65: =IF(Values_Entered,A64+1,"") ->  | J65: =SUM($H$14:$H65) -> 0
A66: =IF(Values_Entered,A65+1,"") ->  | J66: =SUM($H$14:$H66) -> 0
A67: =IF(Values_Entered,A66+1,"") ->  | J67: =SUM($H$14:$H67) -> 0
A68: =IF(Values_Entered,A67+1,"") ->  | J68: =SUM($H$14:$H68) -> 0
A69: =IF(Values_Entered,A68+1,"") ->  | J69: =SUM($H$14:$H69) -> 0
A70: =IF(Values_Entered,A69+1,"") ->  | J70: =SUM($H$14:$H70) -> 0
A71: =IF(Values_Entered,A70+1,"") ->  | J71: =SUM($H$14:$H71) -> 0
A72: =IF(Values_Entered,A71+1,"") ->  | J72: =SUM($H$14:$H72) -> 0
A73: =IF(Values_Entered,A72+1,"") ->  | J73: =SUM($H$14:$H73) -> 0
A74: =IF(Values_Entered,A73+1,"") ->  | J74: =SUM($H$14:$H74) -> 0
A75: =IF(Values_Entered,A74+1,"") ->  | J75: =SUM($H$14:$H75) -> 0
A76: =IF(Values_Entered,A75+1,"") ->  | J76: =SUM($H$14:$H76) -> 0
A77: =IF(Values_Entered,A76+1,"") ->  | J77: =SUM($H$14:$H77) -> 0
A78: =IF(Values_Entered,A77+1,"") ->  | B78: =IF(Pay_Num<>"",DATE(YEAR(Loan_Start),MONTH(Loan_Start)+(Pay_Num)*12/Num_Pmt_Per_Year,DAY(Loan_Start)),"") ->  | E78: =IF(AND(Pay_Num<>"",Sched_Pay+Scheduled_Extra_Payments<Beg_Bal),Scheduled_Extra_Payments,IF(AND(Pay_Num<>"",Beg_Bal-Sched_Pay>0),Beg_Bal-Sched_Pay,IF(Pay_Num<>"",0,""))) ->  | F78: =IF(AND(Pay_Num<>"",Sched_Pay+Extra_Pay<Beg_Bal),Sched_Pay+Extra_Pay,IF(Pay_Num<>"",Beg_Bal,"")) ->  | I78: =IF(AND(Pay_Num<>"",Sched_Pay+Extra_Pay<Beg_Bal),Beg_Bal-Princ,IF(Pay_Num<>"",0,"")) ->  | J78: =SUM($H$14:$H78) -> 0
A79: =IF(Values_Entered,A78+1,"") ->  | C79: =IF(Pay_Num<>"",I78,"") ->  | G79: =IF(Pay_Num<>"",Total_Pay-Int,"") ->  | H79: =IF(Pay_Num<>"",Beg_Bal*Interest_Rate/Num_Pmt_Per_Year,"") ->  | J79: =SUM($H$14:$H79) -> 0
A80: =IF(Values_Entered,A79+1,"") ->  | D80: =IF(Pay_Num<>"",Scheduled_Monthly_Payment,"") ->  | J80: =SUM($H$14:$H80) -> 0
A81: =IF(Values_Entered,A80+1,"") ->  | J81: =SUM($H$14:$H81) -> 0
A82: =IF(Values_Entered,A81+1,"") ->  | J82: =SUM($H$14:$H82) -> 0
A83: =IF(Values_Entered,A82+1,"") ->  | J83: =SUM($H$14:$H83) -> 0
A84: =IF(Values_Entered,A83+1,"") ->  | J84: =SUM($H$14:$H84) -> 0
A85: =IF(Values_Entered,A84+1,"") ->  | J85: =SUM($H$14:$H85) -> 0
A86: =IF(Values_Entered,A85+1,"") ->  | J86: =SUM($H$14:$H86) -> 0
A87: =IF(Values_Entered,A86+1,"") ->  | J87: =SUM($H$14:$H87) -> 0
A88: =IF(Values_Entered,A87+1,"") ->  | J88: =SUM($H$14:$H88) -> 0
A89: =IF(Values_Entered,A88+1,"") ->  | J89: =SUM($H$14:$H89) -> 0
A90: =IF(Values_Entered,A89+1,"") ->  | J90: =SUM($H$14:$H90) -> 0
A91: =IF(Values_Entered,A90+1,"") ->  | J91: =SUM($H$14:$H91) -> 0
A92: =IF(Values_Entered,A91+1,"") ->  | J92: =SUM($H$14:$H92) -> 0
A93: =IF(Values_Entered,A92+1,"") ->  | J93: =SUM($H$14:$H93) -> 0
A94: =IF(Values_Entered,A93+1,"") ->  | J94: =SUM($H$14:$H94) -> 0
A95: =IF(Values_Entered,A94+1,"") ->  | J95: =SUM($H$14:$H95) -> 0
A96: =IF(Values_Entered,A95+1,"") ->  | J96: =SUM($H$14:$H96) -> 0
A97: =IF(Values_Entered,A96+1,"") ->  | J97: =SUM($H$14:$H97) -> 0
A98: =IF(Values_Entered,A97+1,"") ->  | J98: =SUM($H$14:$H98) -> 0
A99: =IF(Values_Entered,A98+1,"") ->  | J99: =SUM($H$14:$H99) -> 0
A100: =IF(Values_Entered,A99+1,"") ->  | J100: =SUM($H$14:$H100) -> 0
A101: =IF(Values_Entered,A100+1,"") ->  | J101: =SUM($H$14:$H101) -> 0
A102: =IF(Values_Entered,A101+1,"") ->  | J102: =SUM($H$14:$H102) -> 0
A103: =IF(Values_Entered,A102+1,"") ->  | J103: =SUM($H$14:$H103) -> 0
A104: =IF(Values_Entered,A103+1,"") ->  | J104: =SUM($H$14:$H104) -> 0
A105: =IF(Values_Entered,A104+1,"") ->  | J105: =SUM($H$14:$H105) -> 0
A106: =IF(Values_Entered,A105+1,"") ->  | J106: =SUM($H$14:$H106) -> 0
A107: =IF(Values_Entered,A106+1,"") ->  | J107: =SUM($H$14:$H107) -> 0
A108: =IF(Values_Entered,A107+1,"") ->  | J108: =SUM($H$14:$H108) -> 0
A109: =IF(Values_Entered,A108+1,"") ->  | J109: =SUM($H$14:$H109) -> 0
A110: =IF(Values_Entered,A109+1,"") ->  | J110: =SUM($H$14:$H110) -> 0
A111: =IF(Values_Entered,A110+1,"") ->  | J111: =SUM($H$14:$H111) -> 0
A112: =IF(Values_Entered,A111+1,"") ->  | J112: =SUM($H$14:$H112) -> 0
A113: =IF(Values_Entered,A112+1,"") ->  | J113: =SUM($H$14:$H113) -> 0
A114: =IF(Values_Entered,A113+1,"") ->  | J114: =SUM($H$14:$H114) -> 0
A115: =IF(Values_Entered,A114+1,"") ->  | J115: =SUM($H$14:$H115) -> 0
A116: =IF(Values_Entered,A115+1,"") ->  | J116: =SUM($H$14:$H116) -> 0
A117: =IF(Values_Entered,A116+1,"") ->  | J117: =SUM($H$14:$H117) -> 0
A118: =IF(Values_Entered,A117+1,"") ->  | J118: =SUM($H$14:$H118) -> 0
A119: =IF(Values_Entered,A118+1,"") ->  | J119: =SUM($H$14:$H119) -> 0
A120: =IF(Values_Entered,A119+1,"") ->  | J120: =SUM($H$14:$H120) -> 0
A121: =IF(Values_Entered,A120+1,"") ->  | J121: =SUM($H$14:$H121) -> 0
A122: =IF(Values_Entered,A121+1,"") ->  | J122: =SUM($H$14:$H122) -> 0
A123: =IF(Values_Entered,A122+1,"") ->  | J123: =SUM($H$14:$H123) -> 0
A124: =IF(Values_Entered,A123+1,"") ->  | J124: =SUM($H$14:$H124) -> 0
A125: =IF(Values_Entered,A124+1,"") ->  | J125: =SUM($H$14:$H125) -> 0
A126: =IF(Values_Entered,A125+1,"") ->  | J126: =SUM($H$14:$H126) -> 0
A127: =IF(Values_Entered,A126+1,"") ->  | J127: =SUM($H$14:$H127) -> 0
A128: =IF(Values_Entered,A127+1,"") ->  | J128: =SUM($H$14:$H128) -> 0
A129: =IF(Values_Entered,A128+1,"") ->  | J129: =SUM($H$14:$H129) -> 0
A130: =IF(Values_Entered,A129+1,"") ->  | J130: =SUM($H$14:$H130) -> 0
A131: =IF(Values_Entered,A130+1,"") ->  | J131: =SUM($H$14:$H131) -> 0
A132: =IF(Values_Entered,A131+1,"") ->  | J132: =SUM($H$14:$H132) -> 0
A133: =IF(Values_Entered,A132+1,"") ->  | J133: =SUM($H$14:$H133) -> 0
A134: =IF(Values_Entered,A133+1,"") ->  | J134: =SUM($H$14:$H134) -> 0
A135: =IF(Values_Entered,A134+1,"") ->  | J135: =SUM($H$14:$H135) -> 0
A136: =IF(Values_Entered,A135+1,"") ->  | J136: =SUM($H$14:$H136) -> 0
A137: =IF(Values_Entered,A136+1,"") ->  | J137: =SUM($H$14:$H137) -> 0
A138: =IF(Values_Entered,A137+1,"") ->  | J138: =SUM($H$14:$H138) -> 0
A139: =IF(Values_Entered,A138+1,"") ->  | J139: =SUM($H$14:$H139) -> 0
A140: =IF(Values_Entered,A139+1,"") ->  | J140: =SUM($H$14:$H140) -> 0
A141: =IF(Values_Entered,A140+1,"") ->  | J141: =SUM($H$14:$H141) -> 0
A142: =IF(Values_Entered,A141+1,"") ->  | B142: =IF(Pay_Num<>"",DATE(YEAR(Loan_Start),MONTH(Loan_Start)+(Pay_Num)*12/Num_Pmt_Per_Year,DAY(Loan_Start)),"") ->  | E142: =IF(AND(Pay_Num<>"",Sched_Pay+Scheduled_Extra_Payments<Beg_Bal),Scheduled_Extra_Payments,IF(AND(Pay_Num<>"",Beg_Bal-Sched_Pay>0),Beg_Bal-Sched_Pay,IF(Pay_Num<>"",0,""))) ->  | F142: =IF(AND(Pay_Num<>"",Sched_Pay+Extra_Pay<Beg_Bal),Sched_Pay+Extra_Pay,IF(Pay_Num<>"",Beg_Bal,"")) ->  | I142: =IF(AND(Pay_Num<>"",Sched_Pay+Extra_Pay<Beg_Bal),Beg_Bal-Princ,IF(Pay_Num<>"",0,"")) ->  | J142: =SUM($H$14:$H142) -> 0
A143: =IF(Values_Entered,A142+1,"") ->  | C143: =IF(Pay_Num<>"",I142,"") ->  | G143: =IF(Pay_Num<>"",Total_Pay-Int,"") ->  | H143: =IF(Pay_Num<>"",Beg_Bal*Interest_Rate/Num_Pmt_Per_Year,"") ->  | J143: =SUM($H$14:$H143) -> 0
A144: =IF(Values_Entered,A143+1,"") ->  | D144: =IF(Pay_Num<>"",Scheduled_Monthly_Payment,"") ->  | J144: =SUM($H$14:$H144) -> 0
A145: =IF(Values_Entered,A144+1,"") ->  | J145: =SUM($H$14:$H145) -> 0
A146: =IF(Values_Entered,A145+1,"") ->  | J146: =SUM($H$14:$H146) -> 0
A147: =IF(Values_Entered,A146+1,"") ->  | J147: =SUM($H$14:$H147) -> 0
A148: =IF(Values_Entered,A147+1,"") ->  | J148: =SUM($H$14:$H148) -> 0
A149: =IF(Values_Entered,A148+1,"") ->  | J149: =SUM($H$14:$H149) -> 0
A150: =IF(Values_Entered,A149+1,"") ->  | J150: =SUM($H$14:$H150) -> 0
A151: =IF(Values_Entered,A150+1,"") ->  | J151: =SUM($H$14:$H151) -> 0
A152: =IF(Values_Entered,A151+1,"") ->  | J152: =SUM($H$14:$H152) -> 0
A153: =IF(Values_Entered,A152+1,"") ->  | J153: =SUM($H$14:$H153) -> 0
A154: =IF(Values_Entered,A153+1,"") ->  | J154: =SUM($H$14:$H154) -> 0
A155: =IF(Values_Entered,A154+1,"") ->  | J155: =SUM($H$14:$H155) -> 0
A156: =IF(Values_Entered,A155+1,"") ->  | J156: =SUM($H$14:$H156) -> 0
A157: =IF(Values_Entered,A156+1,"") ->  | J157: =SUM($H$14:$H157) -> 0
A158: =IF(Values_Entered,A157+1,"") ->  | J158: =SUM($H$14:$H158) -> 0
A159: =IF(Values_Entered,A158+1,"") ->  | J159: =SUM($H$14:$H159) -> 0
A160: =IF(Values_Entered,A159+1,"") ->  | J160: =SUM($H$14:$H160) -> 0
A161: =IF(Values_Entered,A160+1,"") ->  | J161: =SUM($H$14:$H161) -> 0
A162: =IF(Values_Entered,A161+1,"") ->  | J162: =SUM($H$14:$H162) -> 0
A163: =IF(Values_Entered,A162+1,"") ->  | J163: =SUM($H$14:$H163) -> 0
A164: =IF(Values_Entered,A163+1,"") ->  | J164: =SUM($H$14:$H164) -> 0
A165: =IF(Values_Entered,A164+1,"") ->  | J165: =SUM($H$14:$H165) -> 0
A166: =IF(Values_Entered,A165+1,"") ->  | J166: =SUM($H$14:$H166) -> 0
A167: =IF(Values_Entered,A166+1,"") ->  | J167: =SUM($H$14:$H167) -> 0
A168: =IF(Values_Entered,A167+1,"") ->  | J168: =SUM($H$14:$H168) -> 0
A169: =IF(Values_Entered,A168+1,"") ->  | J169: =SUM($H$14:$H169) -> 0
A170: =IF(Values_Entered,A169+1,"") ->  | J170: =SUM($H$14:$H170) -> 0
A171: =IF(Values_Entered,A170+1,"") ->  | J171: =SUM($H$14:$H171) -> 0
A172: =IF(Values_Entered,A171+1,"") ->  | J172: =SUM($H$14:$H172) -> 0
A173: =IF(Values_Entered,A172+1,"") ->  | J173: =SUM($H$14:$H173) -> 0
A174: =IF(Values_Entered,A173+1,"") ->  | J174: =SUM($H$14:$H174) -> 0
A175: =IF(Values_Entered,A174+1,"") ->  | J175: =SUM($H$14:$H175) -> 0
A176: =IF(Values_Entered,A175+1,"") ->  | J176: =SUM($H$14:$H176) -> 0
A177: =IF(Values_Entered,A176+1,"") ->  | J177: =SUM($H$14:$H177) -> 0
A178: =IF(Values_Entered,A177+1,"") ->  | J178: =SUM($H$14:$H178) -> 0
A179: =IF(Values_Entered,A178+1,"") ->  | J179: =SUM($H$14:$H179) -> 0
A180: =IF(Values_Entered,A179+1,"") ->  | J180: =SUM($H$14:$H180) -> 0
A181: =IF(Values_Entered,A180+1,"") ->  | J181: =SUM($H$14:$H181) -> 0
A182: =IF(Values_Entered,A181+1,"") ->  | J182: =SUM($H$14:$H182) -> 0
A183: =IF(Values_Entered,A182+1,"") ->  | J183: =SUM($H$14:$H183) -> 0
A184: =IF(Values_Entered,A183+1,"") ->  | J184: =SUM($H$14:$H184) -> 0
A185: =IF(Values_Entered,A184+1,"") ->  | J185: =SUM($H$14:$H185) -> 0
A186: =IF(Values_Entered,A185+1,"") ->  | J186: =SUM($H$14:$H186) -> 0
A187: =IF(Values_Entered,A186+1,"") ->  | J187: =SUM($H$14:$H187) -> 0
A188: =IF(Values_Entered,A187+1,"") ->  | J188: =SUM($H$14:$H188) -> 0
A189: =IF(Values_Entered,A188+1,"") ->  | J189: =SUM($H$14:$H189) -> 0
A190: =IF(Values_Entered,A189+1,"") ->  | J190: =SUM($H$14:$H190) -> 0
A191: =IF(Values_Entered,A190+1,"") ->  | J191: =SUM($H$14:$H191) -> 0
A192: =IF(Values_Entered,A191+1,"") ->  | J192: =SUM($H$14:$H192) -> 0
A193: =IF(Values_Entered,A192+1,"") ->  | J193: =SUM($H$14:$H193) -> 0
A194: =IF(Values_Entered,A193+1,"") ->  | J194: =SUM($H$14:$H194) -> 0
A195: =IF(Values_Entered,A194+1,"") ->  | J195: =SUM($H$14:$H195) -> 0
A196: =IF(Values_Entered,A195+1,"") ->  | J196: =SUM($H$14:$H196) -> 0
A197: =IF(Values_Entered,A196+1,"") ->  | J197: =SUM($H$14:$H197) -> 0
A198: =IF(Values_Entered,A197+1,"") ->  | J198: =SUM($H$14:$H198) -> 0
A199: =IF(Values_Entered,A198+1,"") ->  | J199: =SUM($H$14:$H199) -> 0
A200: =IF(Values_Entered,A199+1,"") ->  | J200: =SUM($H$14:$H200) -> 0
A201: =IF(Values_Entered,A200+1,"") ->  | J201: =SUM($H$14:$H201) -> 0
A202: =IF(Values_Entered,A201+1,"") ->  | J202: =SUM($H$14:$H202) -> 0
A203: =IF(Values_Entered,A202+1,"") ->  | J203: =SUM($H$14:$H203) -> 0
... 170 more rows

Sheet Loan Repayment Grid (hidden)
A1: Loan Repayment: | F1: =Input!D60 -> Système d'irrigation alimenté par le réseau électrique
A2: Bank: | B2: =Input!E88 -> 0
B3: Enter Values | F3: Loan Summary
C4: Loan Amount | D4: =Input!E85 -> 0 | G4: Scheduled Payment | H4: =IF(Values_Entered,-PMT(Interest_Rate/Num_Pmt_Per_Year,Loan_Years*Num_Pmt_Per_Year,Loan_Amount),"0") -> 0
C5: Annual Interest Rate | D5: =Input!E86 -> 0 | G5: Scheduled Number of Payments | H5: =IF(Values_Entered,Loan_Years*Num_Pmt_Per_Year,"") -> 
C6: Loan Period in Years | D6: =Input!E87 -> 0 | G6: Actual Number of Payments | H6: =IF(Values_Entered,Number_of_Payments,"") -> 
C7: Number of Payments Per Year | D7: 1 | G7: Total Early Payments | H7: =IF(Values_Entered,SUMIF(Beg_Bal,">0",Extra_Pay),"") -> 
C8: Start Date of Loan | D8: 2017-01-01 | G8: Total Interest | H8: =IF(Values_Entered,SUMIF(Beg_Bal,">0",Int),"") -> 
C9: Optional Extra Payments | D9: 0
A12: PmtNo. | B12: Payment Date | C12: Beginning Balance | D12: Scheduled Payment | E12: Extra Payment | F12: Total Payment | G12: Principal | H12: Interest | I12: Ending Balance | J12: Cumulative Interest
A14: =IF(Values_Entered,1,"") ->  | B14: =IF(Pay_Num<>"",DATE(YEAR(Loan_Start),MONTH(Loan_Start)+(Pay_Num)*12/Num_Pmt_Per_Year,DAY(Loan_Start)),"") ->  | C14: =IF(Values_Entered,Loan_Amount,"") ->  | D14: =IF(Pay_Num<>"",Scheduled_Monthly_Payment,"") ->  | E14: =IF(AND(Pay_Num<>"",Sched_Pay+Scheduled_Extra_Payments<Beg_Bal),Scheduled_Extra_Payments,IF(AND(Pay_Num<>"",Beg_Bal-Sched_Pay>0),Beg_Bal-Sched_Pay,IF(Pay_Num<>"",0,""))) ->  | F14: =IF(AND(Pay_Num<>"",Sched_Pay+Extra_Pay<Beg_Bal),Sched_Pay+Extra_Pay,IF(Pay_Num<>"",Beg_Bal,"")) ->  | G14: =IF(Pay_Num<>"",Total_Pay-Int,"") ->  | H14: =IF(Pay_Num<>"",Beg_Bal*(Interest_Rate/Num_Pmt_Per_Year),"") ->  | I14: =IF(AND(Pay_Num<>"",Sched_Pay+Extra_Pay<Beg_Bal),Beg_Bal-Princ,IF(Pay_Num<>"",0,"")) ->  | J14: =SUM($H$14:$H14) -> 0
A15: =IF(Values_Entered,A14+1,"") ->  | C15: =IF(Pay_Num<>"",I14,"") ->  | D15: =IF(Pay_Num<>"",Scheduled_Monthly_Payment,"") ->  | G15: =IF(Pay_Num<>"",Total_Pay-Int,"") ->  | H15: =IF(Pay_Num<>"",Beg_Bal*Interest_Rate/Num_Pmt_Per_Year,"") ->  | J15: =SUM($H$14:$H15) -> 0
A16: =IF(Values_Entered,A15+1,"") ->  | D16: =IF(Pay_Num<>"",Scheduled_Monthly_Payment,"") ->  | J16: =SUM($H$14:$H16) -> 0
A17: =IF(Values_Entered,A16+1,"") ->  | D17: =IF(Pay_Num<>"",Scheduled_Monthly_Payment,"") ->  | J17: =SUM($H$14:$H17) -> 0
A18: =IF(Values_Entered,A17+1,"") ->  | J18: =SUM($H$14:$H18) -> 0
A19: =IF(Values_Entered,A18+1,"") ->  | J19: =SUM($H$14:$H19) -> 0
A20: =IF(Values_Entered,A19+1,"") ->  | J20: =SUM($H$14:$H20) -> 0
A21: =IF(Values_Entered,A20+1,"") ->  | J21: =SUM($H$14:$H21) -> 0
A22: =IF(Values_Entered,A21+1,"") ->  | J22: =SUM($H$14:$H22) -> 0
A23: =IF(Values_Entered,A22+1,"") ->  | J23: =SUM($H$14:$H23) -> 0
A24: =IF(Values_Entered,A23+1,"") ->  | J24: =SUM($H$14:$H24) -> 0
A25: =IF(Values_Entered,A24+1,"") ->  | J25: =SUM($H$14:$H25) -> 0
A26: =IF(Values_Entered,A25+1,"") ->  | J26: =SUM($H$14:$H26) -> 0
A27: =IF(Values_Entered,A26+1,"") ->  | J27: =SUM($H$14:$H27) -> 0
A28: =IF(Values_Entered,A27+1,"") ->  | J28: =SUM($H$14:$H28) -> 0
A29: =IF(Values_Entered,A28+1,"") ->  | J29: =SUM($H$14:$H29) -> 0
A30: =IF(Values_Entered,A29+1,"") ->  | J30: =SUM($H$14:$H30) -> 0
A31: =IF(Values_Entered,A30+1,"") ->  | J31: =SUM($H$14:$H31) -> 0
A32: =IF(Values_Entered,A31+1,"") ->  | J32: =SUM($H$14:$H32) -> 0
A33: =IF(Values_Entered,A32+1,"") ->  | J33: =SUM($H$14:$H33) -> 0
A34: =IF(Values_Entered,A33+1,"") ->  | J34: =SUM($H$14:$H34) -> 0
A35: =IF(Values_Entered,A34+1,"") ->  | J35: =SUM($H$14:$H35) -> 0
A36: =IF(Values_Entered,A35+1,"") ->  | J36: =SUM($H$14:$H36) -> 0
A37: =IF(Values_Entered,A36+1,"") ->  | J37: =SUM($H$14:$H37) -> 0
A38: =IF(Values_Entered,A37+1,"") ->  | J38: =SUM($H$14:$H38) -> 0
A39: =IF(Values_Entered,A38+1,"") ->  | J39: =SUM($H$14:$H39) -> 0
A40: =IF(Values_Entered,A39+1,"") ->  | J40: =SUM($H$14:$H40) -> 0
A41: =IF(Values_Entered,A40+1,"") ->  | J41: =SUM($H$14:$H41) -> 0
A42: =IF(Values_Entered,A41+1,"") ->  | J42: =SUM($H$14:$H42) -> 0
A43: =IF(Values_Entered,A42+1,"") ->  | J43: =SUM($H$14:$H43) -> 0
A44: =IF(Values_Entered,A43+1,"") ->  | J44: =SUM($H$14:$H44) -> 0
A45: =IF(Values_Entered,A44+1,"") ->  | J45: =SUM($H$14:$H45) -> 0
A46: =IF(Values_Entered,A45+1,"") ->  | J46: =SUM($H$14:$H46) -> 0
A47: =IF(Values_Entered,A46+1,"") ->  | J47: =SUM($H$14:$H47) -> 0
A48: =IF(Values_Entered,A47+1,"") ->  | J48: =SUM($H$14:$H48) -> 0
A49: =IF(Values_Entered,A48+1,"") ->  | J49: =SUM($H$14:$H49) -> 0
A50: =IF(Values_Entered,A49+1,"") ->  | J50: =SUM($H$14:$H50) -> 0
A51: =IF(Values_Entered,A50+1,"") ->  | J51: =SUM($H$14:$H51) -> 0
A52: =IF(Values_Entered,A51+1,"") ->  | J52: =SUM($H$14:$H52) -> 0
A53: =IF(Values_Entered,A52+1,"") ->  | J53: =SUM($H$14:$H53) -> 0
A54: =IF(Values_Entered,A53+1,"") ->  | J54: =SUM($H$14:$H54) -> 0
A55: =IF(Values_Entered,A54+1,"") ->  | J55: =SUM($H$14:$H55) -> 0
A56: =IF(Values_Entered,A55+1,"") ->  | J56: =SUM($H$14:$H56) -> 0
A57: =IF(Values_Entered,A56+1,"") ->  | J57: =SUM($H$14:$H57) -> 0
A58: =IF(Values_Entered,A57+1,"") ->  | J58: =SUM($H$14:$H58) -> 0
A59: =IF(Values_Entered,A58+1,"") ->  | J59: =SUM($H$14:$H59) -> 0
A60: =IF(Values_Entered,A59+1,"") ->  | J60: =SUM($H$14:$H60) -> 0
A61: =IF(Values_Entered,A60+1,"") ->  | J61: =SUM($H$14:$H61) -> 0
A62: =IF(Values_Entered,A61+1,"") ->  | J62: =SUM($H$14:$H62) -> 0
A63: =IF(Values_Entered,A62+1,"") ->  | J63: =SUM($H$14:$H63) -> 0
A64: =IF(Values_Entered,A63+1,"") ->  | J64: =SUM($H$14:$H64) -> 0
A65: =IF(Values_Entered,A64+1,"") ->  | J65: =SUM($H$14:$H65) -> 0
A66: =IF(Values_Entered,A65+1,"") ->  | J66: =SUM($H$14:$H66) -> 0
A67: =IF(Values_Entered,A66+1,"") ->  | J67: =SUM($H$14:$H67) -> 0
A68: =IF(Values_Entered,A67+1,"") ->  | J68: =SUM($H$14:$H68) -> 0
A69: =IF(Values_Entered,A68+1,"") ->  | J69: =SUM($H$14:$H69) -> 0
A70: =IF(Values_Entered,A69+1,"") ->  | J70: =SUM($H$14:$H70) -> 0
A71: =IF(Values_Entered,A70+1,"") ->  | J71: =SUM($H$14:$H71) -> 0
A72: =IF(Values_Entered,A71+1,"") ->  | J72: =SUM($H$14:$H72) -> 0
A73: =IF(Values_Entered,A72+1,"") ->  | J73: =SUM($H$14:$H73) -> 0
A74: =IF(Values_Entered,A73+1,"") ->  | J74: =SUM($H$14:$H74) -> 0
A75: =IF(Values_Entered,A74+1,"") ->  | J75: =SUM($H$14:$H75) -> 0
A76: =IF(Values_Entered,A75+1,"") ->  | J76: =SUM($H$14:$H76) -> 0
A77: =IF(Values_Entered,A76+1,"") ->  | J77: =SUM($H$14:$H77) -> 0
A78: =IF(Values_Entered,A77+1,"") ->  | B78: =IF(Pay_Num<>"",DATE(YEAR(Loan_Start),MONTH(Loan_Start)+(Pay_Num)*12/Num_Pmt_Per_Year,DAY(Loan_Start)),"") ->  | E78: =IF(AND(Pay_Num<>"",Sched_Pay+Scheduled_Extra_Payments<Beg_Bal),Scheduled_Extra_Payments,IF(AND(Pay_Num<>"",Beg_Bal-Sched_Pay>0),Beg_Bal-Sched_Pay,IF(Pay_Num<>"",0,""))) ->  | F78: =IF(AND(Pay_Num<>"",Sched_Pay+Extra_Pay<Beg_Bal),Sched_Pay+Extra_Pay,IF(Pay_Num<>"",Beg_Bal,"")) ->  | I78: =IF(AND(Pay_Num<>"",Sched_Pay+Extra_Pay<Beg_Bal),Beg_Bal-Princ,IF(Pay_Num<>"",0,"")) ->  | J78: =SUM($H$14:$H78) -> 0
A79: =IF(Values_Entered,A78+1,"") ->  | C79: =IF(Pay_Num<>"",I78,"") ->  | G79: =IF(Pay_Num<>"",Total_Pay-Int,"") ->  | H79: =IF(Pay_Num<>"",Beg_Bal*Interest_Rate/Num_Pmt_Per_Year,"") ->  | J79: =SUM($H$14:$H79) -> 0
A80: =IF(Values_Entered,A79+1,"") ->  | D80: =IF(Pay_Num<>"",Scheduled_Monthly_Payment,"") ->  | J80: =SUM($H$14:$H80) -> 0
A81: =IF(Values_Entered,A80+1,"") ->  | J81: =SUM($H$14:$H81) -> 0
A82: =IF(Values_Entered,A81+1,"") ->  | J82: =SUM($H$14:$H82) -> 0
A83: =IF(Values_Entered,A82+1,"") ->  | J83: =SUM($H$14:$H83) -> 0
A84: =IF(Values_Entered,A83+1,"") ->  | J84: =SUM($H$14:$H84) -> 0
A85: =IF(Values_Entered,A84+1,"") ->  | J85: =SUM($H$14:$H85) -> 0
A86: =IF(Values_Entered,A85+1,"") ->  | J86: =SUM($H$14:$H86) -> 0
A87: =IF(Values_Entered,A86+1,"") ->  | J87: =SUM($H$14:$H87) -> 0
A88: =IF(Values_Entered,A87+1,"") ->  | J88: =SUM($H$14:$H88) -> 0
A89: =IF(Values_Entered,A88+1,"") ->  | J89: =SUM($H$14:$H89) -> 0
A90: =IF(Values_Entered,A89+1,"") ->  | J90: =SUM($H$14:$H90) -> 0
A91: =IF(Values_Entered,A90+1,"") ->  | J91: =SUM($H$14:$H91) -> 0
A92: =IF(Values_Entered,A91+1,"") ->  | J92: =SUM($H$14:$H92) -> 0
A93: =IF(Values_Entered,A92+1,"") ->  | J93: =SUM($H$14:$H93) -> 0
A94: =IF(Values_Entered,A93+1,"") ->  | J94: =SUM($H$14:$H94) -> 0
A95: =IF(Values_Entered,A94+1,"") ->  | J95: =SUM($H$14:$H95) -> 0
A96: =IF(Values_Entered,A95+1,"") ->  | J96: =SUM($H$14:$H96) -> 0
A97: =IF(Values_Entered,A96+1,"") ->  | J97: =SUM($H$14:$H97) -> 0
A98: =IF(Values_Entered,A97+1,"") ->  | J98: =SUM($H$14:$H98) -> 0
A99: =IF(Values_Entered,A98+1,"") ->  | J99: =SUM($H$14:$H99) -> 0
A100: =IF(Values_Entered,A99+1,"") ->  | J100: =SUM($H$14:$H100) -> 0
A101: =IF(Values_Entered,A100+1,"") ->  | J101: =SUM($H$14:$H101) -> 0
A102: =IF(Values_Entered,A101+1,"") ->  | J102: =SUM($H$14:$H102) -> 0
A103: =IF(Values_Entered,A102+1,"") ->  | J103: =SUM($H$14:$H103) -> 0
A104: =IF(Values_Entered,A103+1,"") ->  | J104: =SUM($H$14:$H104) -> 0
A105: =IF(Values_Entered,A104+1,"") ->  | J105: =SUM($H$14:$H105) -> 0
A106: =IF(Values_Entered,A105+1,"") ->  | J106: =SUM($H$14:$H106) -> 0
A107: =IF(Values_Entered,A106+1,"") ->  | J107: =SUM($H$14:$H107) -> 0
A108: =IF(Values_Entered,A107+1,"") ->  | J108: =SUM($H$14:$H108) -> 0
A109: =IF(Values_Entered,A108+1,"") ->  | J109: =SUM($H$14:$H109) -> 0
A110: =IF(Values_Entered,A109+1,"") ->  | J110: =SUM($H$14:$H110) -> 0
A111: =IF(Values_Entered,A110+1,"") ->  | J111: =SUM($H$14:$H111) -> 0
A112: =IF(Values_Entered,A111+1,"") ->  | J112: =SUM($H$14:$H112) -> 0
A113: =IF(Values_Entered,A112+1,"") ->  | J113: =SUM($H$14:$H113) -> 0
A114: =IF(Values_Entered,A113+1,"") ->  | J114: =SUM($H$14:$H114) -> 0
A115: =IF(Values_Entered,A114+1,"") ->  | J115: =SUM($H$14:$H115) -> 0
A116: =IF(Values_Entered,A115+1,"") ->  | J116: =SUM($H$14:$H116) -> 0
A117: =IF(Values_Entered,A116+1,"") ->  | J117: =SUM($H$14:$H117) -> 0
A118: =IF(Values_Entered,A117+1,"") ->  | J118: =SUM($H$14:$H118) -> 0
A119: =IF(Values_Entered,A118+1,"") ->  | J119: =SUM($H$14:$H119) -> 0
A120: =IF(Values_Entered,A119+1,"") ->  | J120: =SUM($H$14:$H120) -> 0
A121: =IF(Values_Entered,A120+1,"") ->  | J121: =SUM($H$14:$H121) -> 0
A122: =IF(Values_Entered,A121+1,"") ->  | J122: =SUM($H$14:$H122) -> 0
A123: =IF(Values_Entered,A122+1,"") ->  | J123: =SUM($H$14:$H123) -> 0
A124: =IF(Values_Entered,A123+1,"") ->  | J124: =SUM($H$14:$H124) -> 0
A125: =IF(Values_Entered,A124+1,"") ->  | J125: =SUM($H$14:$H125) -> 0
A126: =IF(Values_Entered,A125+1,"") ->  | J126: =SUM($H$14:$H126) -> 0
A127: =IF(Values_Entered,A126+1,"") ->  | J127: =SUM($H$14:$H127) -> 0
A128: =IF(Values_Entered,A127+1,"") ->  | J128: =SUM($H$14:$H128) -> 0
A129: =IF(Values_Entered,A128+1,"") ->  | J129: =SUM($H$14:$H129) -> 0
A130: =IF(Values_Entered,A129+1,"") ->  | J130: =SUM($H$14:$H130) -> 0
A131: =IF(Values_Entered,A130+1,"") ->  | J131: =SUM($H$14:$H131) -> 0
A132: =IF(Values_Entered,A131+1,"") ->  | J132: =SUM($H$14:$H132) -> 0
A133: =IF(Values_Entered,A132+1,"") ->  | J133: =SUM($H$14:$H133) -> 0
A134: =IF(Values_Entered,A133+1,"") ->  | J134: =SUM($H$14:$H134) -> 0
A135: =IF(Values_Entered,A134+1,"") ->  | J135: =SUM($H$14:$H135) -> 0
A136: =IF(Values_Entered,A135+1,"") ->  | J136: =SUM($H$14:$H136) -> 0
A137: =IF(Values_Entered,A136+1,"") ->  | J137: =SUM($H$14:$H137) -> 0
A138: =IF(Values_Entered,A137+1,"") ->  | J138: =SUM($H$14:$H138) -> 0
A139: =IF(Values_Entered,A138+1,"") ->  | J139: =SUM($H$14:$H139) -> 0
A140: =IF(Values_Entered,A139+1,"") ->  | J140: =SUM($H$14:$H140) -> 0
A141: =IF(Values_Entered,A140+1,"") ->  | J141: =SUM($H$14:$H141) -> 0
A142: =IF(Values_Entered,A141+1,"") ->  | B142: =IF(Pay_Num<>"",DATE(YEAR(Loan_Start),MONTH(Loan_Start)+(Pay_Num)*12/Num_Pmt_Per_Year,DAY(Loan_Start)),"") ->  | E142: =IF(AND(Pay_Num<>"",Sched_Pay+Scheduled_Extra_Payments<Beg_Bal),Scheduled_Extra_Payments,IF(AND(Pay_Num<>"",Beg_Bal-Sched_Pay>0),Beg_Bal-Sched_Pay,IF(Pay_Num<>"",0,""))) ->  | F142: =IF(AND(Pay_Num<>"",Sched_Pay+Extra_Pay<Beg_Bal),Sched_Pay+Extra_Pay,IF(Pay_Num<>"",Beg_Bal,"")) ->  | I142: =IF(AND(Pay_Num<>"",Sched_Pay+Extra_Pay<Beg_Bal),Beg_Bal-Princ,IF(Pay_Num<>"",0,"")) ->  | J142: =SUM($H$14:$H142) -> 0
A143: =IF(Values_Entered,A142+1,"") ->  | C143: =IF(Pay_Num<>"",I142,"") ->  | G143: =IF(Pay_Num<>"",Total_Pay-Int,"") ->  | H143: =IF(Pay_Num<>"",Beg_Bal*Interest_Rate/Num_Pmt_Per_Year,"") ->  | J143: =SUM($H$14:$H143) -> 0
A144: =IF(Values_Entered,A143+1,"") ->  | D144: =IF(Pay_Num<>"",Scheduled_Monthly_Payment,"") ->  | J144: =SUM($H$14:$H144) -> 0
A145: =IF(Values_Entered,A144+1,"") ->  | J145: =SUM($H$14:$H145) -> 0
A146: =IF(Values_Entered,A145+1,"") ->  | J146: =SUM($H$14:$H146) -> 0
A147: =IF(Values_Entered,A146+1,"") ->  | J147: =SUM($H$14:$H147) -> 0
A148: =IF(Values_Entered,A147+1,"") ->  | J148: =SUM($H$14:$H148) -> 0
A149: =IF(Values_Entered,A148+1,"") ->  | J149: =SUM($H$14:$H149) -> 0
A150: =IF(Values_Entered,A149+1,"") ->  | J150: =SUM($H$14:$H150) -> 0
A151: =IF(Values_Entered,A150+1,"") ->  | J151: =SUM($H$14:$H151) -> 0
A152: =IF(Values_Entered,A151+1,"") ->  | J152: =SUM($H$14:$H152) -> 0
A153: =IF(Values_Entered,A152+1,"") ->  | J153: =SUM($H$14:$H153) -> 0
A154: =IF(Values_Entered,A153+1,"") ->  | J154: =SUM($H$14:$H154) -> 0
A155: =IF(Values_Entered,A154+1,"") ->  | J155: =SUM($H$14:$H155) -> 0
A156: =IF(Values_Entered,A155+1,"") ->  | J156: =SUM($H$14:$H156) -> 0
A157: =IF(Values_Entered,A156+1,"") ->  | J157: =SUM($H$14:$H157) -> 0
A158: =IF(Values_Entered,A157+1,"") ->  | J158: =SUM($H$14:$H158) -> 0
A159: =IF(Values_Entered,A158+1,"") ->  | J159: =SUM($H$14:$H159) -> 0
A160: =IF(Values_Entered,A159+1,"") ->  | J160: =SUM($H$14:$H160) -> 0
A161: =IF(Values_Entered,A160+1,"") ->  | J161: =SUM($H$14:$H161) -> 0
A162: =IF(Values_Entered,A161+1,"") ->  | J162: =SUM($H$14:$H162) -> 0
A163: =IF(Values_Entered,A162+1,"") ->  | J163: =SUM($H$14:$H163) -> 0
A164: =IF(Values_Entered,A163+1,"") ->  | J164: =SUM($H$14:$H164) -> 0
A165: =IF(Values_Entered,A164+1,"") ->  | J165: =SUM($H$14:$H165) -> 0
A166: =IF(Values_Entered,A165+1,"") ->  | J166: =SUM($H$14:$H166) -> 0
A167: =IF(Values_Entered,A166+1,"") ->  | J167: =SUM($H$14:$H167) -> 0
A168: =IF(Values_Entered,A167+1,"") ->  | J168: =SUM($H$14:$H168) -> 0
A169: =IF(Values_Entered,A168+1,"") ->  | J169: =SUM($H$14:$H169) -> 0
A170: =IF(Values_Entered,A169+1,"") ->  | J170: =SUM($H$14:$H170) -> 0
A171: =IF(Values_Entered,A170+1,"") ->  | J171: =SUM($H$14:$H171) -> 0
A172: =IF(Values_Entered,A171+1,"") ->  | J172: =SUM($H$14:$H172) -> 0
A173: =IF(Values_Entered,A172+1,"") ->  | J173: =SUM($H$14:$H173) -> 0
A174: =IF(Values_Entered,A173+1,"") ->  | J174: =SUM($H$14:$H174) -> 0
A175: =IF(Values_Entered,A174+1,"") ->  | J175: =SUM($H$14:$H175) -> 0
A176: =IF(Values_Entered,A175+1,"") ->  | J176: =SUM($H$14:$H176) -> 0
A177: =IF(Values_Entered,A176+1,"") ->  | J177: =SUM($H$14:$H177) -> 0
A178: =IF(Values_Entered,A177+1,"") ->  | J178: =SUM($H$14:$H178) -> 0
A179: =IF(Values_Entered,A178+1,"") ->  | J179: =SUM($H$14:$H179) -> 0
A180: =IF(Values_Entered,A179+1,"") ->  | J180: =SUM($H$14:$H180) -> 0
A181: =IF(Values_Entered,A180+1,"") ->  | J181: =SUM($H$14:$H181) -> 0
A182: =IF(Values_Entered,A181+1,"") ->  | J182: =SUM($H$14:$H182) -> 0
A183: =IF(Values_Entered,A182+1,"") ->  | J183: =SUM($H$14:$H183) -> 0
A184: =IF(Values_Entered,A183+1,"") ->  | J184: =SUM($H$14:$H184) -> 0
A185: =IF(Values_Entered,A184+1,"") ->  | J185: =SUM($H$14:$H185) -> 0
A186: =IF(Values_Entered,A185+1,"") ->  | J186: =SUM($H$14:$H186) -> 0
A187: =IF(Values_Entered,A186+1,"") ->  | J187: =SUM($H$14:$H187) -> 0
A188: =IF(Values_Entered,A187+1,"") ->  | J188: =SUM($H$14:$H188) -> 0
A189: =IF(Values_Entered,A188+1,"") ->  | J189: =SUM($H$14:$H189) -> 0
A190: =IF(Values_Entered,A189+1,"") ->  | J190: =SUM($H$14:$H190) -> 0
A191: =IF(Values_Entered,A190+1,"") ->  | J191: =SUM($H$14:$H191) -> 0
A192: =IF(Values_Entered,A191+1,"") ->  | J192: =SUM($H$14:$H192) -> 0
A193: =IF(Values_Entered,A192+1,"") ->  | J193: =SUM($H$14:$H193) -> 0
A194: =IF(Values_Entered,A193+1,"") ->  | J194: =SUM($H$14:$H194) -> 0
A195: =IF(Values_Entered,A194+1,"") ->  | J195: =SUM($H$14:$H195) -> 0
A196: =IF(Values_Entered,A195+1,"") ->  | J196: =SUM($H$14:$H196) -> 0
A197: =IF(Values_Entered,A196+1,"") ->  | J197: =SUM($H$14:$H197) -> 0
A198: =IF(Values_Entered,A197+1,"") ->  | J198: =SUM($H$14:$H198) -> 0
A199: =IF(Values_Entered,A198+1,"") ->  | J199: =SUM($H$14:$H199) -> 0
A200: =IF(Values_Entered,A199+1,"") ->  | J200: =SUM($H$14:$H200) -> 0
A201: =IF(Values_Entered,A200+1,"") ->  | J201: =SUM($H$14:$H201) -> 0
A202: =IF(Values_Entered,A201+1,"") ->  | J202: =SUM($H$14:$H202) -> 0
A203: =IF(Values_Entered,A202+1,"") ->  | J203: =SUM($H$14:$H203) -> 0
... 170 more rows

Sheet Loan Repayment Diesel (hidden)
A1: Loan Repayment: | F1: =Input!D60 -> Système d'irrigation alimenté par le réseau électrique
A2: Bank: | B2: =Input!E119 -> 0
B3: Enter Values | F3: Loan Summary
C4: Loan Amount | D4: =Input!E116 -> 0 | G4: Scheduled Payment | H4: =IF(Values_Entered,-PMT(Interest_Rate/Num_Pmt_Per_Year,Loan_Years*Num_Pmt_Per_Year,Loan_Amount),"0") -> 0
C5: Annual Interest Rate | D5: =Input!E117 -> 0 | G5: Scheduled Number of Payments | H5: =IF(Values_Entered,Loan_Years*Num_Pmt_Per_Year,"") -> 
C6: Loan Period in Years | D6: =Input!E118 -> 0 | G6: Actual Number of Payments | H6: =IF(Values_Entered,Number_of_Payments,"") -> 
C7: Number of Payments Per Year | D7: 1 | G7: Total Early Payments | H7: =IF(Values_Entered,SUMIF(Beg_Bal,">0",Extra_Pay),"") -> 
C8: Start Date of Loan | D8: 2017-01-01 | G8: Total Interest | H8: =IF(Values_Entered,SUMIF(Beg_Bal,">0",Int),"") -> 
C9: Optional Extra Payments | D9: 0
A12: PmtNo. | B12: Payment Date | C12: Beginning Balance | D12: Scheduled Payment | E12: Extra Payment | F12: Total Payment | G12: Principal | H12: Interest | I12: Ending Balance | J12: Cumulative Interest
A14: =IF(Values_Entered,1,"") ->  | B14: =IF(Pay_Num<>"",DATE(YEAR(Loan_Start),MONTH(Loan_Start)+(Pay_Num)*12/Num_Pmt_Per_Year,DAY(Loan_Start)),"") ->  | C14: =IF(Values_Entered,Loan_Amount,"") ->  | D14: =IF(Pay_Num<>"",Scheduled_Monthly_Payment,"") ->  | E14: =IF(AND(Pay_Num<>"",Sched_Pay+Scheduled_Extra_Payments<Beg_Bal),Scheduled_Extra_Payments,IF(AND(Pay_Num<>"",Beg_Bal-Sched_Pay>0),Beg_Bal-Sched_Pay,IF(Pay_Num<>"",0,""))) ->  | F14: =IF(AND(Pay_Num<>"",Sched_Pay+Extra_Pay<Beg_Bal),Sched_Pay+Extra_Pay,IF(Pay_Num<>"",Beg_Bal,"")) ->  | G14: =IF(Pay_Num<>"",Total_Pay-Int,"") ->  | H14: =IF(Pay_Num<>"",Beg_Bal*(Interest_Rate/Num_Pmt_Per_Year),"") ->  | I14: =IF(AND(Pay_Num<>"",Sched_Pay+Extra_Pay<Beg_Bal),Beg_Bal-Princ,IF(Pay_Num<>"",0,"")) ->  | J14: =SUM($H$14:$H14) -> 0
A15: =IF(Values_Entered,A14+1,"") ->  | C15: =IF(Pay_Num<>"",I14,"") ->  | D15: =IF(Pay_Num<>"",Scheduled_Monthly_Payment,"") ->  | G15: =IF(Pay_Num<>"",Total_Pay-Int,"") ->  | H15: =IF(Pay_Num<>"",Beg_Bal*Interest_Rate/Num_Pmt_Per_Year,"") ->  | J15: =SUM($H$14:$H15) -> 0
A16: =IF(Values_Entered,A15+1,"") ->  | D16: =IF(Pay_Num<>"",Scheduled_Monthly_Payment,"") ->  | J16: =SUM($H$14:$H16) -> 0
A17: =IF(Values_Entered,A16+1,"") ->  | D17: =IF(Pay_Num<>"",Scheduled_Monthly_Payment,"") ->  | J17: =SUM($H$14:$H17) -> 0
A18: =IF(Values_Entered,A17+1,"") ->  | J18: =SUM($H$14:$H18) -> 0
A19: =IF(Values_Entered,A18+1,"") ->  | J19: =SUM($H$14:$H19) -> 0
A20: =IF(Values_Entered,A19+1,"") ->  | J20: =SUM($H$14:$H20) -> 0
A21: =IF(Values_Entered,A20+1,"") ->  | J21: =SUM($H$14:$H21) -> 0
A22: =IF(Values_Entered,A21+1,"") ->  | J22: =SUM($H$14:$H22) -> 0
A23: =IF(Values_Entered,A22+1,"") ->  | J23: =SUM($H$14:$H23) -> 0
A24: =IF(Values_Entered,A23+1,"") ->  | J24: =SUM($H$14:$H24) -> 0
A25: =IF(Values_Entered,A24+1,"") ->  | J25: =SUM($H$14:$H25) -> 0
A26: =IF(Values_Entered,A25+1,"") ->  | J26: =SUM($H$14:$H26) -> 0
A27: =IF(Values_Entered,A26+1,"") ->  | J27: =SUM($H$14:$H27) -> 0
A28: =IF(Values_Entered,A27+1,"") ->  | J28: =SUM($H$14:$H28) -> 0
A29: =IF(Values_Entered,A28+1,"") ->  | J29: =SUM($H$14:$H29) -> 0
A30: =IF(Values_Entered,A29+1,"") ->  | J30: =SUM($H$14:$H30) -> 0
A31: =IF(Values_Entered,A30+1,"") ->  | J31: =SUM($H$14:$H31) -> 0
A32: =IF(Values_Entered,A31+1,"") ->  | J32: =SUM($H$14:$H32) -> 0
A33: =IF(Values_Entered,A32+1,"") ->  | J33: =SUM($H$14:$H33) -> 0
A34: =IF(Values_Entered,A33+1,"") ->  | J34: =SUM($H$14:$H34) -> 0
A35: =IF(Values_Entered,A34+1,"") ->  | J35: =SUM($H$14:$H35) -> 0
A36: =IF(Values_Entered,A35+1,"") ->  | J36: =SUM($H$14:$H36) -> 0
A37: =IF(Values_Entered,A36+1,"") ->  | J37: =SUM($H$14:$H37) -> 0
A38: =IF(Values_Entered,A37+1,"") ->  | J38: =SUM($H$14:$H38) -> 0
A39: =IF(Values_Entered,A38+1,"") ->  | J39: =SUM($H$14:$H39) -> 0
A40: =IF(Values_Entered,A39+1,"") ->  | J40: =SUM($H$14:$H40) -> 0
A41: =IF(Values_Entered,A40+1,"") ->  | J41: =SUM($H$14:$H41) -> 0
A42: =IF(Values_Entered,A41+1,"") ->  | J42: =SUM($H$14:$H42) -> 0
A43: =IF(Values_Entered,A42+1,"") ->  | J43: =SUM($H$14:$H43) -> 0
A44: =IF(Values_Entered,A43+1,"") ->  | J44: =SUM($H$14:$H44) -> 0
A45: =IF(Values_Entered,A44+1,"") ->  | J45: =SUM($H$14:$H45) -> 0
A46: =IF(Values_Entered,A45+1,"") ->  | J46: =SUM($H$14:$H46) -> 0
A47: =IF(Values_Entered,A46+1,"") ->  | J47: =SUM($H$14:$H47) -> 0
A48: =IF(Values_Entered,A47+1,"") ->  | J48: =SUM($H$14:$H48) -> 0
A49: =IF(Values_Entered,A48+1,"") ->  | J49: =SUM($H$14:$H49) -> 0
A50: =IF(Values_Entered,A49+1,"") ->  | J50: =SUM($H$14:$H50) -> 0
A51: =IF(Values_Entered,A50+1,"") ->  | J51: =SUM($H$14:$H51) -> 0
A52: =IF(Values_Entered,A51+1,"") ->  | J52: =SUM($H$14:$H52) -> 0
A53: =IF(Values_Entered,A52+1,"") ->  | J53: =SUM($H$14:$H53) -> 0
A54: =IF(Values_Entered,A53+1,"") ->  | J54: =SUM($H$14:$H54) -> 0
A55: =IF(Values_Entered,A54+1,"") ->  | J55: =SUM($H$14:$H55) -> 0
A56: =IF(Values_Entered,A55+1,"") ->  | J56: =SUM($H$14:$H56) -> 0
A57: =IF(Values_Entered,A56+1,"") ->  | J57: =SUM($H$14:$H57) -> 0
A58: =IF(Values_Entered,A57+1,"") ->  | J58: =SUM($H$14:$H58) -> 0
A59: =IF(Values_Entered,A58+1,"") ->  | J59: =SUM($H$14:$H59) -> 0
A60: =IF(Values_Entered,A59+1,"") ->  | J60: =SUM($H$14:$H60) -> 0
A61: =IF(Values_Entered,A60+1,"") ->  | J61: =SUM($H$14:$H61) -> 0
A62: =IF(Values_Entered,A61+1,"") ->  | J62: =SUM($H$14:$H62) -> 0
A63: =IF(Values_Entered,A62+1,"") ->  | J63: =SUM($H$14:$H63) -> 0
A64: =IF(Values_Entered,A63+1,"") ->  | J64: =SUM($H$14:$H64) -> 0
A65: =IF(Values_Entered,A64+1,"") ->  | J65: =SUM($H$14:$H65) -> 0
A66: =IF(Values_Entered,A65+1,"") ->  | J66: =SUM($H$14:$H66) -> 0
A67: =IF(Values_Entered,A66+1,"") ->  | J67: =SUM($H$14:$H67) -> 0
A68: =IF(Values_Entered,A67+1,"") ->  | J68: =SUM($H$14:$H68) -> 0
A69: =IF(Values_Entered,A68+1,"") ->  | J69: =SUM($H$14:$H69) -> 0
A70: =IF(Values_Entered,A69+1,"") ->  | J70: =SUM($H$14:$H70) -> 0
A71: =IF(Values_Entered,A70+1,"") ->  | J71: =SUM($H$14:$H71) -> 0
A72: =IF(Values_Entered,A71+1,"") ->  | J72: =SUM($H$14:$H72) -> 0
A73: =IF(Values_Entered,A72+1,"") ->  | J73: =SUM($H$14:$H73) -> 0
A74: =IF(Values_Entered,A73+1,"") ->  | J74: =SUM($H$14:$H74) -> 0
A75: =IF(Values_Entered,A74+1,"") ->  | J75: =SUM($H$14:$H75) -> 0
A76: =IF(Values_Entered,A75+1,"") ->  | J76: =SUM($H$14:$H76) -> 0
A77: =IF(Values_Entered,A76+1,"") ->  | J77: =SUM($H$14:$H77) -> 0
A78: =IF(Values_Entered,A77+1,"") ->  | B78: =IF(Pay_Num<>"",DATE(YEAR(Loan_Start),MONTH(Loan_Start)+(Pay_Num)*12/Num_Pmt_Per_Year,DAY(Loan_Start)),"") ->  | E78: =IF(AND(Pay_Num<>"",Sched_Pay+Scheduled_Extra_Payments<Beg_Bal),Scheduled_Extra_Payments,IF(AND(Pay_Num<>"",Beg_Bal-Sched_Pay>0),Beg_Bal-Sched_Pay,IF(Pay_Num<>"",0,""))) ->  | F78: =IF(AND(Pay_Num<>"",Sched_Pay+Extra_Pay<Beg_Bal),Sched_Pay+Extra_Pay,IF(Pay_Num<>"",Beg_Bal,"")) ->  | I78: =IF(AND(Pay_Num<>"",Sched_Pay+Extra_Pay<Beg_Bal),Beg_Bal-Princ,IF(Pay_Num<>"",0,"")) ->  | J78: =SUM($H$14:$H78) -> 0
A79: =IF(Values_Entered,A78+1,"") ->  | C79: =IF(Pay_Num<>"",I78,"") ->  | G79: =IF(Pay_Num<>"",Total_Pay-Int,"") ->  | H79: =IF(Pay_Num<>"",Beg_Bal*Interest_Rate/Num_Pmt_Per_Year,"") ->  | J79: =SUM($H$14:$H79) -> 0
A80: =IF(Values_Entered,A79+1,"") ->  | D80: =IF(Pay_Num<>"",Scheduled_Monthly_Payment,"") ->  | J80: =SUM($H$14:$H80) -> 0
A81: =IF(Values_Entered,A80+1,"") ->  | J81: =SUM($H$14:$H81) -> 0
A82: =IF(Values_Entered,A81+1,"") ->  | J82: =SUM($H$14:$H82) -> 0
A83: =IF(Values_Entered,A82+1,"") ->  | J83: =SUM($H$14:$H83) -> 0
A84: =IF(Values_Entered,A83+1,"") ->  | J84: =SUM($H$14:$H84) -> 0
A85: =IF(Values_Entered,A84+1,"") ->  | J85: =SUM($H$14:$H85) -> 0
A86: =IF(Values_Entered,A85+1,"") ->  | J86: =SUM($H$14:$H86) -> 0
A87: =IF(Values_Entered,A86+1,"") ->  | J87: =SUM($H$14:$H87) -> 0
A88: =IF(Values_Entered,A87+1,"") ->  | J88: =SUM($H$14:$H88) -> 0
A89: =IF(Values_Entered,A88+1,"") ->  | J89: =SUM($H$14:$H89) -> 0
A90: =IF(Values_Entered,A89+1,"") ->  | J90: =SUM($H$14:$H90) -> 0
A91: =IF(Values_Entered,A90+1,"") ->  | J91: =SUM($H$14:$H91) -> 0
A92: =IF(Values_Entered,A91+1,"") ->  | J92: =SUM($H$14:$H92) -> 0
A93: =IF(Values_Entered,A92+1,"") ->  | J93: =SUM($H$14:$H93) -> 0
A94: =IF(Values_Entered,A93+1,"") ->  | J94: =SUM($H$14:$H94) -> 0
A95: =IF(Values_Entered,A94+1,"") ->  | J95: =SUM($H$14:$H95) -> 0
A96: =IF(Values_Entered,A95+1,"") ->  | J96: =SUM($H$14:$H96) -> 0
A97: =IF(Values_Entered,A96+1,"") ->  | J97: =SUM($H$14:$H97) -> 0
A98: =IF(Values_Entered,A97+1,"") ->  | J98: =SUM($H$14:$H98) -> 0
A99: =IF(Values_Entered,A98+1,"") ->  | J99: =SUM($H$14:$H99) -> 0
A100: =IF(Values_Entered,A99+1,"") ->  | J100: =SUM($H$14:$H100) -> 0
A101: =IF(Values_Entered,A100+1,"") ->  | J101: =SUM($H$14:$H101) -> 0
A102: =IF(Values_Entered,A101+1,"") ->  | J102: =SUM($H$14:$H102) -> 0
A103: =IF(Values_Entered,A102+1,"") ->  | J103: =SUM($H$14:$H103) -> 0
A104: =IF(Values_Entered,A103+1,"") ->  | J104: =SUM($H$14:$H104) -> 0
A105: =IF(Values_Entered,A104+1,"") ->  | J105: =SUM($H$14:$H105) -> 0
A106: =IF(Values_Entered,A105+1,"") ->  | J106: =SUM($H$14:$H106) -> 0
A107: =IF(Values_Entered,A106+1,"") ->  | J107: =SUM($H$14:$H107) -> 0
A108: =IF(Values_Entered,A107+1,"") ->  | J108: =SUM($H$14:$H108) -> 0
A109: =IF(Values_Entered,A108+1,"") ->  | J109: =SUM($H$14:$H109) -> 0
A110: =IF(Values_Entered,A109+1,"") ->  | J110: =SUM($H$14:$H110) -> 0
A111: =IF(Values_Entered,A110+1,"") ->  | J111: =SUM($H$14:$H111) -> 0
A112: =IF(Values_Entered,A111+1,"") ->  | J112: =SUM($H$14:$H112) -> 0
A113: =IF(Values_Entered,A112+1,"") ->  | J113: =SUM($H$14:$H113) -> 0
A114: =IF(Values_Entered,A113+1,"") ->  | J114: =SUM($H$14:$H114) -> 0
A115: =IF(Values_Entered,A114+1,"") ->  | J115: =SUM($H$14:$H115) -> 0
A116: =IF(Values_Entered,A115+1,"") ->  | J116: =SUM($H$14:$H116) -> 0
A117: =IF(Values_Entered,A116+1,"") ->  | J117: =SUM($H$14:$H117) -> 0
A118: =IF(Values_Entered,A117+1,"") ->  | J118: =SUM($H$14:$H118) -> 0
A119: =IF(Values_Entered,A118+1,"") ->  | J119: =SUM($H$14:$H119) -> 0
A120: =IF(Values_Entered,A119+1,"") ->  | J120: =SUM($H$14:$H120) -> 0
A121: =IF(Values_Entered,A120+1,"") ->  | J121: =SUM($H$14:$H121) -> 0
A122: =IF(Values_Entered,A121+1,"") ->  | J122: =SUM($H$14:$H122) -> 0
A123: =IF(Values_Entered,A122+1,"") ->  | J123: =SUM($H$14:$H123) -> 0
A124: =IF(Values_Entered,A123+1,"") ->  | J124: =SUM($H$14:$H124) -> 0
A125: =IF(Values_Entered,A124+1,"") ->  | J125: =SUM($H$14:$H125) -> 0
A126: =IF(Values_Entered,A125+1,"") ->  | J126: =SUM($H$14:$H126) -> 0
A127: =IF(Values_Entered,A126+1,"") ->  | J127: =SUM($H$14:$H127) -> 0
A128: =IF(Values_Entered,A127+1,"") ->  | J128: =SUM($H$14:$H128) -> 0
A129: =IF(Values_Entered,A128+1,"") ->  | J129: =SUM($H$14:$H129) -> 0
A130: =IF(Values_Entered,A129+1,"") ->  | J130: =SUM($H$14:$H130) -> 0
A131: =IF(Values_Entered,A130+1,"") ->  | J131: =SUM($H$14:$H131) -> 0
A132: =IF(Values_Entered,A131+1,"") ->  | J132: =SUM($H$14:$H132) -> 0
A133: =IF(Values_Entered,A132+1,"") ->  | J133: =SUM($H$14:$H133) -> 0
A134: =IF(Values_Entered,A133+1,"") ->  | J134: =SUM($H$14:$H134) -> 0
A135: =IF(Values_Entered,A134+1,"") ->  | J135: =SUM($H$14:$H135) -> 0
A136: =IF(Values_Entered,A135+1,"") ->  | J136: =SUM($H$14:$H136) -> 0
A137: =IF(Values_Entered,A136+1,"") ->  | J137: =SUM($H$14:$H137) -> 0
A138: =IF(Values_Entered,A137+1,"") ->  | J138: =SUM($H$14:$H138) -> 0
A139: =IF(Values_Entered,A138+1,"") ->  | J139: =SUM($H$14:$H139) -> 0
A140: =IF(Values_Entered,A139+1,"") ->  | J140: =SUM($H$14:$H140) -> 0
A141: =IF(Values_Entered,A140+1,"") ->  | J141: =SUM($H$14:$H141) -> 0
A142: =IF(Values_Entered,A141+1,"") ->  | B142: =IF(Pay_Num<>"",DATE(YEAR(Loan_Start),MONTH(Loan_Start)+(Pay_Num)*12/Num_Pmt_Per_Year,DAY(Loan_Start)),"") ->  | E142: =IF(AND(Pay_Num<>"",Sched_Pay+Scheduled_Extra_Payments<Beg_Bal),Scheduled_Extra_Payments,IF(AND(Pay_Num<>"",Beg_Bal-Sched_Pay>0),Beg_Bal-Sched_Pay,IF(Pay_Num<>"",0,""))) ->  | F142: =IF(AND(Pay_Num<>"",Sched_Pay+Extra_Pay<Beg_Bal),Sched_Pay+Extra_Pay,IF(Pay_Num<>"",Beg_Bal,"")) ->  | I142: =IF(AND(Pay_Num<>"",Sched_Pay+Extra_Pay<Beg_Bal),Beg_Bal-Princ,IF(Pay_Num<>"",0,"")) ->  | J142: =SUM($H$14:$H142) -> 0
A143: =IF(Values_Entered,A142+1,"") ->  | C143: =IF(Pay_Num<>"",I142,"") ->  | G143: =IF(Pay_Num<>"",Total_Pay-Int,"") ->  | H143: =IF(Pay_Num<>"",Beg_Bal*Interest_Rate/Num_Pmt_Per_Year,"") ->  | J143: =SUM($H$14:$H143) -> 0
A144: =IF(Values_Entered,A143+1,"") ->  | D144: =IF(Pay_Num<>"",Scheduled_Monthly_Payment,"") ->  | J144: =SUM($H$14:$H144) -> 0
A145: =IF(Values_Entered,A144+1,"") ->  | J145: =SUM($H$14:$H145) -> 0
A146: =IF(Values_Entered,A145+1,"") ->  | J146: =SUM($H$14:$H146) -> 0
A147: =IF(Values_Entered,A146+1,"") ->  | J147: =SUM($H$14:$H147) -> 0
A148: =IF(Values_Entered,A147+1,"") ->  | J148: =SUM($H$14:$H148) -> 0
A149: =IF(Values_Entered,A148+1,"") ->  | J149: =SUM($H$14:$H149) -> 0
A150: =IF(Values_Entered,A149+1,"") ->  | J150: =SUM($H$14:$H150) -> 0
A151: =IF(Values_Entered,A150+1,"") ->  | J151: =SUM($H$14:$H151) -> 0
A152: =IF(Values_Entered,A151+1,"") ->  | J152: =SUM($H$14:$H152) -> 0
A153: =IF(Values_Entered,A152+1,"") ->  | J153: =SUM($H$14:$H153) -> 0
A154: =IF(Values_Entered,A153+1,"") ->  | J154: =SUM($H$14:$H154) -> 0
A155: =IF(Values_Entered,A154+1,"") ->  | J155: =SUM($H$14:$H155) -> 0
A156: =IF(Values_Entered,A155+1,"") ->  | J156: =SUM($H$14:$H156) -> 0
A157: =IF(Values_Entered,A156+1,"") ->  | J157: =SUM($H$14:$H157) -> 0
A158: =IF(Values_Entered,A157+1,"") ->  | J158: =SUM($H$14:$H158) -> 0
A159: =IF(Values_Entered,A158+1,"") ->  | J159: =SUM($H$14:$H159) -> 0
A160: =IF(Values_Entered,A159+1,"") ->  | J160: =SUM($H$14:$H160) -> 0
A161: =IF(Values_Entered,A160+1,"") ->  | J161: =SUM($H$14:$H161) -> 0
A162: =IF(Values_Entered,A161+1,"") ->  | J162: =SUM($H$14:$H162) -> 0
A163: =IF(Values_Entered,A162+1,"") ->  | J163: =SUM($H$14:$H163) -> 0
A164: =IF(Values_Entered,A163+1,"") ->  | J164: =SUM($H$14:$H164) -> 0
A165: =IF(Values_Entered,A164+1,"") ->  | J165: =SUM($H$14:$H165) -> 0
A166: =IF(Values_Entered,A165+1,"") ->  | J166: =SUM($H$14:$H166) -> 0
A167: =IF(Values_Entered,A166+1,"") ->  | J167: =SUM($H$14:$H167) -> 0
A168: =IF(Values_Entered,A167+1,"") ->  | J168: =SUM($H$14:$H168) -> 0
A169: =IF(Values_Entered,A168+1,"") ->  | J169: =SUM($H$14:$H169) -> 0
A170: =IF(Values_Entered,A169+1,"") ->  | J170: =SUM($H$14:$H170) -> 0
A171: =IF(Values_Entered,A170+1,"") ->  | J171: =SUM($H$14:$H171) -> 0
A172: =IF(Values_Entered,A171+1,"") ->  | J172: =SUM($H$14:$H172) -> 0
A173: =IF(Values_Entered,A172+1,"") ->  | J173: =SUM($H$14:$H173) -> 0
A174: =IF(Values_Entered,A173+1,"") ->  | J174: =SUM($H$14:$H174) -> 0
A175: =IF(Values_Entered,A174+1,"") ->  | J175: =SUM($H$14:$H175) -> 0
A176: =IF(Values_Entered,A175+1,"") ->  | J176: =SUM($H$14:$H176) -> 0
A177: =IF(Values_Entered,A176+1,"") ->  | J177: =SUM($H$14:$H177) -> 0
A178: =IF(Values_Entered,A177+1,"") ->  | J178: =SUM($H$14:$H178) -> 0
A179: =IF(Values_Entered,A178+1,"") ->  | J179: =SUM($H$14:$H179) -> 0
A180: =IF(Values_Entered,A179+1,"") ->  | J180: =SUM($H$14:$H180) -> 0
A181: =IF(Values_Entered,A180+1,"") ->  | J181: =SUM($H$14:$H181) -> 0
A182: =IF(Values_Entered,A181+1,"") ->  | J182: =SUM($H$14:$H182) -> 0
A183: =IF(Values_Entered,A182+1,"") ->  | J183: =SUM($H$14:$H183) -> 0
A184: =IF(Values_Entered,A183+1,"") ->  | J184: =SUM($H$14:$H184) -> 0
A185: =IF(Values_Entered,A184+1,"") ->  | J185: =SUM($H$14:$H185) -> 0
A186: =IF(Values_Entered,A185+1,"") ->  | J186: =SUM($H$14:$H186) -> 0
A187: =IF(Values_Entered,A186+1,"") ->  | J187: =SUM($H$14:$H187) -> 0
A188: =IF(Values_Entered,A187+1,"") ->  | J188: =SUM($H$14:$H188) -> 0
A189: =IF(Values_Entered,A188+1,"") ->  | J189: =SUM($H$14:$H189) -> 0
A190: =IF(Values_Entered,A189+1,"") ->  | J190: =SUM($H$14:$H190) -> 0
A191: =IF(Values_Entered,A190+1,"") ->  | J191: =SUM($H$14:$H191) -> 0
A192: =IF(Values_Entered,A191+1,"") ->  | J192: =SUM($H$14:$H192) -> 0
A193: =IF(Values_Entered,A192+1,"") ->  | J193: =SUM($H$14:$H193) -> 0
A194: =IF(Values_Entered,A193+1,"") ->  | J194: =SUM($H$14:$H194) -> 0
A195: =IF(Values_Entered,A194+1,"") ->  | J195: =SUM($H$14:$H195) -> 0
A196: =IF(Values_Entered,A195+1,"") ->  | J196: =SUM($H$14:$H196) -> 0
A197: =IF(Values_Entered,A196+1,"") ->  | J197: =SUM($H$14:$H197) -> 0
A198: =IF(Values_Entered,A197+1,"") ->  | J198: =SUM($H$14:$H198) -> 0
A199: =IF(Values_Entered,A198+1,"") ->  | J199: =SUM($H$14:$H199) -> 0
A200: =IF(Values_Entered,A199+1,"") ->  | J200: =SUM($H$14:$H200) -> 0
A201: =IF(Values_Entered,A200+1,"") ->  | J201: =SUM($H$14:$H201) -> 0
A202: =IF(Values_Entered,A201+1,"") ->  | J202: =SUM($H$14:$H202) -> 0
A203: =IF(Values_Entered,A202+1,"") ->  | J203: =SUM($H$14:$H203) -> 0
... 170 more rows
